Workbook

Sheet Trend1
B19: Top 10 Buyers | D19: 2007 | F19: 2008 | H19: 2009 | J19: 2010 | L19: 2011* | N19: Average
B20: =One!A26 -> Buyer 3 | D20: =One!B26 -> 0.2325176282 | F20: =One!C26 -> 0.2070629871 | H20: =One!D26 -> 0.3124567861 | J20: =One!E26 -> 0.2589991836 | L20: =One!F26 -> 0.2826904049 | N20: =One!G26 -> 0.2581966181
B21: =One!A27 -> Buyer 6 | D21: =One!B27 -> 0.2181774662 | F21: =One!C27 -> 0.2351823898 | H21: =One!D27 -> 0.1992077641 | J21: =One!E27 -> 0.2368691049 | L21: =One!F27 -> 0.1841752972 | N21: =One!G27 -> 0.2191469174
B22: =One!A28 -> Buyer 2 | D22: =One!B28 -> 0.1633925556 | F22: =One!C28 -> 0.1683426759 | H22: =One!D28 -> 0.1665656447 | J22: =One!E28 -> 0.1986173747 | L22: =One!F28 -> 0.209084869 | N22: =One!G28 -> 0.1874445346
B23: =One!A29 -> Buyer 9 | D23: =One!B29 -> 0.01500976563 | F23: =One!C29 -> 0.05980373803 | H23: =One!D29 -> 0.08841724858 | J23: =One!E29 -> 0.0874714088 | L23: =One!F29 -> 0.0767339493 | N23: =One!G29 -> 0.07258011918 | S23: 2011 | T23: 2010
B24: =One!A30 -> Buyer 5 | D24: =One!B30 -> 0.0374325516 | F24: =One!C30 -> 0.03415813983 | H24: =One!D30 -> 0.02778983762 | J24: =One!E30 -> 0.08633371428 | L24: =One!F30 -> 0.08873318424 | N24: =One!G30 -> 0.06476068053 | R24: =B20 -> Buyer 3 | S24: =L20/J20-1 -> 0.09147218551 | T24: =J20/H20-1 -> -0.1710879869
B25: =One!A31 -> Buyer 7 | D25: =One!B31 -> 0.05249452908 | F25: =One!C31 -> 0.08856415434 | H25: =One!D31 -> 0.0380867327 | J25: =One!E31 -> 0.0399013669 | L25: =One!F31 -> 0.0199092278 | N25: =One!G31 -> 0.04581578187 | R25: =B21 -> Buyer 6 | S25: =L21/J21-1 -> -0.2224596057 | T25: =J21/H21-1 -> 0.1890555872
B26: =One!A32 -> Buyer 8 | D26: =One!B32 -> 0.08581299293 | F26: =One!C32 -> 0.04965871609 | H26: =One!D32 -> 0.03608984396 | J26: =One!E32 -> 0.02561995574 | L26: =One!F32 -> 0.0194372456 | N26: =One!G32 -> 0.036521395 | R26: Buyer 2 | S26: =L22/J22-1 -> 0.05270180563 | T26: =J22/H22-1 -> 0.1924270162
B27: =One!A33 -> Buyer 4 | D27: =One!B33 -> 0.06245199147 | F27: =One!C33 -> 0.1057592359 | H27: =One!D33 -> 0.08422748228 | J27: =One!E33 -> 0 | L27: =One!F33 -> 0 | N27: =One!G33 -> 0.03646624869 | R27: Buyer 9 | S27: =L23/J23-1 -> -0.1227539335 | T27: =J23/H23-1 -> -0.01069745774
B28: =One!A34 -> Buyer 11 | D28: =One!B34 -> 0 | F28: =One!C34 -> 0 | H28: =One!D34 -> 0.004774680552 | J28: =One!E34 -> 0.04270983839 | L28: =One!F34 -> 0.0602646442 | N28: =One!G34 -> 0.02917520384
B29: =One!A35 -> Buyer 1 | D29: =One!B35 -> 0.1327105194 | F29: =One!C35 -> 0.05120204597 | H29: =One!D35 -> 0.03594133616 | J29: =One!E35 -> 0 | L29: =One!F35 -> 0 | N29: =One!G35 -> 0.02808209535
B30: =One!A36 -> Buyer 10 | D30: =One!B36 -> 0 | F30: =One!C36 -> 0.0002659171497 | H30: =One!D36 -> 0.006442643287 | J30: =One!E36 -> 0.02347805276 | L30: =One!F36 -> 0.05897117774 | N30: =One!G36 -> 0.02181040539
B31: =One!A37 -> Grand Total | D31: =One!B37 -> 3899306.72 | F31: =One!C37 -> 6583479.11 | H31: =One!D37 -> 4524543.53 | J31: =One!E37 -> 13859918.17 | L31: =One!F37 -> 7354578.06 | N31: =One!G37 -> 36221825.59

Sheet Trend2
B22: Sell Option | D22: =One!B25 -> 2007 | F22: =One!C25 -> 2008 | H22: =One!D25 -> 2009 | J22: =One!E25 -> 2010 | L22: =One!F25 -> 2011 | N22: Average | Q22: Sell Option | S22: 2007 | U22: 2008 | W22: 2009 | Y22: 2010 | AA22: 2011 | AC22: Average
B23: Market Volume (Tns) | D23: ='Two-2'!B23 -> 3899306.72 | F23: ='Two-2'!C23 -> 6583479.11 | H23: ='Two-2'!D23 -> 4524543.53 | J23: ='Two-2'!E23 -> 13859918.17 | L23: ='Two-2'!F23 -> 7354578.06 | N23: =IF(ISERROR(AVERAGE(D23:M23)),0,AVERAGE(D23:M23)) -> 7244365.118 | Q23: Market Volume (Tns) | S23: 5849811.6 | U23: 9675860.3 | W23: 7683744.79 | Y23: 15276085.83 | AA23: 8175589.546 | AC23: =AVERAGE(S23:AB23) -> 9332218.413
B24: Sell Option 1 | D24: ='Two-2'!B20 -> 508747.75 | F24: ='Two-2'!C20 -> 324720.64 | H24: ='Two-2'!D20 -> 352337.81 | J24: ='Two-2'!E20 -> 2032997.47 | L24: ='Two-2'!F20 -> 906158.9 | N24: =IF(ISERROR(AVERAGE(D24:M24)),0,AVERAGE(D24:M24)) -> 824992.514 | Q24: Sell Option 1 | S24: 1028567.39 | U24: 819335.19 | W24: 901796.02 | Y24: 2260082.17 | AA24: 1066245.73 | AC24: =AVERAGE(S24:AB24) -> 1215205.3
B25: Sell Option 2 | D25: ='Two-2'!B21 -> 3335576.4 | F25: ='Two-2'!C21 -> 5817719.97 | H25: ='Two-2'!D21 -> 3846610.24 | J25: ='Two-2'!E21 -> 10584364.04 | L25: ='Two-2'!F21 -> 5335117.31 | N25: =IF(ISERROR(AVERAGE(D25:M25)),0,AVERAGE(D25:M25)) -> 5783877.592 | Q25: Sell Option 2 | S25: 4694458.67 | U25: 8097103.29 | W25: 6093733.93 | Y25: 11625525.33 | AA25: 5858930.316 | AC25: =AVERAGE(S25:AB25) -> 7273950.307
B26: Sell Option 3 | D26: ='Two-2'!B22 -> 54982.57 | F26: ='Two-2'!C22 -> 441038.5 | H26: ='Two-2'!D22 -> 325595.48 | J26: ='Two-2'!E22 -> 1242556.66 | L26: ='Two-2'!F22 -> 1113301.85 | N26: =IF(ISERROR(AVERAGE(D26:M26)),0,AVERAGE(D26:M26)) -> 635495.012 | Q26: Sell Option 3 | S26: 126785.54 | U26: 759421.82 | W26: 688214.84 | Y26: 1390478.33 | AA26: 1250413.5 | AC26: =AVERAGE(S26:AB26) -> 843062.806
B27: Market Share (%) | Q27: Market Share (%)
B28: Sell Option 1 | D28: ='Two-2'!B13 -> 0.1304713341 | F28: ='Two-2'!C13 -> 0.04932356199 | H28: ='Two-2'!D13 -> 0.07787256497 | J28: ='Two-2'!E13 -> 0.1466817802 | L28: ='Two-2'!F13 -> 0.1232101818 | N28: =IF(ISERROR('Two-2'!G20/'Two-2'!G23),"",'Two-2'!G20/'Two-2'!G23) -> 0.1138805817 | Q28: Sell Option 1 | S28: =S24/S$23 -> 0.1758291481 | U28: =U24/U$23 -> 0.08467827817 | W28: =W24/W$23 -> 0.1173641297 | Y28: =Y24/Y$23 -> 0.1479490358 | AA28: =AA24/AA$23 -> 0.130418207 | AC28: =AC24/AC23 -> 0.1302161229
B29: Sell Option 2 | D29: ='Two-2'!B14 -> 0.8554280644 | F29: ='Two-2'!C14 -> 0.8836847316 | H29: ='Two-2'!D14 -> 0.8501653735 | J29: ='Two-2'!E14 -> 0.7636671378 | L29: ='Two-2'!F14 -> 0.7254144652 | N29: =IF(ISERROR('Two-2'!G21/'Two-2'!G23),"",'Two-2'!G21/'Two-2'!G23) -> 0.7983967536 | Q29: Sell Option 2 | S29: =S25/S$23 -> 0.8024974121 | U29: =U25/U$23 -> 0.8368354894 | W29: =W25/W$23 -> 0.7930682365 | Y29: =Y25/Y$23 -> 0.7610277567 | AA29: =AA25/AA$23 -> 0.7166370429 | AC29: =AC25/AC23 -> 0.7794449278
B30: Sell Option 3 | D30: ='Two-2'!B15 -> 0.01410060145 | F30: ='Two-2'!C15 -> 0.06699170646 | H30: ='Two-2'!D15 -> 0.07196206155 | J30: ='Two-2'!E15 -> 0.08965108199 | L30: ='Two-2'!F15 -> 0.151375353 | N30: =IF(ISERROR('Two-2'!G22/'Two-2'!G23),"",'Two-2'!G22/'Two-2'!G23) -> 0.08772266468 | Q30: Sell Option 3 | S30: =S26/S$23 -> 0.02167343988 | U30: =U26/U$23 -> 0.07848623238 | W30: =W26/W$23 -> 0.08956763386 | Y30: =Y26/Y$23 -> 0.09102320748 | AA30: =AA26/AA$23 -> 0.1529447501 | AC30: =AC26/AC23 -> 0.09033894929

Sheet Trend3
B20: Commodity | D20: 2007 | F20: 2008 | H20: 2009 | J20: 2010 | L20: 2011 | N20: Average
B21: Market Volume (Tns) | D21: =Three!B32 -> 3899306.72 | F21: =Three!C32 -> 6583479.11 | H21: =Three!D32 -> 4524543.53 | J21: =Three!E32 -> 13859918.17 | L21: =Three!F32 -> 7354578.06 | N21: =IF(ISERROR(AVERAGE(D21:M21)),0,AVERAGE(D21:M21)) -> 7244365.118
B22: =Three!A27 -> Commodity 1 | D22: =Three!B27 -> 507679.51 | F22: =Three!C27 -> 328236.07 | H22: =Three!D27 -> 417099.57 | J22: =Three!E27 -> 1750577.87 | L22: =Three!F27 -> 1077156.27 | N22: =IF(ISERROR(AVERAGE(D22:M22)),0,AVERAGE(D22:M22)) -> 816149.858 | R22: 2009 | S22: 2010 | T22: 2011
B23: =Three!A28 -> Commodity 2 | D23: =Three!B28 -> 1300093.28 | F23: =Three!C28 -> 4725922.01 | H23: =Three!D28 -> 3181493.3 | J23: =Three!E28 -> 10156050.8 | L23: =Three!F28 -> 5296173.36 | N23: 4931946.55 | Q23: BARLEY | R23: =Three!D27/Three!C27-1 -> 0.2707304532 | S23: =Three!E27/Three!D27-1 -> 3.197026312 | T23: =Three!F27/Three!E27-1 -> -0.3846853154
B24: =Three!A29 -> Commodity 3 | D24: =Three!B30 -> 110604.63 | F24: =Three!C30 -> 226072.68 | H24: =Three!D30 -> 292782.75 | J24: =Three!E30 -> 763165.33 | L24: =Three!F30 -> 892958.89 | N24: 457116.856 | Q24: CANOLA | R24: =Three!D28/Three!C28-1 -> -0.3267994492 | S24: =Three!E28/Three!D28-1 -> 2.192227624 | T24: =Three!F28/Three!E28-1 -> -0.4785203949
B25: =Three!A30 -> Commodity 4 | D25: =Three!B31 -> 1957102.58 | F25: =Three!C31 -> 1257790.07 | H25: =Three!D31 -> 600629.26 | J25: =Three!E31 -> 1114937.96 | L25: =Three!F31 -> 88289.54 | N25: 1003749.882 | Q25: SORGHUM | R25: =Three!D30/Three!C30-1 -> 0.2950824045 | S25: =Three!E30/Three!D30-1 -> 1.606592533 | T25: =Three!F30/Three!E30-1 -> 0.170072663
B26: =Three!A31 -> Commodity 5 | D26: =Three!B29 -> 23826.72 | F26: =Three!C29 -> 45458.28 | H26: =Three!D29 -> 32538.65 | J26: =Three!E29 -> 75186.21 | L26: =Three!F29 ->  | N26: 44252.465 | Q26: WHEAT | R26: =Three!D31/Three!C31-1 -> -0.5224725697 | S26: =Three!E31/Three!D31-1 -> 0.8562831255 | T26: =Three!F31/Three!E31-1 -> -0.9208121499
B27: Market Share (%)
B28: =B22 -> Commodity 1 | D28: =Three!B18 -> 0.1301973778 | F28: =Three!C18 -> 0.04985753953 | H28: =Three!D18 -> 0.09218600003 | J28: =Three!E18 -> 0.1263050654 | L28: =Three!F18 -> 0.1464606482 | N28: =IF(ISERROR(Three!G27/Three!G32),"",Three!G27/Three!G32) -> 0.1126599564
B29: =B23 -> Commodity 2 | D29: =Three!B19 -> 0.3334165208 | F29: =Three!C19 -> 0.7178456757 | H29: =Three!D19 -> 0.7031633752 | J29: =Three!E19 -> 0.7327641242 | L29: =Three!F19 -> 0.7201192668 | N29: =IF(ISERROR(Three!G28/Three!G32),"",Three!G28/Three!G32) -> 0.6807976226
B30: Commodity 3 | D30: =Three!B20 -> 0.02836520385 | F30: =Three!C20 -> 0.03433939354 | H30: =Three!D20 -> 0.06470989793 | J30: =Three!E20 -> 0.05506275872 | L30: =Three!F20 -> 0.12141538 | N30: =IF(ISERROR(Three!G30/Three!G32),"",Three!G30/Three!G32) -> 0.06309964346
B31: Commodity 4 | D31: =Three!B21 -> 0.501910396 | F31: =Three!C21 -> 0.191052489 | H31: =Three!D21 -> 0.1327491394 | J31: =Three!E21 -> 0.08044332921 | L31: =Three!F21 -> 0.012004705 | N31: =IF(ISERROR(Three!G31/Three!G32),"",Three!G31/Three!G32) -> 0.1385559488
B32: Commodity 5 | D32: =Three!B22 -> 0.006110501612 | F32: =Three!C22 -> 0.006904902293 | H32: =Three!D22 -> 0.007191587347 | J32: =Three!E22 -> 0.005424722505 | L32: =Three!F22 -> 0 | N32: =IF(ISERROR(Three!G29/Three!G32),"",Three!G29/Three!G32) -> 0.004886828787

Sheet Trend4-Buyer
K16: Top 15 commodities transacted over the period 2007-2011
K17: Commodity | L17: Grain Vol. (TN) | M17: % Share | N17: CASH | O17: CONTRACT | P17: POOL
K19: =Four!AE46 -> Commodity 2 | L19: =IF(Four!AE46="","",Four!AI46) -> 24659732.75 | M19: =IF(Four!AE46="","",Four!AN46) -> 0.6807976226 | N19: =IF(Four!AE46="","",Four!AJ46) -> 0.1137520779 | O19: =IF(Four!AE46="","",Four!AK46) -> 0.772177417 | P19: =IF(Four!AE46="","",Four!AL46) -> 0.1140705051
K20: =Four!AE47 -> Commodity 5 | L20: =IF(Four!AE47="","",Four!AI47) -> 4429433 | M20: =IF(Four!AE47="","",Four!AN47) -> 0.1222862992 | N20: =IF(Four!AE47="","",Four!AJ47) -> 0.004031292493 | O20: =IF(Four!AE47="","",Four!AK47) -> 0.9742597077 | P20: =IF(Four!AE47="","",Four!AL47) -> 0.02170899977
K21: =Four!AE48 -> Commodity 1 | L21: =IF(Four!AE48="","",Four!AI48) -> 4080749.29 | M21: =IF(Four!AE48="","",Four!AN48) -> 0.1126599564 | N21: =IF(Four!AE48="","",Four!AJ48) -> 0.2330552069 | O21: =IF(Four!AE48="","",Four!AK48) -> 0.7094773543 | P21: =IF(Four!AE48="","",Four!AL48) -> 0.05746743878
K22: =Four!AE49 -> Commodity 4 | L22: =IF(Four!AE49="","",Four!AI49) -> 2285584.28 | M22: =IF(Four!AE49="","",Four!AN49) -> 0.06309964346 | N22: =IF(Four!AE49="","",Four!AJ49) -> 0.1524565526 | O22: =IF(Four!AE49="","",Four!AK49) -> 0.8341350948 | P22: =IF(Four!AE49="","",Four!AL49) -> 0.01340835263
K23: =Four!AE50 -> Commodity 7 | L23: =IF(Four!AE50="","",Four!AI50) -> 258613.36 | M23: =IF(Four!AE50="","",Four!AN50) -> 0.007139710818 | N23: =IF(Four!AE50="","",Four!AJ50) -> 0 | O23: =IF(Four!AE50="","",Four!AK50) -> 0.9941741216 | P23: =IF(Four!AE50="","",Four!AL50) -> 0.005825878446
K24: =Four!AE51 -> Commodity 17 | L24: =IF(Four!AE51="","",Four!AI51) -> 223596.66 | M24: =IF(Four!AE51="","",Four!AN51) -> 0.006172981521 | N24: =IF(Four!AE51="","",Four!AJ51) -> 0 | O24: =IF(Four!AE51="","",Four!AK51) -> 0.9923722027 | P24: =IF(Four!AE51="","",Four!AL51) -> 0.007627797303
K25: =Four!AE52 -> Commodity 3 | L25: =IF(Four!AE52="","",Four!AI52) -> 177009.86 | M25: =IF(Four!AE52="","",Four!AN52) -> 0.004886828787 | N25: =IF(Four!AE52="","",Four!AJ52) -> 0 | O25: =IF(Four!AE52="","",Four!AK52) -> 1 | P25: =IF(Four!AE52="","",Four!AL52) -> 0
K26: =Four!AE53 -> Commodity 16 | L26: =IF(Four!AE53="","",Four!AI53) -> 43635.96 | M26: =IF(Four!AE53="","",Four!AN53) -> 0.001204686934 | N26: =IF(Four!AE53="","",Four!AJ53) -> 0 | O26: =IF(Four!AE53="","",Four!AK53) -> 1 | P26: =IF(Four!AE53="","",Four!AL53) -> 0
K27: =Four!AE54 -> Commodity 14 | L27: =IF(Four!AE54="","",Four!AI54) -> 25598.26 | M27: =IF(Four!AE54="","",Four!AN54) -> 0.0007067081679 | N27: =IF(Four!AE54="","",Four!AJ54) -> 0 | O27: =IF(Four!AE54="","",Four!AK54) -> 1 | P27: =IF(Four!AE54="","",Four!AL54) -> 0
K28: =Four!AE55 -> Commodity 11 | L28: =IF(Four!AE55="","",Four!AI55) -> 10479.26 | M28: =IF(Four!AE55="","",Four!AN55) -> 0.0002893078919 | N28: =IF(Four!AE55="","",Four!AJ55) -> 0 | O28: =IF(Four!AE55="","",Four!AK55) -> 1 | P28: =IF(Four!AE55="","",Four!AL55) -> 0
K29: =Four!AE56 -> Commodity 12 | L29: =IF(Four!AE56="","",Four!AI56) -> 9255.32 | M29: =IF(Four!AE56="","",Four!AN56) -> 0.0002555177673 | N29: =IF(Four!AE56="","",Four!AJ56) -> 0 | O29: =IF(Four!AE56="","",Four!AK56) -> 1 | P29: =IF(Four!AE56="","",Four!AL56) -> 0
K30: =Four!AE57 -> Commodity 8 | L30: =IF(Four!AE57="","",Four!AI57) -> 6817.48 | M30: =IF(Four!AE57="","",Four!AN57) -> 0.000188214699 | N30: =IF(Four!AE57="","",Four!AJ57) -> 0 | O30: =IF(Four!AE57="","",Four!AK57) -> 1 | P30: =IF(Four!AE57="","",Four!AL57) -> 0
K31: =Four!AE58 -> Commodity 13 | L31: =IF(Four!AE58="","",Four!AI58) -> 6403.55 | M31: =IF(Four!AE58="","",Four!AN58) -> 0.0001767870585 | N31: =IF(Four!AE58="","",Four!AJ58) -> 0 | O31: =IF(Four!AE58="","",Four!AK58) -> 1 | P31: =IF(Four!AE58="","",Four!AL58) -> 0
K32: =Four!AE59 -> Commodity 9 | L32: =IF(Four!AE59="","",Four!AI59) -> 2518.22 | M32: =IF(Four!AE59="","",Four!AN59) -> 6.952217231e-05 | N32: =IF(Four!AE59="","",Four!AJ59) -> 1 | O32: =IF(Four!AE59="","",Four!AK59) -> 0 | P32: =IF(Four!AE59="","",Four!AL59) -> 0
K33: =Four!AE60 -> Commodity 6 | L33: =IF(Four!AE60="","",Four!AI60) -> 1358.54 | M33: =IF(Four!AE60="","",Four!AN60) -> 3.750611621e-05 | N33: =IF(Four!AE60="","",Four!AJ60) -> 0 | O33: =IF(Four!AE60="","",Four!AK60) -> 1 | P33: =IF(Four!AE60="","",Four!AL60) -> 0
K35: Top 15 grades transacted over the period 2007-2011
K36: Grade | L36: Grain Vol. (TN) | M36: % Share | N36: CASH | O36: CONTRACT | P36: POOL
K38: =Four!I45 -> Grade 27 | L38: =IF(Four!I45="","",Four!M45) -> 3106094.42 | M38: =IF(Four!I45="","",Four!R45) -> 0.08575201193 | N38: =IF(Four!I45="","",Four!N45) -> 0.00475963316 | O38: =IF(Four!I45="","",Four!O45) -> 0.9698634693 | P38: =IF(Four!I45="","",Four!P45) -> 0.02537689759
K39: =Four!I46 -> Grade 6 | L39: =IF(Four!I46="","",Four!M46) -> 2636201.58 | M39: =IF(Four!I46="","",Four!R46) -> 0.07277936816 | N39: =IF(Four!I46="","",Four!N46) -> 0.1265826531 | O39: =IF(Four!I46="","",Four!O46) -> 0.7055800035 | P39: =IF(Four!I46="","",Four!P46) -> 0.1678373435
K40: =Four!I47 -> Grade 173 | L40: =IF(Four!I47="","",Four!M47) -> 2630971.2 | M40: =IF(Four!I47="","",Four!R47) -> 0.07263496959 | N40: =IF(Four!I47="","",Four!N47) -> 0.1647733506 | O40: =IF(Four!I47="","",Four!O47) -> 0.6350375443 | P40: =IF(Four!I47="","",Four!P47) -> 0.2001891051
K41: =Four!I48 -> Grade 5 | L41: =IF(Four!I48="","",Four!M48) -> 2587401.298 | M41: =IF(Four!I48="","",Four!R48) -> 0.07143210636 | N41: =IF(Four!I48="","",Four!N48) -> 0.1163862715 | O41: =IF(Four!I48="","",Four!O48) -> 0.7549381804 | P41: =IF(Four!I48="","",Four!P48) -> 0.128675548
K42: =Four!I49 -> Grade 178 | L42: =IF(Four!I49="","",Four!M49) -> 2308328.32 | M42: =IF(Four!I49="","",Four!R49) -> 0.06372755328 | N42: =IF(Four!I49="","",Four!N49) -> 0.06862587034 | O42: =IF(Four!I49="","",Four!O49) -> 0.8126212219 | P42: =IF(Four!I49="","",Four!P49) -> 0.1187529077
B43: Regional Transaction Pattern over the period 2007-2011 | K43: =Four!I50 -> Grade 4 | L43: =IF(Four!I50="","",Four!M50) -> 2299586.75 | M43: =IF(Four!I50="","",Four!R50) -> 0.06348621895 | N43: =IF(Four!I50="","",Four!N50) -> 0.06831975789 | O43: =IF(Four!I50="","",Four!O50) -> 0.8611825755 | P43: =IF(Four!I50="","",Four!P50) -> 0.07049766659
B44: Region | C44: 2007 | D44: 2008 | E44: 2009 | F44: 2010 | G44: 2011 | H44: Average | K44: =Four!I51 -> Grade 10 | L44: =IF(Four!I51="","",Four!M51) -> 2264550.88 | M44: =IF(Four!I51="","",Four!R51) -> 0.06251896041 | N44: =IF(Four!I51="","",Four!N51) -> 0.1406268999 | O44: =IF(Four!I51="","",Four!O51) -> 0.7756925073 | P44: =IF(Four!I51="","",Four!P51) -> 0.08368059277
B45: Region 1 | C45: =Four!P9 -> 0.05601354694 | D45: =Four!Q9 -> 0.1907824722 | E45: =Four!R9 -> 0.1672569122 | F45: =Four!S9 -> 0.1891997114 | G45: =Four!T9 -> 0.1686118863 | H45: =Four!U9 -> 0.168228666 | K45: =Four!I52 -> Grade 9 | L45: =IF(Four!I52="","",Four!M52) -> 2088467.4 | M45: =IF(Four!I52="","",Four!R52) -> 0.05765770681 | N45: =IF(Four!I52="","",Four!N52) -> 0.08655295266 | O45: =IF(Four!I52="","",Four!O52) -> 0.8413789413 | P45: =IF(Four!I52="","",Four!P52) -> 0.07206810602
B46: Region 2 | C46: =Four!P10 -> 0.4313404102 | D46: =Four!Q10 -> 0.3131476223 | E46: =Four!R10 -> 0.1505840281 | F46: =Four!S10 -> 0.1416316659 | G46: =Four!T10 -> 0.1568751165 | H46: =Four!U10 -> 0.2082061533 | K46: =Four!I53 -> Grade 7 | L46: =IF(Four!I53="","",Four!M53) -> 1776454.89 | M46: =IF(Four!I53="","",Four!R53) -> 0.04904377019 | N46: =IF(Four!I53="","",Four!N53) -> 0.07850477982 | O46: =IF(Four!I53="","",Four!O53) -> 0.8597535623 | P46: =IF(Four!I53="","",Four!P53) -> 0.06174165785
B47: Region 3 | C47: =Four!P11 -> 0.2510993724 | D47: =Four!Q11 -> 0.3517858782 | E47: =Four!R11 -> 0.3314511685 | F47: =Four!S11 -> 0.1491045795 | G47: =Four!T11 -> 0.1603896254 | H47: =Four!U11 -> 0.2219912677 | K47: =Four!I54 -> Grade 160 | L47: =IF(Four!I54="","",Four!M54) -> 1752433.34 | M47: =IF(Four!I54="","",Four!R54) -> 0.0483805913 | N47: =IF(Four!I54="","",Four!N54) -> 0.2372135136 | O47: =IF(Four!I54="","",Four!O54) -> 0.6823678497 | P47: =IF(Four!I54="","",Four!P54) -> 0.08041863664
B48: Region 4 | C48: =Four!P12 -> 0.1610344441 | D48: =Four!Q12 -> 0.04472553874 | E48: =Four!R12 -> 0.1753704732 | F48: =Four!S12 -> 0.1911019162 | G48: =Four!T12 -> 0.1802224627 | H48: =Four!U12 -> 0.1570865266 | K48: =Four!I55 -> Grade 3 | L48: =IF(Four!I55="","",Four!M55) -> 1728257.5 | M48: =IF(Four!I55="","",Four!R55) -> 0.04771315283 | N48: =IF(Four!I55="","",Four!N55) -> 0.1956981468 | O48: =IF(Four!I55="","",Four!O55) -> 0.6705399803 | P48: =IF(Four!I55="","",Four!P55) -> 0.1337618729
B49: Region 5 | C49: =Four!P13 -> 0.05207443645 | D49: =Four!Q13 -> 0.02842623738 | E49: =Four!R13 -> 0.08035944346 | F49: =Four!S13 -> 0.1007737905 | G49: =Four!T13 -> 0.1154731615 | H49: =Four!U13 -> 0.08281637828 | K49: =Four!I56 -> Grade 166 | L49: =IF(Four!I56="","",Four!M56) -> 1469093.9 | M49: =IF(Four!I56="","",Four!R56) -> 0.04055825117 | N49: =IF(Four!I56="","",Four!N56) -> 0.1807154805 | O49: =IF(Four!I56="","",Four!O56) -> 0.7992444731 | P49: =IF(Four!I56="","",Four!P56) -> 0.02004004645
B50: Region 6 | C50: =Four!P14 -> 0.0334512054 | D50: =Four!Q14 -> 0.02061135575 | E50: =Four!R14 -> 0.03829439121 | F50: =Four!S14 -> 0.03705668488 | G50: =Four!T14 -> 0.02866682878 | H50: =Four!U14 -> 0.0321306453 | K50: =Four!I57 -> Grade 179 | L50: =IF(Four!I57="","",Four!M57) -> 1264181.02 | M50: =IF(Four!I57="","",Four!R57) -> 0.03490108517 | N50: =IF(Four!I57="","",Four!N57) -> 0.1782977805 | O50: =IF(Four!I57="","",Four!O57) -> 0.7070739521 | P50: =IF(Four!I57="","",Four!P57) -> 0.1146282674
B51: Region 7 | C51: =Four!P15 -> 0.01498658459 | D51: =Four!Q15 -> 0.05052089548 | E51: =Four!R15 -> 0.05668358328 | F51: =Four!S15 -> 0.1911316516 | G51: =Four!T15 -> 0.1897609188 | H51: =Four!U15 -> 0.1295403629 | K51: =Four!I58 -> Grade 172 | L51: =IF(Four!I58="","",Four!M58) -> 1250592.49 | M51: =IF(Four!I58="","",Four!R58) -> 0.0345259376 | N51: =IF(Four!I58="","",Four!N58) -> 0.002456811491 | O51: =IF(Four!I58="","",Four!O58) -> 0.9847166042 | P51: =IF(Four!I58="","",Four!P58) -> 0.0128265843
B52: Grand Total | C52: =Four!P16 -> 3899306.72 | D52: =Four!Q16 -> 6583479.11 | E52: =Four!R16 -> 4524543.53 | F52: =Four!S16 -> 13859918.17 | G52: =Four!T16 -> 7354578.06 | H52: =Four!U16 -> 36221825.59 | K52: =Four!I59 -> Grade 1 | L52: =IF(Four!I59="","",Four!M59) -> 705615.16 | M52: =IF(Four!I59="","",Four!R59) -> 0.01948038644 | N52: =IF(Four!I59="","",Four!N59) -> 0.228626508 | O52: =IF(Four!I59="","",Four!O59) -> 0.7344779412 | P52: =IF(Four!I59="","",Four!P59) -> 0.03689555083

Sheet Trend5-Commodity
K16: Top 15 Buyers over the period 2007-2011
K17: Buyer | L17: Grain Vol. (TN) | M17: % Share | N17: CASH | O17: CONTRACT | P17: POOL
K19: =Five!I52 -> Category 6 | L19: =IF(Five!I52="","",Five!M52) -> 7937901.42 | M19: =IF(Five!I52="","",Five!R52) -> 0.2191469174 | N19: =IF(Five!I52="","",Five!N52) -> 0.1709271315 | O19: =IF(Five!I52="","",Five!O52) -> 0.6767066087 | P19: =IF(Five!I52="","",Five!P52) -> 0.1523662598
K20: =Five!I53 -> Category 2 | L20: =IF(Five!I53="","",Five!M53) -> 6789583.24 | M20: =IF(Five!I53="","",Five!R53) -> 0.1874445346 | N20: =IF(Five!I53="","",Five!N53) -> 0.08496443885 | O20: =IF(Five!I53="","",Five!O53) -> 0.8493171593 | P20: =IF(Five!I53="","",Five!P53) -> 0.06571840189
K21: =Five!I54 -> Category 65 | L21: =IF(Five!I54="","",Five!M54) -> 2628984.418 | M21: =IF(Five!I54="","",Five!R54) -> 0.07258011918 | N21: =IF(Five!I54="","",Five!N54) -> 0.07078495358 | O21: =IF(Five!I54="","",Five!O54) -> 0.9292150464 | P21: =IF(Five!I54="","",Five!P54) -> 0
K22: =Five!I55 -> Category 5 | L22: =IF(Five!I55="","",Five!M55) -> 2345750.075 | M22: =IF(Five!I55="","",Five!R55) -> 0.06476068053 | N22: =IF(Five!I55="","",Five!N55) -> 0.2207406004 | O22: =IF(Five!I55="","",Five!O55) -> 0.7792593996 | P22: =IF(Five!I55="","",Five!P55) -> 0
K23: =Five!I56 -> Category 23 | L23: =IF(Five!I56="","",Five!M56) -> 1659531.26 | M23: =IF(Five!I56="","",Five!R56) -> 0.04581578187 | N23: =IF(Five!I56="","",Five!N56) -> 0.272722606 | O23: =IF(Five!I56="","",Five!O56) -> 0.727277394 | P23: =IF(Five!I56="","",Five!P56) -> 0
K24: =Five!I57 -> Category 31 | L24: =IF(Five!I57="","",Five!M57) -> 1322871.6 | M24: =IF(Five!I57="","",Five!R57) -> 0.036521395 | N24: =IF(Five!I57="","",Five!N57) -> 0 | O24: =IF(Five!I57="","",Five!O57) -> 1 | P24: =IF(Five!I57="","",Five!P57) -> 0
K25: =Five!I58 -> Category 4 | L25: =IF(Five!I58="","",Five!M58) -> 1320874.1 | M25: =IF(Five!I58="","",Five!R58) -> 0.03646624869 | N25: =IF(Five!I58="","",Five!N58) -> 0.132149862 | O25: =IF(Five!I58="","",Five!O58) -> 0.867850138 | P25: =IF(Five!I58="","",Five!P58) -> 0
K26: =Five!I59 -> Category 1799 | L26: =IF(Five!I59="","",Five!M59) -> 1056779.145 | M26: =IF(Five!I59="","",Five!R59) -> 0.02917520384 | N26: =IF(Five!I59="","",Five!N59) -> 0.231024894 | O26: =IF(Five!I59="","",Five!O59) -> 0.7604156543 | P26: =IF(Five!I59="","",Five!P59) -> 0.008559451653
K27: =Five!I60 -> Category 1 | L27: =IF(Five!I60="","",Five!M60) -> 1017184.76 | M27: =IF(Five!I60="","",Five!R60) -> 0.02808209535 | N27: =IF(Five!I60="","",Five!N60) -> 0.1235490296 | O27: =IF(Five!I60="","",Five!O60) -> 0.8764509704 | P27: =IF(Five!I60="","",Five!P60) -> 0
K28: =Five!I61 -> Category 737 | L28: =IF(Five!I61="","",Five!M61) -> 819655.76 | M28: =IF(Five!I61="","",Five!R61) -> 0.02262878104 | N28: =IF(Five!I61="","",Five!N61) -> 0 | O28: =IF(Five!I61="","",Five!O61) -> 1 | P28: =IF(Five!I61="","",Five!P61) -> 0
B29: Top Buyers over the period 2007-2011 | K29: =Five!I62 -> Category 736 | L29: =IF(Five!I62="","",Five!M62) -> 790012.7 | M29: =IF(Five!I62="","",Five!R62) -> 0.02181040539 | N29: =IF(Five!I62="","",Five!N62) -> 0 | O29: =IF(Five!I62="","",Five!O62) -> 0.08685116075 | P29: =IF(Five!I62="","",Five!P62) -> 0.9131488393
B30: Top 10 Buyers | C30: 2007 | D30: 2008 | E30: 2009 | F30: 2010 | G30: 2011 | H30: Average | K30: =Five!I63 -> Category 723 | L30: =IF(Five!I63="","",Five!M63) -> 685967.76 | M30: =IF(Five!I63="","",Five!R63) -> 0.01893796762 | N30: =IF(Five!I63="","",Five!N63) -> 0 | O30: =IF(Five!I63="","",Five!O63) -> 0.01441330129 | P30: =IF(Five!I63="","",Five!P63) -> 0.9855866987
B31: =Five!I23 -> Buyer 3 | C31: =Five!P23 -> 0.2325176282 | D31: =Five!Q23 -> 0.2070629871 | E31: =Five!R23 -> 0.3124567861 | F31: =Five!S23 -> 0.2589991836 | G31: =Five!T23 -> 0.2826904049 | H31: =Five!U23 -> 0.2581966181 | K31: =Five!I64 -> Category 1158 | L31: =IF(Five!I64="","",Five!M64) -> 512661.72 | M31: =IF(Five!I64="","",Five!R64) -> 0.01415339265 | N31: =IF(Five!I64="","",Five!N64) -> 0 | O31: =IF(Five!I64="","",Five!O64) -> 0.9271492711 | P31: =IF(Five!I64="","",Five!P64) -> 0.07285072894
B32: =Five!I24 -> Buyer 6 | C32: =Five!P24 -> 0.2181774662 | D32: =Five!Q24 -> 0.2351823898 | E32: =Five!R24 -> 0.1992077641 | F32: =Five!S24 -> 0.2368691049 | G32: =Five!T24 -> 0.1841752972 | H32: =Five!U24 -> 0.2191469174 | K32: =Five!I65 -> Category 1798 | L32: =IF(Five!I65="","",Five!M65) -> 486087.33 | M32: =IF(Five!I65="","",Five!R65) -> 0.01341973581 | N32: =IF(Five!I65="","",Five!N65) -> 0.05029931556 | O32: =IF(Five!I65="","",Five!O65) -> 0.9497006844 | P32: =IF(Five!I65="","",Five!P65) -> 0
B33: =Five!I25 -> Buyer 2 | C33: =Five!P25 -> 0.1633925556 | D33: =Five!Q25 -> 0.1683426759 | E33: =Five!R25 -> 0.1665656447 | F33: =Five!S25 -> 0.1986173747 | G33: =Five!T25 -> 0.209084869 | H33: =Five!U25 -> 0.1874445346 | K33: =Five!I66 -> Category 1905 | L33: =IF(Five!I66="","",Five!M66) -> 456447.91 | M33: =IF(Five!I66="","",Five!R66) -> 0.01260146066 | N33: =IF(Five!I66="","",Five!N66) -> 0.007700462469 | O33: =IF(Five!I66="","",Five!O66) -> 0.9876116861 | P33: =IF(Five!I66="","",Five!P66) -> 0.004687851457
B34: =Five!I26 -> Buyer 9 | C34: =Five!P26 -> 0.01500976563 | D34: =Five!Q26 -> 0.05980373803 | E34: =Five!R26 -> 0.08841724858 | F34: =Five!S26 -> 0.0874714088 | G34: =Five!T26 -> 0.0767339493 | H34: =Five!U26 -> 0.07258011918
B35: =Five!I27 -> Buyer 5 | C35: =Five!P27 -> 0.0374325516 | D35: =Five!Q27 -> 0.03415813983 | E35: =Five!R27 -> 0.02778983762 | F35: =Five!S27 -> 0.08633371428 | G35: =Five!T27 -> 0.08873318424 | H35: =Five!U27 -> 0.06476068053 | K35: Top 15 grades transacted over the period 2007-2011
B36: =Five!I28 -> Buyer 7 | C36: =Five!P28 -> 0.05249452908 | D36: =Five!Q28 -> 0.08856415434 | E36: =Five!R28 -> 0.0380867327 | F36: =Five!S28 -> 0.0399013669 | G36: =Five!T28 -> 0.0199092278 | H36: =Five!U28 -> 0.04581578187 | K36: Grade | L36: Grain Vol. (TN) | M36: % Share | N36: CASH | O36: CONTRACT | P36: POOL
B37: =Five!I29 -> Buyer 8 | C37: =Five!P29 -> 0.08581299293 | D37: =Five!Q29 -> 0.04965871609 | E37: =Five!R29 -> 0.03608984396 | F37: =Five!S29 -> 0.02561995574 | G37: =Five!T29 -> 0.0194372456 | H37: =Five!U29 -> 0.036521395
B38: =Five!I30 -> Buyer 4 | C38: =Five!P30 -> 0.06245199147 | D38: =Five!Q30 -> 0.1057592359 | E38: =Five!R30 -> 0.08422748228 | F38: =Five!S30 -> 0 | G38: =Five!T30 -> 0 | H38: =Five!U30 -> 0.03646624869 | K38: =Five!AE52 -> Grade 27 | L38: =IF(Five!AE52="","",Five!AI52) -> 3106094.42 | M38: =IF(Five!AE52="","",Five!AN52) -> 0.08575201193 | N38: =IF(Five!AE52="","",Five!AJ52) -> 0.00475963316 | O38: =IF(Five!AE52="","",Five!AK52) -> 0.9698634693 | P38: =IF(Five!AE52="","",Five!AL52) -> 0.02537689759
B39: =Five!I31 -> Buyer 11 | C39: =Five!P31 -> 0 | D39: =Five!Q31 -> 0 | E39: =Five!R31 -> 0.004774680552 | F39: =Five!S31 -> 0.04270983839 | G39: =Five!T31 -> 0.0602646442 | H39: =Five!U31 -> 0.02917520384 | K39: =Five!AE53 -> Grade 6 | L39: =IF(Five!AE53="","",Five!AI53) -> 2636201.58 | M39: =IF(Five!AE53="","",Five!AN53) -> 0.07277936816 | N39: =IF(Five!AE53="","",Five!AJ53) -> 0.1265826531 | O39: =IF(Five!AE53="","",Five!AK53) -> 0.7055800035 | P39: =IF(Five!AE53="","",Five!AL53) -> 0.1678373435
B40: =Five!I32 -> Buyer 1 | C40: =Five!P32 -> 0.1327105194 | D40: =Five!Q32 -> 0.05120204597 | E40: =Five!R32 -> 0.03594133616 | F40: =Five!S32 -> 0 | G40: =Five!T32 -> 0 | H40: =Five!U32 -> 0.02808209535 | K40: =Five!AE54 -> Grade 173 | L40: =IF(Five!AE54="","",Five!AI54) -> 2630971.2 | M40: =IF(Five!AE54="","",Five!AN54) -> 0.07263496959 | N40: =IF(Five!AE54="","",Five!AJ54) -> 0.1647733506 | O40: =IF(Five!AE54="","",Five!AK54) -> 0.6350375443 | P40: =IF(Five!AE54="","",Five!AL54) -> 0.2001891051
B41: =Five!I33 -> Buyer 10 | C41: =Five!P33 -> 0 | D41: =Five!Q33 -> 0.0002659171497 | E41: =Five!R33 -> 0.006442643287 | F41: =Five!S33 -> 0.02347805276 | G41: =Five!T33 -> 0.05897117774 | H41: =Five!U33 -> 0.02181040539 | K41: =Five!AE55 -> Grade 5 | L41: =IF(Five!AE55="","",Five!AI55) -> 2587401.298 | M41: =IF(Five!AE55="","",Five!AN55) -> 0.07143210636 | N41: =IF(Five!AE55="","",Five!AJ55) -> 0.1163862715 | O41: =IF(Five!AE55="","",Five!AK55) -> 0.7549381804 | P41: =IF(Five!AE55="","",Five!AL55) -> 0.128675548
B42: Grand Total | C42: =Five!P34 -> 3899306.72 | D42: =Five!Q34 -> 6583479.11 | E42: =Five!R34 -> 4524543.53 | F42: =Five!S34 -> 13859918.17 | G42: =Five!T34 -> 7354578.06 | H42: =Five!U34 -> 36221825.59 | K42: =Five!AE56 -> Grade 178 | L42: =IF(Five!AE56="","",Five!AI56) -> 2308328.32 | M42: =IF(Five!AE56="","",Five!AN56) -> 0.06372755328 | N42: =IF(Five!AE56="","",Five!AJ56) -> 0.06862587034 | O42: =IF(Five!AE56="","",Five!AK56) -> 0.8126212219 | P42: =IF(Five!AE56="","",Five!AL56) -> 0.1187529077
B43: Regional Transaction Pattern over the period 2007-2011 | K43: =Five!AE57 -> Grade 4 | L43: =IF(Five!AE57="","",Five!AI57) -> 2299586.75 | M43: =IF(Five!AE57="","",Five!AN57) -> 0.06348621895 | N43: =IF(Five!AE57="","",Five!AJ57) -> 0.06831975789 | O43: =IF(Five!AE57="","",Five!AK57) -> 0.8611825755 | P43: =IF(Five!AE57="","",Five!AL57) -> 0.07049766659
B44: Region | C44: 2007 | D44: 2008 | E44: 2009 | F44: 2010 | G44: 2011 | H44: Average | K44: =Five!AE58 -> Grade 10 | L44: =IF(Five!AE58="","",Five!AI58) -> 2264550.88 | M44: =IF(Five!AE58="","",Five!AN58) -> 0.06251896041 | N44: =IF(Five!AE58="","",Five!AJ58) -> 0.1406268999 | O44: =IF(Five!AE58="","",Five!AK58) -> 0.7756925073 | P44: =IF(Five!AE58="","",Five!AL58) -> 0.08368059277
B45: Region 1 | C45: =Five!P9 -> 0.05601354694 | D45: =Five!Q9 -> 0.1907824722 | E45: =Five!R9 -> 0.1672569122 | F45: =Five!S9 -> 0.1891997114 | G45: =Five!T9 -> 0.1686118863 | H45: =Five!U9 -> 0.168228666 | K45: =Five!AE59 -> Grade 9 | L45: =IF(Five!AE59="","",Five!AI59) -> 2088467.4 | M45: =IF(Five!AE59="","",Five!AN59) -> 0.05765770681 | N45: =IF(Five!AE59="","",Five!AJ59) -> 0.08655295266 | O45: =IF(Five!AE59="","",Five!AK59) -> 0.8413789413 | P45: =IF(Five!AE59="","",Five!AL59) -> 0.07206810602
B46: Region 2 | C46: =Five!P10 -> 0.4313404102 | D46: =Five!Q10 -> 0.3131476223 | E46: =Five!R10 -> 0.1505840281 | F46: =Five!S10 -> 0.1416316659 | G46: =Five!T10 -> 0.1568751165 | H46: =Five!U10 -> 0.2082061533 | K46: =Five!AE60 -> Grade 7 | L46: =IF(Five!AE60="","",Five!AI60) -> 1776454.89 | M46: =IF(Five!AE60="","",Five!AN60) -> 0.04904377019 | N46: =IF(Five!AE60="","",Five!AJ60) -> 0.07850477982 | O46: =IF(Five!AE60="","",Five!AK60) -> 0.8597535623 | P46: =IF(Five!AE60="","",Five!AL60) -> 0.06174165785
B47: Region 3 | C47: =Five!P11 -> 0.2510993724 | D47: =Five!Q11 -> 0.3517858782 | E47: =Five!R11 -> 0.3314511685 | F47: =Five!S11 -> 0.1491045795 | G47: =Five!T11 -> 0.1603896254 | H47: =Five!U11 -> 0.2219912677 | K47: =Five!AE61 -> Grade 160 | L47: =IF(Five!AE61="","",Five!AI61) -> 1752433.34 | M47: =IF(Five!AE61="","",Five!AN61) -> 0.0483805913 | N47: =IF(Five!AE61="","",Five!AJ61) -> 0.2372135136 | O47: =IF(Five!AE61="","",Five!AK61) -> 0.6823678497 | P47: =IF(Five!AE61="","",Five!AL61) -> 0.08041863664
B48: Region 4 | C48: =Five!P12 -> 0.1610344441 | D48: =Five!Q12 -> 0.04472553874 | E48: =Five!R12 -> 0.1753704732 | F48: =Five!S12 -> 0.1911019162 | G48: =Five!T12 -> 0.1802224627 | H48: =Five!U12 -> 0.1570865266 | K48: =Five!AE62 -> Grade 3 | L48: =IF(Five!AE62="","",Five!AI62) -> 1728257.5 | M48: =IF(Five!AE62="","",Five!AN62) -> 0.04771315283 | N48: =IF(Five!AE62="","",Five!AJ62) -> 0.1956981468 | O48: =IF(Five!AE62="","",Five!AK62) -> 0.6705399803 | P48: =IF(Five!AE62="","",Five!AL62) -> 0.1337618729
B49: Region 5 | C49: =Five!P13 -> 0.05207443645 | D49: =Five!Q13 -> 0.02842623738 | E49: =Five!R13 -> 0.08035944346 | F49: =Five!S13 -> 0.1007737905 | G49: =Five!T13 -> 0.1154731615 | H49: =Five!U13 -> 0.08281637828 | K49: =Five!AE63 -> Grade 166 | L49: =IF(Five!AE63="","",Five!AI63) -> 1469093.9 | M49: =IF(Five!AE63="","",Five!AN63) -> 0.04055825117 | N49: =IF(Five!AE63="","",Five!AJ63) -> 0.1807154805 | O49: =IF(Five!AE63="","",Five!AK63) -> 0.7992444731 | P49: =IF(Five!AE63="","",Five!AL63) -> 0.02004004645
B50: Region 6 | C50: =Five!P14 -> 0.0334512054 | D50: =Five!Q14 -> 0.02061135575 | E50: =Five!R14 -> 0.03829439121 | F50: =Five!S14 -> 0.03705668488 | G50: =Five!T14 -> 0.02866682878 | H50: =Five!U14 -> 0.0321306453 | K50: =Five!AE64 -> Grade 179 | L50: =IF(Five!AE64="","",Five!AI64) -> 1264181.02 | M50: =IF(Five!AE64="","",Five!AN64) -> 0.03490108517 | N50: =IF(Five!AE64="","",Five!AJ64) -> 0.1782977805 | O50: =IF(Five!AE64="","",Five!AK64) -> 0.7070739521 | P50: =IF(Five!AE64="","",Five!AL64) -> 0.1146282674
B51: Region 7 | C51: =Five!P15 -> 0.01498658459 | D51: =Five!Q15 -> 0.05052089548 | E51: =Five!R15 -> 0.05668358328 | F51: =Five!S15 -> 0.1911316516 | G51: =Five!T15 -> 0.1897609188 | H51: =Five!U15 -> 0.1295403629 | K51: =Five!AE65 -> Grade 172 | L51: =IF(Five!AE65="","",Five!AI65) -> 1250592.49 | M51: =IF(Five!AE65="","",Five!AN65) -> 0.0345259376 | N51: =IF(Five!AE65="","",Five!AJ65) -> 0.002456811491 | O51: =IF(Five!AE65="","",Five!AK65) -> 0.9847166042 | P51: =IF(Five!AE65="","",Five!AL65) -> 0.0128265843
B52: Grand Total | C52: =Five!P16 -> 3899306.72 | D52: =Five!Q16 -> 6583479.11 | E52: =Five!R16 -> 4524543.53 | F52: =Five!S16 -> 13859918.17 | G52: =Five!T16 -> 7354578.06 | H52: =Five!U16 -> 36221825.59 | K52: =Five!AE66 -> Grade 1 | L52: =IF(Five!AE66="","",Five!AI66) -> 705615.16 | M52: =IF(Five!AE66="","",Five!AN66) -> 0.01948038644 | N52: =IF(Five!AE66="","",Five!AJ66) -> 0.228626508 | O52: =IF(Five!AE66="","",Five!AK66) -> 0.7344779412 | P52: =IF(Five!AE66="","",Five!AL66) -> 0.03689555083

Sheet One (hidden)
M1: Count | N1: =COUNTA(M2:M22)-COUNTBLANK(M2:M22) -> 21
A2: Region | B2: (All) | J2: All | K2: 1 | M2: =IF(ISERROR(VLOOKUP($L$3&P2,Map!$A$1:$C$51,3,FALSE)),"",VLOOKUP($L$3&P2,Map!$A$1:$C$51,3,FALSE)) -> All | N2: 1 | P2: 1 | Q2: All | R2: 1 | T2: All | U2: 1
A3: Operational Area | B3: (All) | J3: Region 1 | K3: Region | L3: =INDEX($J$2:$J$9,K2) -> All | M3: =IF(ISERROR(VLOOKUP($L$3&P3,Map!$A$1:$C$51,3,FALSE)),"",VLOOKUP($L$3&P3,Map!$A$1:$C$51,3,FALSE)) -> Area 1 | N3: Operational Area | O3: =INDEX($M$2:$M$22,N2) -> All | P3: 2 | Q3: Commodity 1 | R3: Commodity | S3: =INDEX($Q$2:$Q$21,R2) -> All | T3: Option 1 | U3: Sell Options | V3: =INDEX($T$2:$T$5,U2) -> All
A4: Commodity | B4: (All) | J4: Region 2 | M4: =IF(ISERROR(VLOOKUP($L$3&P4,Map!$A$1:$C$51,3,FALSE)),"",VLOOKUP($L$3&P4,Map!$A$1:$C$51,3,FALSE)) -> Area 2 | P4: 3 | Q4: Commodity 2 | T4: Option 2
A5: Grade | B5: (All) | J5: Region 3 | M5: =IF(ISERROR(VLOOKUP($L$3&P5,Map!$A$1:$C$51,3,FALSE)),"",VLOOKUP($L$3&P5,Map!$A$1:$C$51,3,FALSE)) -> Area 3 | P5: 4 | Q5: Commodity 3 | T5: Option 3
A6: Sell Options | B6: (All) | J6: Region 4 | M6: =IF(ISERROR(VLOOKUP($L$3&P6,Map!$A$1:$C$51,3,FALSE)),"",VLOOKUP($L$3&P6,Map!$A$1:$C$51,3,FALSE)) -> Area 4 | P6: 5 | Q6: Commodity 4
J7: Region 5 | M7: =IF(ISERROR(VLOOKUP($L$3&P7,Map!$A$1:$C$51,3,FALSE)),"",VLOOKUP($L$3&P7,Map!$A$1:$C$51,3,FALSE)) -> Area 5 | P7: 6 | Q7: Commodity 5
A8: Sum of Bought Tonnes (unshrunk) | B8: Column Labels | J8: Region 6 | M8: =IF(ISERROR(VLOOKUP($L$3&P8,Map!$A$1:$C$51,3,FALSE)),"",VLOOKUP($L$3&P8,Map!$A$1:$C$51,3,FALSE)) -> Area 6 | P8: 7 | Q8: Commodity 6
A9: Row Labels | B9: 07 | C9: 08 | D9: 09 | E9: 10 | F9: 11 | G9: Grand Total | J9: Region 7 | M9: =IF(ISERROR(VLOOKUP($L$3&P9,Map!$A$1:$C$51,3,FALSE)),"",VLOOKUP($L$3&P9,Map!$A$1:$C$51,3,FALSE)) -> Area 7 | P9: 8 | Q9: Commodity 7
A10: Buyer 3 | B10: 906657.55 | C10: 1363194.85 | D10: 1413724.33 | E10: 3589707.49 | F10: 2079068.65 | G10: 9352352.87 | M10: =IF(ISERROR(VLOOKUP($L$3&P10,Map!$A$1:$C$51,3,FALSE)),"",VLOOKUP($L$3&P10,Map!$A$1:$C$51,3,FALSE)) -> Area 8 | P10: 9 | Q10: Commodity 8
A11: Buyer 6 | B11: 850740.86 | C11: 1548318.35 | D11: 901324.2 | E11: 3282986.41 | F11: 1354531.6 | G11: 7937901.42 | M11: =IF(ISERROR(VLOOKUP($L$3&P11,Map!$A$1:$C$51,3,FALSE)),"",VLOOKUP($L$3&P11,Map!$A$1:$C$51,3,FALSE)) -> Area 9 | P11: 10 | Q11: Commodity 9
A12: Buyer 2 | B12: 637117.69 | C12: 1108280.49 | D12: 753633.51 | E12: 2752820.56 | F12: 1537730.99 | G12: 6789583.24 | M12: =IF(ISERROR(VLOOKUP($L$3&P12,Map!$A$1:$C$51,3,FALSE)),"",VLOOKUP($L$3&P12,Map!$A$1:$C$51,3,FALSE)) -> Area 10 | P12: 11 | Q12: Commodity 10
A13: Buyer 9 | B13: 58527.68 | C13: 393716.66 | D13: 400047.69 | E13: 1212346.568 | F13: 564345.82 | G13: 2628984.418 | M13: =IF(ISERROR(VLOOKUP($L$3&P13,Map!$A$1:$C$51,3,FALSE)),"",VLOOKUP($L$3&P13,Map!$A$1:$C$51,3,FALSE)) -> Area 11 | P13: 12 | Q13: Commodity 11
A14: Buyer 5 | B14: 145961 | C14: 224879.4 | D14: 125736.33 | E14: 1196578.215 | F14: 652595.13 | G14: 2345750.075 | M14: =IF(ISERROR(VLOOKUP($L$3&P14,Map!$A$1:$C$51,3,FALSE)),"",VLOOKUP($L$3&P14,Map!$A$1:$C$51,3,FALSE)) -> Area 12 | P14: 13 | Q14: Commodity 12
A15: Buyer 7 | B15: 204692.27 | C15: 583060.26 | D15: 172325.08 | E15: 553029.68 | F15: 146423.97 | G15: 1659531.26 | M15: =IF(ISERROR(VLOOKUP($L$3&P15,Map!$A$1:$C$51,3,FALSE)),"",VLOOKUP($L$3&P15,Map!$A$1:$C$51,3,FALSE)) -> Area 13 | P15: 14 | Q15: Commodity 13
A16: Buyer 8 | B16: 334611.18 | C16: 326927.12 | D16: 163290.07 | E16: 355090.49 | F16: 142952.74 | G16: 1322871.6 | M16: =IF(ISERROR(VLOOKUP($L$3&P16,Map!$A$1:$C$51,3,FALSE)),"",VLOOKUP($L$3&P16,Map!$A$1:$C$51,3,FALSE)) -> Area 14 | P16: 15 | Q16: Commodity 14
A17: Buyer 4 | B17: 243519.47 | C17: 696263.72 | D17: 381090.91 | G17: 1320874.1 | M17: =IF(ISERROR(VLOOKUP($L$3&P17,Map!$A$1:$C$51,3,FALSE)),"",VLOOKUP($L$3&P17,Map!$A$1:$C$51,3,FALSE)) -> Area 15 | P17: 16 | Q17: Commodity 15
A18: Buyer 11 | D18: 21603.25 | E18: 591954.865 | F18: 443221.03 | G18: 1056779.145 | M18: =IF(ISERROR(VLOOKUP($L$3&P18,Map!$A$1:$C$51,3,FALSE)),"",VLOOKUP($L$3&P18,Map!$A$1:$C$51,3,FALSE)) -> Area 16 | P18: 17 | Q18: Commodity 16
A19: Buyer 1 | B19: 517479.02 | C19: 337087.6 | D19: 162618.14 | G19: 1017184.76 | M19: =IF(ISERROR(VLOOKUP($L$3&P19,Map!$A$1:$C$51,3,FALSE)),"",VLOOKUP($L$3&P19,Map!$A$1:$C$51,3,FALSE)) -> Area 17 | P19: 18 | Q19: Commodity 17
A20: Buyer 10 | C20: 1750.66 | D20: 29150.02 | E20: 325403.89 | F20: 433708.13 | G20: 790012.7 | M20: =IF(ISERROR(VLOOKUP($L$3&P20,Map!$A$1:$C$51,3,FALSE)),"",VLOOKUP($L$3&P20,Map!$A$1:$C$51,3,FALSE)) -> Area 18 | P20: 19 | Q20: Commodity 18
A21: Grand Total | B21: 3899306.72 | C21: 6583479.11 | D21: 4524543.53 | E21: 13859918.17 | F21: 7354578.06 | G21: 36221825.59 | M21: =IF(ISERROR(VLOOKUP($L$3&P21,Map!$A$1:$C$51,3,FALSE)),"",VLOOKUP($L$3&P21,Map!$A$1:$C$51,3,FALSE)) -> Area 19 | P21: 20 | Q21: Commodity 19
M22: =IF(ISERROR(VLOOKUP($L$3&P22,Map!$A$1:$C$51,3,FALSE)),"",VLOOKUP($L$3&P22,Map!$A$1:$C$51,3,FALSE)) -> Area 20 | P22: 21
A24: Market Share
A25: Season Year | B25: 2007 | C25: 2008 | D25: 2009 | E25: 2010 | F25: 2011 | G25: Grand Total
A26: =A44 -> Buyer 3 | B26: =IFERROR(B44/B$55,0) -> 0.2325176282 | C26: 0.2070629871 | D26: 0.3124567861 | E26: 0.2589991836 | F26: 0.2826904049 | G26: 0.2581966181
A27: =A45 -> Buyer 6 | B27: =IFERROR(B45/B$55,0) -> 0.2181774662 | C27: 0.2351823898 | D27: 0.1992077641 | E27: 0.2368691049 | F27: 0.1841752972 | G27: 0.2191469174
A28: Buyer 2 | B28: =IFERROR(B46/B$55,0) -> 0.1633925556 | C28: 0.1683426759 | D28: 0.1665656447 | E28: 0.1986173747 | F28: 0.209084869 | G28: 0.1874445346
A29: Buyer 9 | B29: =IFERROR(B47/B$55,0) -> 0.01500976563 | C29: 0.05980373803 | D29: 0.08841724858 | E29: 0.0874714088 | F29: 0.0767339493 | G29: 0.07258011918
A30: Buyer 5 | B30: =IFERROR(B48/B$55,0) -> 0.0374325516 | C30: 0.03415813983 | D30: 0.02778983762 | E30: 0.08633371428 | F30: 0.08873318424 | G30: 0.06476068053
A31: =A49 -> Buyer 7 | B31: =IFERROR(B49/B$55,0) -> 0.05249452908 | C31: 0.08856415434 | D31: 0.0380867327 | E31: 0.0399013669 | F31: 0.0199092278 | G31: 0.04581578187
A32: Buyer 8 | B32: =IFERROR(B50/B$55,0) -> 0.08581299293 | C32: 0.04965871609 | D32: 0.03608984396 | E32: 0.02561995574 | F32: 0.0194372456 | G32: 0.036521395
A33: Buyer 4 | B33: =IFERROR(B51/B$55,0) -> 0.06245199147 | C33: 0.1057592359 | D33: 0.08422748228 | E33: 0 | F33: 0 | G33: 0.03646624869
A34: Buyer 11 | B34: =IFERROR(B52/B$55,0) -> 0 | C34: 0 | D34: 0.004774680552 | E34: 0.04270983839 | F34: 0.0602646442 | G34: 0.02917520384
A35: Buyer 1 | B35: =IFERROR(B53/B$55,0) -> 0.1327105194 | C35: 0.05120204597 | D35: 0.03594133616 | E35: 0 | F35: 0 | G35: 0.02808209535
A36: Buyer 10 | B36: =IFERROR(B54/B$55,0) -> 0 | C36: 0.0002659171497 | D36: 0.006442643287 | E36: 0.02347805276 | F36: 0.05897117774 | G36: 0.02181040539
A37: Grand Total | B37: =B55 -> 3899306.72 | C37: =C55 -> 6583479.11 | D37: 4524543.53 | E37: 13859918.17 | F37: 7354578.06 | G37: 36221825.59
A42: Market Volume | B42: =MATCH(B43,$B$9:$G$9,0) -> 1 | C42: 2 | D42: 3 | E42: 4 | F42: 5 | G42: 6
A43: Season Year | B43: 07 | C43: 08 | D43: 09 | E43: 10 | F43: 11 | G43: Grand Total
A44: =IF(A10="Grand Total",0,A10) -> Buyer 3 | B44: =IF(ISERROR(VLOOKUP($A44,$A$9:$G$21,B$42+1,FALSE)),0,IF(VLOOKUP($A44,$A$9:$G$21,B$42+1,FALSE)="",0,VLOOKUP($A44,$A$9:$G$21,B$42+1,FALSE))) -> 906657.55 | C44: =IF(ISERROR(VLOOKUP($A44,$A$9:$G$21,C$42+1,FALSE)),0,IF(VLOOKUP($A44,$A$9:$G$21,C$42+1,FALSE)="",0,VLOOKUP($A44,$A$9:$G$21,C$42+1,FALSE))) -> 1363194.85 | D44: 1413724.33 | E44: 3589707.49 | F44: 2079068.65 | G44: 9352352.87
A45: =IF(A11="Grand Total",0,A11) -> Buyer 6 | B45: =IF(ISERROR(VLOOKUP($A45,$A$9:$G$21,B$42+1,FALSE)),0,IF(VLOOKUP($A45,$A$9:$G$21,B$42+1,FALSE)="",0,VLOOKUP($A45,$A$9:$G$21,B$42+1,FALSE))) -> 850740.86 | C45: 1548318.35 | D45: 901324.2 | E45: 3282986.41 | F45: 1354531.6 | G45: 7937901.42
A46: Buyer 2 | B46: 637117.69 | C46: 1108280.49 | D46: 753633.51 | E46: 2752820.56 | F46: 1537730.99 | G46: 6789583.24
A47: Buyer 9 | B47: 58527.68 | C47: 393716.66 | D47: 400047.69 | E47: 1212346.568 | F47: 564345.82 | G47: 2628984.418
A48: Buyer 5 | B48: 145961 | C48: 224879.4 | D48: 125736.33 | E48: 1196578.215 | F48: 652595.13 | G48: 2345750.075
A49: Buyer 7 | B49: 204692.27 | C49: 583060.26 | D49: 172325.08 | E49: 553029.68 | F49: 146423.97 | G49: 1659531.26
A50: Buyer 8 | B50: 334611.18 | C50: 326927.12 | D50: 163290.07 | E50: 355090.49 | F50: 142952.74 | G50: 1322871.6
A51: Buyer 4 | B51: 243519.47 | C51: 696263.72 | D51: 381090.91 | E51: 0 | F51: 0 | G51: 1320874.1
A52: Buyer 11 | B52: 0 | C52: 0 | D52: 21603.25 | E52: 591954.865 | F52: 443221.03 | G52: 1056779.145
A53: Buyer 1 | B53: 517479.02 | C53: 337087.6 | D53: 162618.14 | E53: 0 | F53: 0 | G53: 1017184.76
A54: Buyer 10 | B54: 0 | C54: 1750.66 | D54: 29150.02 | E54: 325403.89 | F54: 433708.13 | G54: 790012.7
A55: Grand Total | B55: 3899306.72 | C55: 6583479.11 | D55: 4524543.53 | E55: 13859918.17 | F55: 7354578.06 | G55: 36221825.59
A58: Error Cell | B58: =IF(GETPIVOTDATA("Bought Tonnes (unshrunk)",$A$8)>0,1,0) -> 1
A59: Final Error Cell | B59: =MIN(ecell1,ecell2,ecell3) -> 1

Sheet Two-2 (hidden)
A1: Region | B1: (All) | M1: Count | N1: =COUNTA(M2:M22)-COUNTBLANK(M2:M22) -> 21
A2: Operational Area | B2: (All) | J2: All | K2: 1 | M2: =IF(ISERROR(VLOOKUP($L$3&P2,Map!$A$1:$C$51,3,FALSE)),"",VLOOKUP($L$3&P2,Map!$A$1:$C$51,3,FALSE)) -> All | N2: 1 | P2: 1 | Q2: All | R2: 1 | T2: All | U2: 1
A3: Commodity | B3: (All) | J3: Region 1 | K3: Region | L3: =INDEX($J$2:$J$9,K2) -> All | M3: =IF(ISERROR(VLOOKUP($L$3&P3,Map!$A$1:$C$51,3,FALSE)),"",VLOOKUP($L$3&P3,Map!$A$1:$C$51,3,FALSE)) -> Area 1 | N3: Operational Area | O3: =INDEX($M$2:$M$22,N2) -> All | P3: 2 | Q3: Commodity 2 | R3: Commodity | S3: =INDEX($Q$2:$Q$21,R2) -> All | T3: Buyer 1 | U3: Buyer Name | V3: =INDEX($T$2:$T$13,U2) -> All
A4: Buyer2 | B4: (All) | J4: Region 2 | M4: =IF(ISERROR(VLOOKUP($L$3&P4,Map!$A$1:$C$51,3,FALSE)),"",VLOOKUP($L$3&P4,Map!$A$1:$C$51,3,FALSE)) -> Area 2 | P4: 3 | Q4: Commodity 1 | T4: Buyer 2
J5: Region 3 | M5: =IF(ISERROR(VLOOKUP($L$3&P5,Map!$A$1:$C$51,3,FALSE)),"",VLOOKUP($L$3&P5,Map!$A$1:$C$51,3,FALSE)) -> Area 3 | P5: 4 | Q5: Commodity 4 | T5: Buyer 3
A6: Sum of Bought Tonnes (unshrunk) | B6: Column Labels | J6: Region 4 | M6: =IF(ISERROR(VLOOKUP($L$3&P6,Map!$A$1:$C$51,3,FALSE)),"",VLOOKUP($L$3&P6,Map!$A$1:$C$51,3,FALSE)) -> Area 4 | P6: 5 | Q6: Commodity 5 | T6: Buyer 4
A7: Row Labels | B7: 07 | C7: 08 | D7: 09 | E7: 10 | F7: 11 | G7: Grand Total | J7: Region 5 | M7: =IF(ISERROR(VLOOKUP($L$3&P7,Map!$A$1:$C$51,3,FALSE)),"",VLOOKUP($L$3&P7,Map!$A$1:$C$51,3,FALSE)) -> Area 5 | P7: 6 | Q7: Commodity 8 | T7: Buyer 5
A8: Option 1 | B8: 508747.75 | C8: 324720.64 | D8: 352337.81 | E8: 2032997.47 | F8: 906158.9 | G8: 4124962.57 | J8: Region 6 | M8: =IF(ISERROR(VLOOKUP($L$3&P8,Map!$A$1:$C$51,3,FALSE)),"",VLOOKUP($L$3&P8,Map!$A$1:$C$51,3,FALSE)) -> Area 6 | P8: 7 | Q8: Commodity 16 | T8: Buyer 6
A9: Option 2 | B9: 3335576.4 | C9: 5817719.97 | D9: 3846610.24 | E9: 10584364.04 | F9: 5335117.31 | G9: 28919387.96 | J9: Region 7 | M9: =IF(ISERROR(VLOOKUP($L$3&P9,Map!$A$1:$C$51,3,FALSE)),"",VLOOKUP($L$3&P9,Map!$A$1:$C$51,3,FALSE)) -> Area 7 | P9: 8 | Q9: Commodity 10 | T9: Buyer 7
A10: Option 3 | B10: 54982.57 | C10: 441038.5 | D10: 325595.48 | E10: 1242556.66 | F10: 1113301.85 | G10: 3177475.06 | M10: =IF(ISERROR(VLOOKUP($L$3&P10,Map!$A$1:$C$51,3,FALSE)),"",VLOOKUP($L$3&P10,Map!$A$1:$C$51,3,FALSE)) -> Area 8 | P10: 9 | Q10: Commodity 15 | T10: Buyer 8
A11: Grand Total | B11: 3899306.72 | C11: 6583479.11 | D11: 4524543.53 | E11: 13859918.17 | F11: 7354578.06 | G11: 36221825.59 | M11: =IF(ISERROR(VLOOKUP($L$3&P11,Map!$A$1:$C$51,3,FALSE)),"",VLOOKUP($L$3&P11,Map!$A$1:$C$51,3,FALSE)) -> Area 9 | P11: 10 | Q11: Commodity 19 | T11: Buyer 9
A12: Row Labels | B12: 07 | C12: 08 | D12: 09 | E12: 10 | F12: 11 | G12: Grand Total | M12: =IF(ISERROR(VLOOKUP($L$3&P12,Map!$A$1:$C$51,3,FALSE)),"",VLOOKUP($L$3&P12,Map!$A$1:$C$51,3,FALSE)) -> Area 10 | P12: 11 | Q12: Commodity 3 | T12: Buyer 10
A13: Sell Option 1 | B13: =IF(ISERROR(B20/B$23),0,B20/B$23) -> 0.1304713341 | C13: 0.04932356199 | D13: 0.07787256497 | E13: 0.1466817802 | F13: 0.1232101818 | G13: 0.1138805817 | M13: =IF(ISERROR(VLOOKUP($L$3&P13,Map!$A$1:$C$51,3,FALSE)),"",VLOOKUP($L$3&P13,Map!$A$1:$C$51,3,FALSE)) -> Area 11 | P13: 12 | Q13: Commodity 18 | T13: Buyer 11
A14: Sell Option 2 | B14: =IF(ISERROR(B21/B$23),0,B21/B$23) -> 0.8554280644 | C14: 0.8836847316 | D14: 0.8501653735 | E14: 0.7636671378 | F14: 0.7254144652 | G14: 0.7983967536 | M14: =IF(ISERROR(VLOOKUP($L$3&P14,Map!$A$1:$C$51,3,FALSE)),"",VLOOKUP($L$3&P14,Map!$A$1:$C$51,3,FALSE)) -> Area 12 | P14: 13 | Q14: Commodity 14
A15: Sell Option 3 | B15: =IF(ISERROR(B22/B$23),0,B22/B$23) -> 0.01410060145 | C15: 0.06699170646 | D15: 0.07196206155 | E15: 0.08965108199 | F15: 0.151375353 | G15: 0.08772266468 | M15: =IF(ISERROR(VLOOKUP($L$3&P15,Map!$A$1:$C$51,3,FALSE)),"",VLOOKUP($L$3&P15,Map!$A$1:$C$51,3,FALSE)) -> Area 13 | P15: 14 | Q15: Commodity 7
M16: =IF(ISERROR(VLOOKUP($L$3&P16,Map!$A$1:$C$51,3,FALSE)),"",VLOOKUP($L$3&P16,Map!$A$1:$C$51,3,FALSE)) -> Area 14 | P16: 15 | Q16: Commodity 17
M17: =IF(ISERROR(VLOOKUP($L$3&P17,Map!$A$1:$C$51,3,FALSE)),"",VLOOKUP($L$3&P17,Map!$A$1:$C$51,3,FALSE)) -> Area 15 | P17: 16 | Q17: Commodity 11
A18: Sell Options - Trends | B18: =MATCH(B19,$B$7:$G$7) -> 1 | C18: =MATCH(C19,$B$7:$G$7) -> 2 | D18: 3 | E18: 4 | F18: 5 | G18: 6 | M18: =IF(ISERROR(VLOOKUP($L$3&P18,Map!$A$1:$C$51,3,FALSE)),"",VLOOKUP($L$3&P18,Map!$A$1:$C$51,3,FALSE)) -> Area 16 | P18: 17 | Q18: Commodity 6
A19: Row Labels | B19: 07 | C19: 08 | D19: 09 | E19: 10 | F19: 11 | G19: Grand Total | M19: =IF(ISERROR(VLOOKUP($L$3&P19,Map!$A$1:$C$51,3,FALSE)),"",VLOOKUP($L$3&P19,Map!$A$1:$C$51,3,FALSE)) -> Area 17 | P19: 18 | Q19: Commodity 12
A20: Option 1 | B20: =IF(ISERROR(VLOOKUP($A20,$A$6:$G$10,B$18+1,FALSE)),"",IF(VLOOKUP($A20,$A$6:$G$10,B$18+1,FALSE)="","",VLOOKUP($A20,$A$6:$G$10,B$18+1,FALSE))) -> 508747.75 | C20: =IF(ISERROR(VLOOKUP($A20,$A$6:$G$10,C$18+1,FALSE)),"",IF(VLOOKUP($A20,$A$6:$G$10,C$18+1,FALSE)="","",VLOOKUP($A20,$A$6:$G$10,C$18+1,FALSE))) -> 324720.64 | D20: 352337.81 | E20: 2032997.47 | F20: 906158.9 | G20: 4124962.57 | M20: =IF(ISERROR(VLOOKUP($L$3&P20,Map!$A$1:$C$51,3,FALSE)),"",VLOOKUP($L$3&P20,Map!$A$1:$C$51,3,FALSE)) -> Area 18 | P20: 19 | Q20: Commodity 13
A21: Option 2 | B21: =IF(ISERROR(VLOOKUP($A21,$A$6:$G$10,B$18+1,FALSE)),"",IF(VLOOKUP($A21,$A$6:$G$10,B$18+1,FALSE)="","",VLOOKUP($A21,$A$6:$G$10,B$18+1,FALSE))) -> 3335576.4 | C21: 5817719.97 | D21: 3846610.24 | E21: 10584364.04 | F21: 5335117.31 | G21: 28919387.96 | M21: =IF(ISERROR(VLOOKUP($L$3&P21,Map!$A$1:$C$51,3,FALSE)),"",VLOOKUP($L$3&P21,Map!$A$1:$C$51,3,FALSE)) -> Area 19 | P21: 20 | Q21: Commodity 9
A22: Option 3 | B22: =IF(ISERROR(VLOOKUP($A22,$A$6:$G$10,B$18+1,FALSE)),"",IF(VLOOKUP($A22,$A$6:$G$10,B$18+1,FALSE)="","",VLOOKUP($A22,$A$6:$G$10,B$18+1,FALSE))) -> 54982.57 | C22: 441038.5 | D22: 325595.48 | E22: 1242556.66 | F22: 1113301.85 | G22: 3177475.06 | M22: =IF(ISERROR(VLOOKUP($L$3&P22,Map!$A$1:$C$51,3,FALSE)),"",VLOOKUP($L$3&P22,Map!$A$1:$C$51,3,FALSE)) -> Area 20 | P22: 21
A23: Grand Total | B23: =IF(ISERROR(VLOOKUP($A23,$A$7:$G$11,B$18+1,FALSE)),"",IF(VLOOKUP($A23,$A$7:$G$11,B$18+1,FALSE)="","",VLOOKUP($A23,$A$7:$G$11,B$18+1,FALSE))) -> 3899306.72 | C23: =IF(ISERROR(VLOOKUP($A23,$A$7:$G$11,C$18+1,FALSE)),"",IF(VLOOKUP($A23,$A$7:$G$11,C$18+1,FALSE)="","",VLOOKUP($A23,$A$7:$G$11,C$18+1,FALSE))) -> 6583479.11 | D23: 4524543.53 | E23: 13859918.17 | F23: 7354578.06 | G23: 36221825.59
A24: Market Expansion | C24: =C23/B23-1 -> 0.6883716985 | D24: =D23/C23-1 -> -0.3127427832 | E24: =E23/D23-1 -> 2.063274356 | F24: =F23/E23-1 -> -0.4693635294
A28: For Trend2 - Overall Chart (Right side)
A29: Region | B29: (All)
A31: Sum of Bought Tonnes (unshrunk) | B31: Column Labels
A32: Row Labels | B32: 07 | C32: 08 | D32: 09 | E32: 10 | F32: 11 | G32: Grand Total
A33: Option 1 | B33: 1028567.39 | C33: 819335.19 | D33: 901796.02 | E33: 2260082.17 | F33: 1066245.73 | G33: 6076026.5
A34: Option 2 | B34: 4694458.67 | C34: 8097103.29 | D34: 6093733.93 | E34: 11625525.33 | F34: 5858930.316 | G34: 36369751.54
A35: Option 3 | B35: 126785.54 | C35: 759421.82 | D35: 688214.84 | E35: 1390478.33 | F35: 1250413.5 | G35: 4215314.03
A36: Grand Total | B36: 5849811.6 | C36: 9675860.3 | D36: 7683744.79 | E36: 15276085.83 | F36: 8175589.546 | G36: 46661092.07
A38: Sell Options - Trends
A39: Row Labels | B39: 07 | C39: 08 | D39: 09 | E39: 10 | F39: 11 | G39: Grand Total
A40: Option 1 | B40: =B33/B$36 -> 0.1758291481 | C40: 0.08467827817 | D40: 0.1173641297 | E40: 0.1479490358 | F40: 0.130418207 | G40: 0.1302161229
A41: Option 2 | B41: 0.8024974121 | C41: 0.8368354894 | D41: 0.7930682365 | E41: 0.7610277567 | F41: 0.7166370429 | G41: 0.7794449278
A42: Option 3 | B42: 0.02167343988 | C42: 0.07848623238 | D42: 0.08956763386 | E42: 0.09102320748 | F42: 0.1529447501 | G42: 0.09033894929
A43: Market Volume | B43: =B36 -> 5849811.6 | C43: 9675860.3 | D43: 7683744.79 | E43: 15276085.83 | F43: 8175589.546 | G43: 46661092.07
A44: Market Expansion | C44: =C36/B36-1 -> 0.6540464825 | D44: =D36/C36-1 -> -0.2058851046 | E44: =E36/D36-1 -> 0.9881042704 | F44: =F36/E36-1 -> -0.4648112326
A48: Error Cell | B48: =IF(GETPIVOTDATA("Bought Tonnes (unshrunk)",$A$6)>0,1,0) -> 1

Sheet Three (hidden)
A1: Region | B1: (All) | M1: Count | N1: =COUNTA(M2:M22)-COUNTBLANK(M2:M22) -> 21
A2: Operational Area | B2: (All) | J2: All | K2: 1 | M2: =IF(ISERROR(VLOOKUP($L$3&P2,Map!$A$1:$C$51,3,FALSE)),"",VLOOKUP($L$3&P2,Map!$A$1:$C$51,3,FALSE)) -> All | N2: 1 | P2: 1 | Q2: All | R2: 1 | T2: All | U2: 1 | W2: All | X2: 1
A3: Grade | B3: (All) | J3: Region 1 | K3: Region | L3: =INDEX($J$2:$J$9,K2) -> All | M3: =IF(ISERROR(VLOOKUP($L$3&P3,Map!$A$1:$C$51,3,FALSE)),"",VLOOKUP($L$3&P3,Map!$A$1:$C$51,3,FALSE)) -> Area 1 | N3: Operational Area | O3: =INDEX($M$2:$M$22,N2) -> All | P3: 2 | Q3: Buyer 1 | R3: Buyer Name | S3: =INDEX($Q$2:$Q$13,R2) -> All | T3: Grade 82 | U3: Grade | V3: =INDEX($T$2:$T$266,U2) -> All | W3: Option 1 | X3: Sell Options | Y3: =INDEX($W$2:$W$6,X2) -> All
A4: Sell Options | B4: (All) | J4: Region 2 | M4: =IF(ISERROR(VLOOKUP($L$3&P4,Map!$A$1:$C$51,3,FALSE)),"",VLOOKUP($L$3&P4,Map!$A$1:$C$51,3,FALSE)) -> Area 2 | P4: 3 | Q4: Buyer 2 | T4: Grade 86 | W4: Option 2
A5: Buyer2 | B5: (All) | J5: Region 3 | M5: =IF(ISERROR(VLOOKUP($L$3&P5,Map!$A$1:$C$51,3,FALSE)),"",VLOOKUP($L$3&P5,Map!$A$1:$C$51,3,FALSE)) -> Area 3 | P5: 4 | Q5: Buyer 3 | T5: Grade 107 | W5: Option 3
J6: Region 4 | M6: =IF(ISERROR(VLOOKUP($L$3&P6,Map!$A$1:$C$51,3,FALSE)),"",VLOOKUP($L$3&P6,Map!$A$1:$C$51,3,FALSE)) -> Area 4 | P6: 5 | Q6: Buyer 4 | T6: Grade 3 | W6: Not recorded
A7: Sum of Bought Tonnes (unshrunk) | B7: Column Labels | J7: Region 5 | M7: =IF(ISERROR(VLOOKUP($L$3&P7,Map!$A$1:$C$51,3,FALSE)),"",VLOOKUP($L$3&P7,Map!$A$1:$C$51,3,FALSE)) -> Area 5 | P7: 6 | Q7: Buyer 5 | T7: Grade 131
A8: Row Labels | B8: 07 | C8: 08 | D8: 09 | E8: 10 | F8: 11 | G8: Grand Total | J8: Region 6 | M8: =IF(ISERROR(VLOOKUP($L$3&P8,Map!$A$1:$C$51,3,FALSE)),"",VLOOKUP($L$3&P8,Map!$A$1:$C$51,3,FALSE)) -> Area 6 | P8: 7 | Q8: Buyer 6 | T8: Grade 23
A9: Commodity 1 | B9: 507679.51 | C9: 328236.07 | D9: 417099.57 | E9: 1750577.87 | F9: 1077156.27 | G9: 4080749.29 | J9: Region 7 | M9: =IF(ISERROR(VLOOKUP($L$3&P9,Map!$A$1:$C$51,3,FALSE)),"",VLOOKUP($L$3&P9,Map!$A$1:$C$51,3,FALSE)) -> Area 7 | P9: 8 | Q9: Buyer 7 | T9: Grade 173
A10: Commodity 2 | B10: 1300093.28 | C10: 4725922.01 | D10: 3181493.3 | E10: 10156050.8 | F10: 5296173.36 | G10: 24659732.75 | M10: =IF(ISERROR(VLOOKUP($L$3&P10,Map!$A$1:$C$51,3,FALSE)),"",VLOOKUP($L$3&P10,Map!$A$1:$C$51,3,FALSE)) -> Area 8 | P10: 9 | Q10: Buyer 8 | T10: Grade 93
A11: Commodity 5 | B11: 1957102.58 | C11: 1257790.07 | D11: 600629.26 | E11: 1114937.96 | F11: 88289.54 | G11: 5018749.41 | M11: =IF(ISERROR(VLOOKUP($L$3&P11,Map!$A$1:$C$51,3,FALSE)),"",VLOOKUP($L$3&P11,Map!$A$1:$C$51,3,FALSE)) -> Area 9 | P11: 10 | Q11: Buyer 9 | T11: Grade 90
A12: Commodity 4 | B12: 110604.63 | C12: 226072.68 | D12: 292782.75 | E12: 763165.33 | F12: 892958.89 | G12: 2285584.28 | M12: =IF(ISERROR(VLOOKUP($L$3&P12,Map!$A$1:$C$51,3,FALSE)),"",VLOOKUP($L$3&P12,Map!$A$1:$C$51,3,FALSE)) -> Area 10 | P12: 11 | Q12: Buyer 10 | T12: Grade 51
A13: Commodity 3 | B13: 23826.72 | C13: 45458.28 | D13: 32538.65 | E13: 75186.21 | G13: 177009.86 | M13: =IF(ISERROR(VLOOKUP($L$3&P13,Map!$A$1:$C$51,3,FALSE)),"",VLOOKUP($L$3&P13,Map!$A$1:$C$51,3,FALSE)) -> Area 11 | P13: 12 | Q13: Buyer 11 | T13: Grade 52
A14: Grand Total | B14: 3899306.72 | C14: 6583479.11 | D14: 4524543.53 | E14: 13859918.17 | F14: 7354578.06 | G14: 36221825.59 | M14: =IF(ISERROR(VLOOKUP($L$3&P14,Map!$A$1:$C$51,3,FALSE)),"",VLOOKUP($L$3&P14,Map!$A$1:$C$51,3,FALSE)) -> Area 12 | P14: 13 | T14: Grade 265
M15: =IF(ISERROR(VLOOKUP($L$3&P15,Map!$A$1:$C$51,3,FALSE)),"",VLOOKUP($L$3&P15,Map!$A$1:$C$51,3,FALSE)) -> Area 13 | P15: 14 | T15: Grade 61
A16: Market Share | M16: =IF(ISERROR(VLOOKUP($L$3&P16,Map!$A$1:$C$51,3,FALSE)),"",VLOOKUP($L$3&P16,Map!$A$1:$C$51,3,FALSE)) -> Area 14 | P16: 15 | T16: Grade 113
A17: Season Year | B17: 07 | C17: 08 | D17: 09 | E17: 10 | F17: 11 | G17: Average | M17: =IF(ISERROR(VLOOKUP($L$3&P17,Map!$A$1:$C$51,3,FALSE)),"",VLOOKUP($L$3&P17,Map!$A$1:$C$51,3,FALSE)) -> Area 15 | P17: 16 | T17: Grade 4
A18: Commodity 1 | B18: =IF(ISERROR(B27/B$32),0,B27/B$32) -> 0.1301973778 | C18: 0.04985753953 | D18: 0.09218600003 | E18: 0.1263050654 | F18: 0.1464606482 | G18: 0.1126599564 | M18: =IF(ISERROR(VLOOKUP($L$3&P18,Map!$A$1:$C$51,3,FALSE)),"",VLOOKUP($L$3&P18,Map!$A$1:$C$51,3,FALSE)) -> Area 16 | P18: 17 | T18: Grade 149
A19: Commodity 2 | B19: =IF(ISERROR(B28/B$32),0,B28/B$32) -> 0.3334165208 | C19: 0.7178456757 | D19: 0.7031633752 | E19: 0.7327641242 | F19: 0.7201192668 | G19: 0.6807976226 | M19: =IF(ISERROR(VLOOKUP($L$3&P19,Map!$A$1:$C$51,3,FALSE)),"",VLOOKUP($L$3&P19,Map!$A$1:$C$51,3,FALSE)) -> Area 17 | P19: 18 | T19: Grade 5
A20: Commodity 3 | B20: =IF(ISERROR(B30/B$32),0,B30/B$32) -> 0.02836520385 | C20: 0.03433939354 | D20: 0.06470989793 | E20: 0.05506275872 | F20: 0.12141538 | G20: 0.06309964346 | M20: =IF(ISERROR(VLOOKUP($L$3&P20,Map!$A$1:$C$51,3,FALSE)),"",VLOOKUP($L$3&P20,Map!$A$1:$C$51,3,FALSE)) -> Area 18 | P20: 19 | T20: Grade 6
A21: Commodity 4 | B21: =IF(ISERROR(B31/B$32),0,B31/B$32) -> 0.501910396 | C21: 0.191052489 | D21: 0.1327491394 | E21: 0.08044332921 | F21: 0.012004705 | G21: 0.1385559488 | M21: =IF(ISERROR(VLOOKUP($L$3&P21,Map!$A$1:$C$51,3,FALSE)),"",VLOOKUP($L$3&P21,Map!$A$1:$C$51,3,FALSE)) -> Area 19 | P21: 20 | T21: Grade 251
A22: Commodity 5 | B22: =IF(ISERROR(B29/B$32),0,B29/B$32) -> 0.006110501612 | C22: 0.006904902293 | D22: 0.007191587347 | E22: 0.005424722505 | F22: 0 | G22: 0.004886828787 | M22: =IF(ISERROR(VLOOKUP($L$3&P22,Map!$A$1:$C$51,3,FALSE)),"",VLOOKUP($L$3&P22,Map!$A$1:$C$51,3,FALSE)) -> Area 20 | P22: 21 | T22: Grade 106
A23: Market Volume | B23: =IF(ISERROR(B32/B$32),0,B32/B$32) -> 1 | C23: 1 | D23: 1 | E23: 1 | F23: 1 | G23: 1 | T23: Grade 53
T24: Grade 104
B25: =MATCH(B26,$B$8:$G$8) -> 1 | C25: 2 | D25: 3 | E25: 4 | F25: 5 | G25: 6 | T25: Grade 7
A26: Season Year | B26: 07 | C26: 08 | D26: 09 | E26: 10 | F26: 11 | G26: Grand Total | T26: Grade 13
A27: Commodity 1 | B27: =IF(ISERROR(VLOOKUP($A27,$A$8:$G$14,B$25+1,FALSE)),"",IF(VLOOKUP($A27,$A$8:$G$14,B$25+1,FALSE)="","",VLOOKUP($A27,$A$8:$G$14,B$25+1,FALSE))) -> 507679.51 | C27: 328236.07 | D27: 417099.57 | E27: 1750577.87 | F27: 1077156.27 | G27: 4080749.29 | T27: Grade 183
A28: Commodity 2 | B28: 1300093.28 | C28: 4725922.01 | D28: 3181493.3 | E28: 10156050.8 | F28: 5296173.36 | G28: 24659732.75 | T28: Grade 62
A29: Commodity 3 | B29: 23826.72 | C29: 45458.28 | D29: 32538.65 | E29: 75186.21 | G29: 177009.86 | T29: Grade 237
A30: Commodity 4 | B30: 110604.63 | C30: 226072.68 | D30: 292782.75 | E30: 763165.33 | F30: 892958.89 | G30: 2285584.28 | T30: Grade 120
A31: Commodity 5 | B31: 1957102.58 | C31: 1257790.07 | D31: 600629.26 | E31: 1114937.96 | F31: 88289.54 | G31: 5018749.41 | T31: Grade 102
A32: Grand Total | B32: 3899306.72 | C32: 6583479.11 | D32: 4524543.53 | E32: 13859918.17 | F32: 7354578.06 | G32: 36221825.59 | T32: Grade 191
T33: Grade 192
T34: Grade 262
A35: Error Cell | B35: =IF(GETPIVOTDATA("Bought Tonnes (unshrunk)",$A$7)>0,1,0) -> 1 | T35: Grade 158
T36: Grade 105
T37: Grade 238
T38: Grade 239
T39: Grade 121
T40: Grade 259
T41: Grade 187
T42: Grade 166
T43: Grade 24
T44: Grade 167
T45: Grade 168
T46: Grade 103
T47: Grade 119
T48: Grade 92
T49: Grade 211
T50: Grade 212
T51: Grade 33
T52: Grade 127
T53: Grade 169
T54: Grade 152
T55: Grade 188
T56: Grade 229
T57: Grade 159
T58: Grade 123
T59: Grade 193
T60: Grade 194
T61: Grade 137
T62: Grade 195
T63: Grade 196
T64: Grade 87
T65: Grade 197
T66: Grade 156
T67: Grade 170
T68: Grade 148
T69: Grade 174
T70: Grade 41
T71: Grade 213
T72: Grade 43
T73: Grade 214
T74: Grade 42
T75: Grade 215
T76: Grade 63
T77: Grade 216
T78: Grade 224
T79: Grade 141
T80: Grade 233
T81: Grade 246
T82: Grade 160
T83: Grade 1
T84: Grade 161
T85: Grade 2
T86: Grade 162
T87: Grade 11
T88: Grade 198
T89: Grade 22
T90: Grade 44
T91: Grade 10
T92: Grade 175
T93: Grade 176
T94: Grade 244
T95: Grade 110
T96: Grade 232
T97: Grade 58
T98: Grade 59
T99: Grade 99
T100: Grade 116
T101: Grade 199
T102: Grade 25
T103: Grade 200
T104: Grade 89
T105: Grade 65
T106: Grade 184
T107: Grade 98
T108: Grade 163
T109: Grade 18
T110: Grade 122
T111: Grade 201
T112: Grade 240
T113: Grade 241
T114: Grade 21
T115: Grade 223
T116: Grade 46
T117: Grade 185
T118: Grade 248
T119: Grade 226
T120: Grade 202
T121: Grade 96
T122: Grade 203
T123: Grade 97
T124: Grade 204
T125: Grade 205
T126: Grade 125
T127: Grade 128
T128: Grade 19
T129: Grade 101
T130: Grade 130
T131: Grade 234
T132: Grade 245
T133: Grade 206
T134: Grade 66
T135: Grade 207
T136: Grade 67
T137: Grade 40
T138: Grade 217
T139: Grade 91
T140: Grade 235
T141: Grade 236
T142: Grade 153
T143: Grade 171
T144: Grade 134
T145: Grade 45
T146: Grade 177
T147: Grade 8
T148: Grade 178
T149: Grade 9
T150: Grade 258
T151: Grade 132
T152: Grade 208
T153: Grade 209
T154: Grade 145
T155: Grade 146
T156: Grade 210
T157: Grade 143
T158: Grade 142
T159: Grade 144
T160: Grade 129
T161: Grade 139
T162: Grade 138
T163: Grade 15
T164: Grade 16
T165: Grade 151
T166: Grade 64
T167: Grade 140
T168: Grade 157
T169: Grade 68
T170: Grade 69
T171: Grade 218
T172: Grade 219
T173: Grade 220
T174: Grade 221
T175: Grade 222
T176: Grade 231
T177: Grade 243
T178: Grade 255
T179: Grade 88
T180: Grade 247
T181: Grade 135
T182: Grade 260
T183: Grade 108
T184: Grade 261
T185: Grade 136
T186: Grade 118
T187: Grade 94
T188: Grade 50
T189: Grade 230
T190: Grade 109
T191: Grade 73
T192: Grade 74
T193: Grade 111
T194: Grade 75
T195: Grade 80
T196: Grade 38
T197: Grade 39
T198: Grade 164
T199: Grade 14
T200: Grade 242
... 64 more rows

Sheet Four (hidden)
J1: 2007 | K1: 2008 | L1: 2009 | M1: 2010 | N1: 2011 | O1: Average | AT1: Buyers | AU1: Selection | AV1: 1 | AY1: Commodity | AZ1: Selection | BA1: 1 | BC1: Total | BD1: =COUNTA(AY2:AY22)-COUNTBLANK(AY2:AY22) -> 20
J2: 07 | K2: 08 | L2: 09 | M2: 10 | N2: 11 | O2: Grand Total | AT2: All | AU2: Selected | AV2: =INDEX(AT2:AT2752,AV1) -> All | AY2: All | AZ2: Selected | BA2: =INDEX(AY2:AY22,BA1) -> All
I3: =B5 -> (All) | J3: =GETPIVOTDATA("Bought Tonnes (unshrunk)",$A$7,"Season Year","07") -> 3899306.72 | K3: =GETPIVOTDATA("Bought Tonnes (unshrunk)",$A$7,"Season Year","08") -> 6583479.11 | L3: =GETPIVOTDATA("Bought Tonnes (unshrunk)",$A$7,"Season Year","09") -> 4524543.53 | M3: =GETPIVOTDATA("Bought Tonnes (unshrunk)",$A$7,"Season Year","10") -> 13859918.17 | N3: =GETPIVOTDATA("Bought Tonnes (unshrunk)",$A$7,"Season Year","11") -> 7354578.06 | O3: =GETPIVOTDATA("Bought Tonnes (unshrunk)",$A$7) -> 36221825.59 | AT3: Buyer 1 | AX3: 1 | AY3: =IF(ISERROR(VLOOKUP($AV$2&AX3,Map!$E$2:$H$3437,4,FALSE)),"",VLOOKUP($AV$2&AX3,Map!$E$2:$H$3437,4,FALSE)) -> Commodity 2
I4: Grand Total | J4: 5849811.6 | K4: 9677872.66 | L4: 7683907.47 | M4: 15277634.07 | N4: 8175708.766 | O4: 46664934.57 | AT4: Buyer 2 | AX4: 2 | AY4: =IF(ISERROR(VLOOKUP($AV$2&AX4,Map!$E$2:$H$3437,4,FALSE)),"",VLOOKUP($AV$2&AX4,Map!$E$2:$H$3437,4,FALSE)) -> Commodity 17
A5: Buyer1 | B5: (All) | I5: Market Share | J5: =J3/J4 -> 0.6665696242 | K5: =K3/K4 -> 0.6802609769 | L5: 0.5888336823 | M5: 0.9072031772 | N5: 0.8995645846 | O5: 0.7762107871 | AT5: Buyer 3 | AX5: 3 | AY5: =IF(ISERROR(VLOOKUP($AV$2&AX5,Map!$E$2:$H$3437,4,FALSE)),"",VLOOKUP($AV$2&AX5,Map!$E$2:$H$3437,4,FALSE)) -> Commodity 5
AT6: Buyer 4 | AX6: 4 | AY6: =IF(ISERROR(VLOOKUP($AV$2&AX6,Map!$E$2:$H$3437,4,FALSE)),"",VLOOKUP($AV$2&AX6,Map!$E$2:$H$3437,4,FALSE)) -> Commodity 1
A7: Sum of Bought Tonnes (unshrunk) | B7: Column Labels | J7: =MATCH(J8,$B$8:$G$8) -> 1 | K7: =MATCH(K8,$B$8:$G$8) -> 2 | L7: 3 | M7: 4 | N7: 5 | O7: 6 | AT7: Buyer 5 | AX7: 5 | AY7: =IF(ISERROR(VLOOKUP($AV$2&AX7,Map!$E$2:$H$3437,4,FALSE)),"",VLOOKUP($AV$2&AX7,Map!$E$2:$H$3437,4,FALSE)) -> Commodity 7
A8: Row Labels | B8: 07 | C8: 08 | D8: 09 | E8: 10 | F8: 11 | G8: Grand Total | I8: Row Labels | J8: 07 | K8: 08 | L8: 09 | M8: 10 | N8: 11 | O8: Grand Total | P8: 2007 | Q8: 2008 | R8: 2009 | S8: 2010 | T8: 2011 | U8: Average | AT8: Buyer 6 | AX8: 6 | AY8: =IF(ISERROR(VLOOKUP($AV$2&AX8,Map!$E$2:$H$3437,4,FALSE)),"",VLOOKUP($AV$2&AX8,Map!$E$2:$H$3437,4,FALSE)) -> Commodity 4
A9: Region 1 | B9: 218414 | C9: 1256012.42 | D9: 756761.18 | E9: 2622292.518 | F9: 1240069.28 | G9: 6093549.398 | I9: Region 1 | J9: =IF(ISERROR(VLOOKUP($I9,$A$8:$G$16,J$7+1,FALSE)),"",IF(VLOOKUP($I9,$A$8:$G$16,J$7+1,FALSE)="","",VLOOKUP($I9,$A$8:$G$16,J$7+1,FALSE))) -> 218414 | K9: =IF(ISERROR(VLOOKUP($I9,$A$8:$G$16,K$7+1,FALSE)),"",IF(VLOOKUP($I9,$A$8:$G$16,K$7+1,FALSE)="","",VLOOKUP($I9,$A$8:$G$16,K$7+1,FALSE))) -> 1256012.42 | L9: 756761.18 | M9: 2622292.518 | N9: 1240069.28 | O9: 6093549.398 | P9: =IF(ISERROR(J9/J$16),"",J9/J$16) -> 0.05601354694 | Q9: =IF(ISERROR(K9/K$16),"",K9/K$16) -> 0.1907824722 | R9: =IF(ISERROR(L9/L$16),"",L9/L$16) -> 0.1672569122 | S9: =IF(ISERROR(M9/M$16),"",M9/M$16) -> 0.1891997114 | T9: =IF(ISERROR(N9/N$16),"",N9/N$16) -> 0.1686118863 | U9: =IF(ISERROR(O9/O$16),"",O9/O$16) -> 0.168228666 | AT9: Buyer 7 | AX9: 7 | AY9: =IF(ISERROR(VLOOKUP($AV$2&AX9,Map!$E$2:$H$3437,4,FALSE)),"",VLOOKUP($AV$2&AX9,Map!$E$2:$H$3437,4,FALSE)) -> Commodity 14
A10: Region 2 | B10: 1681928.56 | C10: 2061600.83 | D10: 681323.99 | E10: 1963003.3 | F10: 1153750.29 | G10: 7541606.97 | I10: Region 2 | J10: =IF(ISERROR(VLOOKUP($I10,$A$8:$G$16,J$7+1,FALSE)),"",IF(VLOOKUP($I10,$A$8:$G$16,J$7+1,FALSE)="","",VLOOKUP($I10,$A$8:$G$16,J$7+1,FALSE))) -> 1681928.56 | K10: 2061600.83 | L10: 681323.99 | M10: 1963003.3 | N10: 1153750.29 | O10: 7541606.97 | P10: =IF(ISERROR(J10/J$16),"",J10/J$16) -> 0.4313404102 | Q10: 0.3131476223 | R10: 0.1505840281 | S10: 0.1416316659 | T10: 0.1568751165 | U10: 0.2082061533 | AT10: Buyer 8 | AX10: 8 | AY10: =IF(ISERROR(VLOOKUP($AV$2&AX10,Map!$E$2:$H$3437,4,FALSE)),"",VLOOKUP($AV$2&AX10,Map!$E$2:$H$3437,4,FALSE)) -> Commodity 3
A11: Region 3 | B11: 979113.47 | C11: 2315974.98 | D11: 1499665.24 | E11: 2066577.27 | F11: 1179598.02 | G11: 8040928.98 | I11: Region 3 | J11: 979113.47 | K11: 2315974.98 | L11: 1499665.24 | M11: 2066577.27 | N11: 1179598.02 | O11: 8040928.98 | P11: 0.2510993724 | Q11: 0.3517858782 | R11: 0.3314511685 | S11: 0.1491045795 | T11: 0.1603896254 | U11: 0.2219912677 | AT11: Buyer 9 | AX11: 9 | AY11: =IF(ISERROR(VLOOKUP($AV$2&AX11,Map!$E$2:$H$3437,4,FALSE)),"",VLOOKUP($AV$2&AX11,Map!$E$2:$H$3437,4,FALSE)) -> Commodity 11
A12: Region 4 | B12: 627922.69 | C12: 294449.65 | D12: 793471.34 | E12: 2648656.92 | F12: 1325460.17 | G12: 5689960.77 | I12: Region 4 | J12: 627922.69 | K12: 294449.65 | L12: 793471.34 | M12: 2648656.92 | N12: 1325460.17 | O12: 5689960.77 | P12: 0.1610344441 | Q12: 0.04472553874 | R12: 0.1753704732 | S12: 0.1911019162 | T12: 0.1802224627 | U12: 0.1570865266 | AT12: Buyer 10 | AX12: 10 | AY12: =IF(ISERROR(VLOOKUP($AV$2&AX12,Map!$E$2:$H$3437,4,FALSE)),"",VLOOKUP($AV$2&AX12,Map!$E$2:$H$3437,4,FALSE)) -> Commodity 9
A13: Region 5 | B13: 203054.2 | C13: 187143.54 | D13: 363589.8 | E13: 1396716.49 | F13: 849256.38 | G13: 2999760.41 | I13: Region 5 | J13: 203054.2 | K13: 187143.54 | L13: 363589.8 | M13: 1396716.49 | N13: 849256.38 | O13: 2999760.41 | P13: 0.05207443645 | Q13: 0.02842623738 | R13: 0.08035944346 | S13: 0.1007737905 | T13: 0.1154731615 | U13: 0.08281637828 | AT13: Buyer 11 | AX13: 11 | AY13: =IF(ISERROR(VLOOKUP($AV$2&AX13,Map!$E$2:$H$3437,4,FALSE)),"",VLOOKUP($AV$2&AX13,Map!$E$2:$H$3437,4,FALSE)) -> Commodity 12
A14: Region 6 | B14: 130436.51 | C14: 135694.43 | D14: 173264.64 | E14: 513602.62 | F14: 210832.43 | G14: 1163830.63 | I14: Region 6 | J14: 130436.51 | K14: 135694.43 | L14: 173264.64 | M14: 513602.62 | N14: 210832.43 | O14: 1163830.63 | P14: 0.0334512054 | Q14: 0.02061135575 | R14: 0.03829439121 | S14: 0.03705668488 | T14: 0.02866682878 | U14: 0.0321306453 | AT14: Buyer 12 | AX14: 12 | AY14: =IF(ISERROR(VLOOKUP($AV$2&AX14,Map!$E$2:$H$3437,4,FALSE)),"",VLOOKUP($AV$2&AX14,Map!$E$2:$H$3437,4,FALSE)) -> Commodity 15
A15: Region 7 | B15: 58437.29 | C15: 332603.26 | D15: 256467.34 | E15: 2649069.05 | F15: 1395611.49 | G15: 4692188.43 | I15: Region 7 | J15: 58437.29 | K15: 332603.26 | L15: 256467.34 | M15: 2649069.05 | N15: 1395611.49 | O15: 4692188.43 | P15: 0.01498658459 | Q15: 0.05052089548 | R15: 0.05668358328 | S15: 0.1911316516 | T15: 0.1897609188 | U15: 0.1295403629 | AT15: Buyer 13 | AX15: 13 | AY15: =IF(ISERROR(VLOOKUP($AV$2&AX15,Map!$E$2:$H$3437,4,FALSE)),"",VLOOKUP($AV$2&AX15,Map!$E$2:$H$3437,4,FALSE)) -> Commodity 16
A16: Grand Total | B16: 3899306.72 | C16: 6583479.11 | D16: 4524543.53 | E16: 13859918.17 | F16: 7354578.06 | G16: 36221825.59 | I16: Grand Total | J16: =SUM(J9:J15) -> 3899306.72 | K16: =SUM(K9:K15) -> 6583479.11 | L16: 4524543.53 | M16: 13859918.17 | N16: 7354578.06 | O16: 36221825.59 | P16: =J16 -> 3899306.72 | Q16: =K16 -> 6583479.11 | R16: 4524543.53 | S16: 13859918.17 | T16: 7354578.06 | U16: 36221825.59 | AT16: Buyer 14 | AX16: 14 | AY16: =IF(ISERROR(VLOOKUP($AV$2&AX16,Map!$E$2:$H$3437,4,FALSE)),"",VLOOKUP($AV$2&AX16,Map!$E$2:$H$3437,4,FALSE)) -> Commodity 13
AT17: Buyer 15 | AX17: 15 | AY17: =IF(ISERROR(VLOOKUP($AV$2&AX17,Map!$E$2:$H$3437,4,FALSE)),"",VLOOKUP($AV$2&AX17,Map!$E$2:$H$3437,4,FALSE)) -> Commodity 8
AT18: Buyer 16 | AX18: 16 | AY18: =IF(ISERROR(VLOOKUP($AV$2&AX18,Map!$E$2:$H$3437,4,FALSE)),"",VLOOKUP($AV$2&AX18,Map!$E$2:$H$3437,4,FALSE)) -> Commodity 10
A19: Buyer1 | B19: (All) | AT19: Buyer 17 | AX19: 17 | AY19: =IF(ISERROR(VLOOKUP($AV$2&AX19,Map!$E$2:$H$3437,4,FALSE)),"",VLOOKUP($AV$2&AX19,Map!$E$2:$H$3437,4,FALSE)) -> Commodity 19
AT20: Buyer 18 | AX20: 18 | AY20: =IF(ISERROR(VLOOKUP($AV$2&AX20,Map!$E$2:$H$3437,4,FALSE)),"",VLOOKUP($AV$2&AX20,Map!$E$2:$H$3437,4,FALSE)) -> Commodity 6
A21: Sum of Bought Tonnes (unshrunk) | B21: Column Labels | J21: =MATCH(J22,$B$22:$G$22) -> 1 | K21: =MATCH(K22,$B$22:$G$22) -> 2 | L21: 3 | M21: 4 | N21: 5 | O21: 6 | AT21: Buyer 19 | AX21: 19 | AY21: =IF(ISERROR(VLOOKUP($AV$2&AX21,Map!$E$2:$H$3437,4,FALSE)),"",VLOOKUP($AV$2&AX21,Map!$E$2:$H$3437,4,FALSE)) -> Commodity 18
A22: Row Labels | B22: 07 | C22: 08 | D22: 09 | E22: 10 | F22: 11 | G22: Grand Total | I22: Row Labels | J22: 07 | K22: 08 | L22: 09 | M22: 10 | N22: 11 | O22: Grand Total | P22: 2007 | Q22: 2008 | R22: 2009 | S22: 2010 | T22: 2011 | U22: Average | AT22: Buyer 20 | AX22: 20 | AY22: =IF(ISERROR(VLOOKUP($AV$2&AX22,Map!$E$2:$H$3437,4,FALSE)),"",VLOOKUP($AV$2&AX22,Map!$E$2:$H$3437,4,FALSE)) -> 
A23: Commodity 1 | B23: 507679.51 | C23: 328236.07 | D23: 417099.57 | E23: 1750577.87 | F23: 1077156.27 | G23: 4080749.29 | I23: Commodity 1 | J23: =IF(ISERROR(VLOOKUP($I23,$A$22:$G$28,J$21+1,FALSE)),"",IF(VLOOKUP($I23,$A$22:$G$28,J$21+1,FALSE)="","",VLOOKUP($I23,$A$22:$G$28,J$21+1,FALSE))) -> 507679.51 | K23: =IF(ISERROR(VLOOKUP($I23,$A$22:$G$28,K$21+1,FALSE)),"",IF(VLOOKUP($I23,$A$22:$G$28,K$21+1,FALSE)="","",VLOOKUP($I23,$A$22:$G$28,K$21+1,FALSE))) -> 328236.07 | L23: 417099.57 | M23: 1750577.87 | N23: 1077156.27 | O23: 4080749.29 | P23: =IF(ISERROR(J23/J$28),"",J23/J$28) -> 0.1301973778 | Q23: =IF(ISERROR(K23/K$28),"",K23/K$28) -> 0.04985753953 | R23: =IF(ISERROR(L23/L$28),"",L23/L$28) -> 0.09218600003 | S23: =IF(ISERROR(M23/M$28),"",M23/M$28) -> 0.1263050654 | T23: =IF(ISERROR(N23/N$28),"",N23/N$28) -> 0.1464606482 | U23: =IF(ISERROR(O23/O$28),"",O23/O$28) -> 0.1126599564 | AT23: Buyer 21
A24: Commodity 2 | B24: 1300093.28 | C24: 4725922.01 | D24: 3181493.3 | E24: 10156050.8 | F24: 5296173.36 | G24: 24659732.75 | I24: Commodity 2 | J24: =IF(ISERROR(VLOOKUP($I24,$A$22:$G$28,J$21+1,FALSE)),"",IF(VLOOKUP($I24,$A$22:$G$28,J$21+1,FALSE)="","",VLOOKUP($I24,$A$22:$G$28,J$21+1,FALSE))) -> 1300093.28 | K24: 4725922.01 | L24: 3181493.3 | M24: 10156050.8 | N24: 5296173.36 | O24: 24659732.75 | P24: =IF(ISERROR(J24/J$28),"",J24/J$28) -> 0.3334165208 | Q24: 0.7178456757 | R24: 0.7031633752 | S24: 0.7327641242 | T24: 0.7201192668 | U24: 0.6807976226 | AT24: Buyer 22
A25: Commodity 3 | B25: 23826.72 | C25: 45458.28 | D25: 32538.65 | E25: 75186.21 | G25: 177009.86 | I25: Commodity 3 | J25: 23826.72 | K25: 45458.28 | L25: 32538.65 | M25: 75186.21 | O25: 177009.86 | P25: 0.006110501612 | Q25: 0.006904902293 | R25: 0.007191587347 | S25: 0.005424722505 | U25: 0.004886828787 | AT25: Buyer 23
A26: Commodity 4 | B26: 110604.63 | C26: 226072.68 | D26: 292782.75 | E26: 763165.33 | F26: 892958.89 | G26: 2285584.28 | I26: Commodity 4 | J26: 110604.63 | K26: 226072.68 | L26: 292782.75 | M26: 763165.33 | N26: 892958.89 | O26: 2285584.28 | P26: 0.02836520385 | Q26: 0.03433939354 | R26: 0.06470989793 | S26: 0.05506275872 | T26: 0.12141538 | U26: 0.06309964346 | AT26: Buyer 24
A27: Commodity 5 | B27: 1957102.58 | C27: 1257790.07 | D27: 600629.26 | E27: 1114937.96 | F27: 88289.54 | G27: 5018749.41 | I27: Commodity 5 | J27: 1957102.58 | K27: 1257790.07 | L27: 600629.26 | M27: 1114937.96 | N27: 88289.54 | O27: 5018749.41 | P27: 0.501910396 | Q27: 0.191052489 | R27: 0.1327491394 | S27: 0.08044332921 | T27: 0.012004705 | U27: 0.1385559488 | AT27: Buyer 25
A28: Grand Total | B28: 3899306.72 | C28: 6583479.11 | D28: 4524543.53 | E28: 13859918.17 | F28: 7354578.06 | G28: 36221825.59 | I28: Grand Total | J28: =SUM(J23:J27) -> 3899306.72 | K28: =SUM(K23:K27) -> 6583479.11 | L28: 4524543.53 | M28: 13859918.17 | N28: 7354578.06 | O28: 36221825.59 | P28: 1 | Q28: 1 | R28: 1 | S28: 1 | T28: 1 | U28: 1 | AT28: Buyer 26
AT29: Buyer 27
AT30: Buyer 28
A31: Buyer1 | B31: (All) | AT31: Buyer 29
AT32: Buyer 30
A33: Sum of Bought Tonnes (unshrunk) | B33: Column Labels | J33: =MATCH(J34,$B$34:$G$34) -> 1 | K33: =MATCH(K34,$B$34:$G$34) -> 2 | L33: 3 | M33: 4 | N33: 5 | O33: 6 | AT33: Buyer 31
A34: Row Labels | B34: 07 | C34: 08 | D34: 09 | E34: 10 | F34: 11 | G34: Grand Total | I34: Row Labels | J34: 07 | K34: 08 | L34: 09 | M34: 10 | N34: 11 | O34: Grand Total | P34: 2007 | Q34: 2008 | R34: 2009 | S34: 2010 | T34: 2011 | U34: Average | AT34: Buyer 32
A35: Option 1 | B35: 1028567.39 | C35: 819335.19 | D35: 901796.02 | E35: 2260082.17 | F35: 1066245.73 | G35: 6076026.5 | I35: Option 1 | J35: =IF(ISERROR(VLOOKUP($I35,$A$34:$G$38,J$33+1,FALSE)),0,IF(VLOOKUP($I35,$A$34:$G$38,J$33+1,FALSE)="","",VLOOKUP($I35,$A$34:$G$38,J$33+1,FALSE))) -> 1028567.39 | K35: =IF(ISERROR(VLOOKUP($I35,$A$34:$G$38,K$33+1,FALSE)),0,IF(VLOOKUP($I35,$A$34:$G$38,K$33+1,FALSE)="","",VLOOKUP($I35,$A$34:$G$38,K$33+1,FALSE))) -> 819335.19 | L35: 901796.02 | M35: 2260082.17 | N35: 1066245.73 | O35: 6076026.5 | P35: =IFERROR(J35/J$38,0%) -> 0.1758291481 | Q35: =IFERROR(K35/K$38,0%) -> 0.08467827817 | R35: =IFERROR(L35/L$38,0%) -> 0.1173641297 | S35: =IFERROR(M35/M$38,0%) -> 0.1479490358 | T35: =IFERROR(N35/N$38,0%) -> 0.130418207 | U35: =IFERROR(O35/O$38,0%) -> 0.1302161229 | AT35: Buyer 33
A36: Option 2 | B36: 4694458.67 | C36: 8097103.29 | D36: 6093733.93 | E36: 11625525.33 | F36: 5858930.316 | G36: 36369751.54 | I36: Option 2 | J36: =IF(ISERROR(VLOOKUP($I36,$A$34:$G$38,J$33+1,FALSE)),0,IF(VLOOKUP($I36,$A$34:$G$38,J$33+1,FALSE)="","",VLOOKUP($I36,$A$34:$G$38,J$33+1,FALSE))) -> 4694458.67 | K36: 8097103.29 | L36: 6093733.93 | M36: 11625525.33 | N36: 5858930.316 | O36: 36369751.54 | P36: =IFERROR(J36/J$38,0%) -> 0.8024974121 | Q36: 0.8368354894 | R36: 0.7930682365 | S36: 0.7610277567 | T36: 0.7166370429 | U36: 0.7794449278 | AT36: Buyer 34
A37: Option 3 | B37: 126785.54 | C37: 759421.82 | D37: 688214.84 | E37: 1390478.33 | F37: 1250413.5 | G37: 4215314.03 | I37: Option 3 | J37: 126785.54 | K37: 759421.82 | L37: 688214.84 | M37: 1390478.33 | N37: 1250413.5 | O37: 4215314.03 | P37: 0.02167343988 | Q37: 0.07848623238 | R37: 0.08956763386 | S37: 0.09102320748 | T37: 0.1529447501 | U37: 0.09033894929 | AT37: Buyer 35
A38: Grand Total | B38: 5849811.6 | C38: 9675860.3 | D38: 7683744.79 | E38: 15276085.83 | F38: 8175589.546 | G38: 46661092.07 | I38: Grand Total | J38: =SUM(J35:J37) -> 5849811.6 | K38: =SUM(K35:K37) -> 9675860.3 | L38: 7683744.79 | M38: 15276085.83 | N38: 8175589.546 | O38: 46661092.07 | P38: =J38/J$38 -> 1 | Q38: =K38/K$38 -> 1 | R38: =L38/L$38 -> 1 | S38: =M38/M$38 -> 1 | T38: =N38/N$38 -> 1 | U38: =O38/O$38 -> 1 | AT38: Buyer 36
AT39: Buyer 37
A40: Buyer1 | B40: (All) | AT40: Buyer 38
A41: Commodity | B41: (All) | AT41: Buyer 39
W42: Buyer1 | X42: (All) | AT42: Buyer 40
A43: Sum of Bought Tonnes (unshrunk) | B43: Column Labels | J43: =MATCH(J44,$A$44:$E$44,0) -> 2 | K43: =MATCH(K44,$A$44:$E$44,0) -> 3 | L43: 4 | M43: 5 | AT43: Buyer 41
A44: Row Labels | B44: Option 1 | C44: Option 2 | D44: Option 3 | E44: Grand Total | I44: Row Labels | J44: Option 1 | K44: Option 2 | L44: Option 3 | M44: Grand Total | N44: Option 1 | O44: Option 2 | P44: Option 3 | Q44: Grand Total | R44: % | W44: Sum of Bought Tonnes (unshrunk) | X44: Column Labels | AF44: =MATCH(AF45,$W$45:$AA$45,0) -> 2 | AG44: 3 | AH44: 4 | AI44: =MATCH(AI45,$W$45:$AA$45,0) -> 5 | AT44: Buyer 42
A45: Grade 27 | B45: 14783.87 | C45: 3012487.51 | D45: 78823.04 | E45: 3106094.42 | I45: =IF(A45="Grand Total","",IF(A45="","",A45)) -> Grade 27 | J45: =IFERROR(VLOOKUP($I45,$A$45:$E$65,J$43,FALSE),0) -> 14783.87 | K45: =IFERROR(VLOOKUP($I45,$A$45:$E$65,K$43,FALSE),0) -> 3012487.51 | L45: =IFERROR(VLOOKUP($I45,$A$45:$E$65,L$43,FALSE),0) -> 78823.04 | M45: =IFERROR(VLOOKUP($I45,$A$45:$E$65,M$43,FALSE),0) -> 3106094.42 | N45: =IF(ISERROR(J45/$M45),0,J45/$M45) -> 0.00475963316 | O45: =IF(ISERROR(K45/$M45),0,K45/$M45) -> 0.9698634693 | P45: =IF(ISERROR(L45/$M45),0,L45/$M45) -> 0.02537689759 | Q45: =IF(ISERROR(M45/$M45),0,M45/$M45) -> 1 | R45: =M45/GETPIVOTDATA("Bought Tonnes (unshrunk)",$A$43) -> 0.08575201193 | W45: Row Labels | X45: Option 1 | Y45: Option 2 | Z45: Option 3 | AA45: Grand Total | AE45: Row Labels | AF45: Option 1 | AG45: Option 2 | AH45: Option 3 | AI45: Grand Total | AJ45: Option 1 | AK45: Option 2 | AL45: Option 3 | AM45: Grand Total | AN45: % | AT45: Buyer 43
A46: Grade 6 | B46: 333697.39 | C46: 1860051.12 | D46: 442453.07 | E46: 2636201.58 | I46: =IF(A46="Grand Total","",IF(A46="","",A46)) -> Grade 6 | J46: =IFERROR(VLOOKUP($I46,$A$45:$E$65,J$43,FALSE),0) -> 333697.39 | K46: 1860051.12 | L46: 442453.07 | M46: 2636201.58 | N46: =IF(ISERROR(J46/$M46),0,J46/$M46) -> 0.1265826531 | O46: 0.7055800035 | P46: 0.1678373435 | Q46: 1 | R46: =M46/GETPIVOTDATA("Bought Tonnes (unshrunk)",$A$43) -> 0.07277936816 | W46: Commodity 2 | X46: 2805095.84 | Y46: 19041688.74 | Z46: 2812948.17 | AA46: 24659732.75 | AE46: =IF(W46="Grand Total","",IF(W46="","",W46)) -> Commodity 2 | AF46: =IFERROR(VLOOKUP($AE46,$W$45:$AA$64,AF$44,FALSE),0) -> 2805095.84 | AG46: =IFERROR(VLOOKUP($AE46,$W$45:$AA$64,AG$44,FALSE),0) -> 19041688.74 | AH46: 2812948.17 | AI46: 24659732.75 | AJ46: =IF(ISERROR(AF46/$AI46),0,AF46/$AI46) -> 0.1137520779 | AK46: =IF(ISERROR(AG46/$AI46),0,AG46/$AI46) -> 0.772177417 | AL46: =IF(ISERROR(AH46/$AI46),0,AH46/$AI46) -> 0.1140705051 | AM46: =IF(ISERROR(AI46/$AI46),0,AI46/$AI46) -> 1 | AN46: =AI46/GETPIVOTDATA("Bought Tonnes (unshrunk)",$W$44) -> 0.6807976226 | AT46: Buyer 44
A47: Grade 173 | B47: 433513.94 | C47: 1670765.49 | D47: 526691.77 | E47: 2630971.2 | I47: Grade 173 | J47: 433513.94 | K47: 1670765.49 | L47: 526691.77 | M47: 2630971.2 | N47: 0.1647733506 | O47: 0.6350375443 | P47: 0.2001891051 | Q47: 1 | R47: 0.07263496959 | W47: Commodity 5 | X47: 17856.34 | Y47: 4315418.1 | Z47: 96158.56 | AA47: 4429433 | AE47: =IF(W47="Grand Total","",IF(W47="","",W47)) -> Commodity 5 | AF47: =IFERROR(VLOOKUP($AE47,$W$45:$AA$64,AF$44,FALSE),0) -> 17856.34 | AG47: 4315418.1 | AH47: 96158.56 | AI47: 4429433 | AJ47: =IF(ISERROR(AF47/$AI47),0,AF47/$AI47) -> 0.004031292493 | AK47: 0.9742597077 | AL47: 0.02170899977 | AM47: 1 | AN47: =AI47/GETPIVOTDATA("Bought Tonnes (unshrunk)",$W$44) -> 0.1222862992 | AT47: Buyer 45
A48: Grade 5 | B48: 301137.99 | C48: 1953328.028 | D48: 332935.28 | E48: 2587401.298 | I48: Grade 5 | J48: 301137.99 | K48: 1953328.028 | L48: 332935.28 | M48: 2587401.298 | N48: 0.1163862715 | O48: 0.7549381804 | P48: 0.128675548 | Q48: 1 | R48: 0.07143210636 | W48: Commodity 1 | X48: 951039.87 | Y48: 2895199.21 | Z48: 234510.21 | AA48: 4080749.29 | AE48: Commodity 1 | AF48: 951039.87 | AG48: 2895199.21 | AH48: 234510.21 | AI48: 4080749.29 | AJ48: 0.2330552069 | AK48: 0.7094773543 | AL48: 0.05746743878 | AM48: 1 | AN48: 0.1126599564 | AT48: Buyer 46
A49: Grade 178 | B49: 158411.04 | C49: 1875796.58 | D49: 274120.7 | E49: 2308328.32 | I49: Grade 178 | J49: 158411.04 | K49: 1875796.58 | L49: 274120.7 | M49: 2308328.32 | N49: 0.06862587034 | O49: 0.8126212219 | P49: 0.1187529077 | Q49: 1 | R49: 0.06372755328 | W49: Commodity 4 | X49: 348452.3 | Y49: 1906486.06 | Z49: 30645.92 | AA49: 2285584.28 | AE49: Commodity 4 | AF49: 348452.3 | AG49: 1906486.06 | AH49: 30645.92 | AI49: 2285584.28 | AJ49: 0.1524565526 | AK49: 0.8341350948 | AL49: 0.01340835263 | AM49: 1 | AN49: 0.06309964346 | AT49: Buyer 47
A50: Grade 4 | B50: 157107.21 | C50: 1980364.04 | D50: 162115.5 | E50: 2299586.75 | I50: Grade 4 | J50: 157107.21 | K50: 1980364.04 | L50: 162115.5 | M50: 2299586.75 | N50: 0.06831975789 | O50: 0.8611825755 | P50: 0.07049766659 | Q50: 1 | R50: 0.06348621895 | W50: Commodity 7 | Y50: 257106.71 | Z50: 1506.65 | AA50: 258613.36 | AE50: Commodity 7 | AF50: 0 | AG50: 257106.71 | AH50: 1506.65 | AI50: 258613.36 | AJ50: 0 | AK50: 0.9941741216 | AL50: 0.005825878446 | AM50: 1 | AN50: 0.007139710818 | AT50: Buyer 48
A51: Grade 10 | B51: 318456.77 | C51: 1756595.15 | D51: 189498.96 | E51: 2264550.88 | I51: Grade 10 | J51: 318456.77 | K51: 1756595.15 | L51: 189498.96 | M51: 2264550.88 | N51: 0.1406268999 | O51: 0.7756925073 | P51: 0.08368059277 | Q51: 1 | R51: 0.06251896041 | W51: Commodity 17 | Y51: 221891.11 | Z51: 1705.55 | AA51: 223596.66 | AE51: Commodity 17 | AF51: 0 | AG51: 221891.11 | AH51: 1705.55 | AI51: 223596.66 | AJ51: 0 | AK51: 0.9923722027 | AL51: 0.007627797303 | AM51: 1 | AN51: 0.006172981521 | AT51: Buyer 49
A52: Grade 9 | B52: 180763.02 | C52: 1757192.49 | D52: 150511.89 | E52: 2088467.4 | I52: Grade 9 | J52: 180763.02 | K52: 1757192.49 | L52: 150511.89 | M52: 2088467.4 | N52: 0.08655295266 | O52: 0.8413789413 | P52: 0.07206810602 | Q52: 1 | R52: 0.05765770681 | W52: Commodity 3 | Y52: 177009.86 | AA52: 177009.86 | AE52: Commodity 3 | AF52: 0 | AG52: 177009.86 | AH52: 0 | AI52: 177009.86 | AJ52: 0 | AK52: 1 | AL52: 0 | AM52: 1 | AN52: 0.004886828787 | AT52: Buyer 50
A53: Grade 7 | B53: 139460.2 | C53: 1527313.42 | D53: 109681.27 | E53: 1776454.89 | I53: Grade 7 | J53: 139460.2 | K53: 1527313.42 | L53: 109681.27 | M53: 1776454.89 | N53: 0.07850477982 | O53: 0.8597535623 | P53: 0.06174165785 | Q53: 1 | R53: 0.04904377019 | W53: Commodity 16 | Y53: 43635.96 | AA53: 43635.96 | AE53: Commodity 16 | AF53: 0 | AG53: 43635.96 | AH53: 0 | AI53: 43635.96 | AJ53: 0 | AK53: 1 | AL53: 0 | AM53: 1 | AN53: 0.001204686934 | AT53: Buyer 51
A54: Grade 160 | B54: 415700.87 | C54: 1195804.17 | D54: 140928.3 | E54: 1752433.34 | I54: Grade 160 | J54: 415700.87 | K54: 1195804.17 | L54: 140928.3 | M54: 1752433.34 | N54: 0.2372135136 | O54: 0.6823678497 | P54: 0.08041863664 | Q54: 1 | R54: 0.0483805913 | W54: Commodity 14 | Y54: 25598.26 | AA54: 25598.26 | AE54: Commodity 14 | AF54: 0 | AG54: 25598.26 | AH54: 0 | AI54: 25598.26 | AJ54: 0 | AK54: 1 | AL54: 0 | AM54: 1 | AN54: 0.0007067081679 | AT54: Buyer 52
A55: Grade 3 | B55: 338216.79 | C55: 1158865.75 | D55: 231174.96 | E55: 1728257.5 | I55: Grade 3 | J55: 338216.79 | K55: 1158865.75 | L55: 231174.96 | M55: 1728257.5 | N55: 0.1956981468 | O55: 0.6705399803 | P55: 0.1337618729 | Q55: 1 | R55: 0.04771315283 | W55: Commodity 11 | Y55: 10479.26 | AA55: 10479.26 | AE55: Commodity 11 | AF55: 0 | AG55: 10479.26 | AH55: 0 | AI55: 10479.26 | AJ55: 0 | AK55: 1 | AL55: 0 | AM55: 1 | AN55: 0.0002893078919 | AT55: Buyer 53
A56: Grade 166 | B56: 265488.01 | C56: 1174165.18 | D56: 29440.71 | E56: 1469093.9 | I56: Grade 166 | J56: 265488.01 | K56: 1174165.18 | L56: 29440.71 | M56: 1469093.9 | N56: 0.1807154805 | O56: 0.7992444731 | P56: 0.02004004645 | Q56: 1 | R56: 0.04055825117 | W56: Commodity 12 | Y56: 9255.32 | AA56: 9255.32 | AE56: Commodity 12 | AF56: 0 | AG56: 9255.32 | AH56: 0 | AI56: 9255.32 | AJ56: 0 | AK56: 1 | AL56: 0 | AM56: 1 | AN56: 0.0002555177673 | AT56: Buyer 54
A57: Grade 179 | B57: 225400.67 | C57: 893869.47 | D57: 144910.88 | E57: 1264181.02 | I57: Grade 179 | J57: 225400.67 | K57: 893869.47 | L57: 144910.88 | M57: 1264181.02 | N57: 0.1782977805 | O57: 0.7070739521 | P57: 0.1146282674 | Q57: 1 | R57: 0.03490108517 | W57: Commodity 8 | Y57: 6817.48 | AA57: 6817.48 | AE57: Commodity 8 | AF57: 0 | AG57: 6817.48 | AH57: 0 | AI57: 6817.48 | AJ57: 0 | AK57: 1 | AL57: 0 | AM57: 1 | AN57: 0.000188214699 | AT57: Buyer 55
A58: Grade 172 | B58: 3072.47 | C58: 1231479.19 | D58: 16040.83 | E58: 1250592.49 | I58: Grade 172 | J58: 3072.47 | K58: 1231479.19 | L58: 16040.83 | M58: 1250592.49 | N58: 0.002456811491 | O58: 0.9847166042 | P58: 0.0128265843 | Q58: 1 | R58: 0.0345259376 | W58: Commodity 13 | Y58: 6403.55 | AA58: 6403.55 | AE58: Commodity 13 | AF58: 0 | AG58: 6403.55 | AH58: 0 | AI58: 6403.55 | AJ58: 0 | AK58: 1 | AL58: 0 | AM58: 1 | AN58: 0.0001767870585 | AT58: Buyer 56
A59: Grade 1 | B59: 161322.33 | C59: 518258.77 | D59: 26034.06 | E59: 705615.16 | I59: Grade 1 | J59: 161322.33 | K59: 518258.77 | L59: 26034.06 | M59: 705615.16 | N59: 0.228626508 | O59: 0.7344779412 | P59: 0.03689555083 | Q59: 1 | R59: 0.01948038644 | W59: Commodity 9 | X59: 2518.22 | AA59: 2518.22 | AE59: Commodity 9 | AF59: 2518.22 | AG59: 0 | AH59: 0 | AI59: 2518.22 | AJ59: 1 | AK59: 0 | AL59: 0 | AM59: 1 | AN59: 6.952217231e-05 | AT59: Buyer 57
A60: Grade 93 | B60: 54063.02 | C60: 511887.73 | D60: 117888.92 | E60: 683839.67 | W60: Commodity 6 | Y60: 1358.54 | AA60: 1358.54 | AE60: Commodity 6 | AF60: 0 | AG60: 1358.54 | AH60: 0 | AI60: 1358.54 | AJ60: 0 | AK60: 1 | AL60: 0 | AM60: 1 | AN60: 3.750611621e-05 | AT60: Buyer 58
A61: Grade 24 | B61: 56747.74 | C61: 528697.7 | E61: 585445.44 | W61: Commodity 15 | Y61: 1039.8 | AA61: 1039.8 | AT61: Buyer 59
A62: Grade 8 | B62: 77674.4 | C62: 307922.15 | D62: 22381.6 | E62: 407978.15 | W62: Grand Total | X62: 4124962.57 | Y62: 28919387.96 | Z62: 3177475.06 | AA62: 36221825.59 | AT62: Buyer 60
A63: Grade 113 | B63: 9449.27 | C63: 305105.98 | D63: 47903.17 | E63: 362458.42 | AT63: Buyer 61
A64: Grade 163 | B64: 106381.03 | C64: 237215.58 | D64: 14874.86 | E64: 358471.47 | AT64: Buyer 62
A65: Grade 33 | C65: 339473.08 | D65: 1506.65 | E65: 340979.73 | AT65: Buyer 63
A66: Grade 129 | B66: 82588.88 | C66: 223752.74 | D66: 23451.84 | E66: 329793.46 | AT66: Buyer 64
A67: Grade 15 | B67: 26740.03 | C67: 281745.16 | D67: 7837.65 | E67: 316322.84 | AT67: Buyer 65
A68: Grade 41 | B68: 3155.08 | C68: 272782.63 | D68: 24038.93 | E68: 299976.64 | AT68: Buyer 66
A69: Grade 18 | B69: 67132.46 | C69: 173065.55 | D69: 1077.48 | E69: 241275.49 | AT69: Buyer 67
A70: Grade 42 | B70: 5342.51 | C70: 158143.39 | D70: 10886.15 | E70: 174372.05 | AT70: Buyer 68
A71: Grade 174 | C71: 142990.99 | E71: 142990.99 | AT71: Buyer 69
A72: Grade 103 | B72: 5414.21 | C72: 114642.7 | E72: 120056.91 | AT72: Buyer 70
A73: Grade 212 | C73: 114440.37 | D73: 1705.55 | E73: 116145.92 | AT73: Buyer 71
A74: Grade 164 | B74: 42305.9 | C74: 52955.99 | D74: 11016.42 | E74: 106278.31 | AT74: Buyer 72
A75: Grade 161 | B75: 7594.2 | C75: 67465.57 | D75: 4831.65 | E75: 79891.42 | AT75: Buyer 73
A76: Grade 159 | B76: 4348.13 | C76: 69053.8 | D76: 1071.76 | E76: 74473.69 | AT76: Buyer 74
A77: Grade 175 | B77: 1125.2 | C77: 56382.02 | D77: 11588.54 | E77: 69095.76 | AT77: Buyer 75
A78: Grade 216 | B78: 2093.85 | C78: 66551.34 | E78: 68645.19 | AT78: Buyer 76
A79: Grade 213 | C79: 63678.16 | E79: 63678.16 | AT79: Buyer 77
A80: Grade 158 | B80: 15818.62 | C80: 43985.7 | D80: 2758.16 | E80: 62562.48 | AT80: Buyer 78
A81: Grade 28 | C81: 57580.3 | D81: 1294.69 | E81: 58874.99 | AT81: Buyer 79
A82: Grade 177 | B82: 2157.78 | C82: 53035.1 | D82: 3214.22 | E82: 58407.1 | AT82: Buyer 80
A83: Grade 214 | C83: 57978.8 | E83: 57978.8 | AT83: Buyer 81
A84: Grade 54 | B84: 3224.86 | C84: 50660.28 | E84: 53885.14 | AT84: Buyer 82
A85: Grade 229 | B85: 10702.07 | C85: 33538.08 | D85: 1205.21 | E85: 45445.36 | AT85: Buyer 83
A86: Grade 156 | C86: 43635.96 | E86: 43635.96 | AT86: Buyer 84
A87: Grade 48 | B87: 16615.37 | C87: 25750.67 | E87: 42366.04 | AT87: Buyer 85
A88: Grade 43 | B88: 1057.34 | C88: 40501.45 | E88: 41558.79 | AT88: Buyer 86
A89: Grade 94 | C89: 40246.42 | E89: 40246.42 | AT89: Buyer 87
A90: Grade 86 | C90: 40006.23 | E90: 40006.23 | AT90: Buyer 88
A91: Grade 167 | B91: 7754.47 | C91: 28732.01 | E91: 36486.48 | AT91: Buyer 89
A92: Grade 251 | C92: 32651.05 | D92: 1899.88 | E92: 34550.93 | AT92: Buyer 90
A93: Grade 2 | B93: 7746.16 | C93: 21779.29 | D93: 4478.79 | E93: 34004.24 | AT93: Buyer 91
A94: Grade 96 | C94: 31875.77 | E94: 31875.77 | AT94: Buyer 92
A95: Grade 57 | C95: 29044.18 | E95: 29044.18 | AT95: Buyer 93
A96: Grade 202 | C96: 28632.06 | E96: 28632.06 | AT96: Buyer 94
A97: Grade 55 | C97: 28030.22 | E97: 28030.22 | AT97: Buyer 95
A98: Grade 76 | C98: 27739.96 | E98: 27739.96 | AT98: Buyer 96
A99: Grade 14 | B99: 6296.31 | C99: 19390.83 | E99: 25687.14 | AT99: Buyer 97
A100: Grade 11 | B100: 3038.68 | C100: 20780.28 | D100: 1215.26 | E100: 25034.22 | AT100: Buyer 98
A101: Grade 98 | C101: 22165.49 | D101: 1080.59 | E101: 23246.08 | AT101: Buyer 99
A102: Grade 51 | B102: 7923.13 | C102: 13602.11 | E102: 21525.24 | AT102: Buyer 100
A103: Grade 46 | B103: 4466.13 | C103: 13871.95 | E103: 18338.08 | AT103: Buyer 101
A104: Grade 35 | C104: 18316.6 | E104: 18316.6 | AT104: Buyer 102
A105: Grade 52 | B105: 14842.68 | C105: 3152.56 | E105: 17995.24 | AT105: Buyer 103
A106: Grade 119 | C106: 17971.52 | E106: 17971.52 | AT106: Buyer 104
A107: Grade 116 | C107: 16922.53 | E107: 16922.53 | AT107: Buyer 105
A108: Grade 183 | C108: 13919.67 | D108: 1691.04 | E108: 15610.71 | AT108: Buyer 106
A109: Grade 88 | C109: 15373.97 | E109: 15373.97 | AT109: Buyer 107
A110: Grade 249 | C110: 14118.78 | E110: 14118.78 | AT110: Buyer 108
A111: Grade 53 | C111: 14101.9 | E111: 14101.9 | AT111: Buyer 109
A112: Grade 39 | C112: 13460.87 | E112: 13460.87 | AT112: Buyer 110
A113: Grade 135 | C113: 11131.1 | E113: 11131.1 | AT113: Buyer 111
A114: Grade 56 | C114: 10767.81 | E114: 10767.81 | AT114: Buyer 112
A115: Grade 77 | C115: 10601.46 | E115: 10601.46 | AT115: Buyer 113
A116: Grade 90 | B116: 1115.52 | C116: 9416.66 | E116: 10532.18 | AT116: Buyer 114
A117: Grade 204 | C117: 10410.78 | E117: 10410.78 | AT117: Buyer 115
A118: Grade 180 | C118: 9871.33 | E118: 9871.33 | AT118: Buyer 116
A119: Grade 100 | C119: 9853.89 | E119: 9853.89 | AT119: Buyer 117
A120: Grade 44 | C120: 9823.89 | E120: 9823.89 | AT120: Buyer 118
A121: Grade 136 | C121: 9808.32 | E121: 9808.32 | AT121: Buyer 119
A122: Grade 184 | C122: 9666.34 | E122: 9666.34 | AT122: Buyer 120
A123: Grade 78 | C123: 7802.69 | E123: 7802.69 | AT123: Buyer 121
A124: Grade 75 | C124: 7693.71 | E124: 7693.71 | AT124: Buyer 122
A125: Grade 25 | C125: 7657.02 | E125: 7657.02 | AT125: Buyer 123
A126: Grade 194 | C126: 7592.08 | E126: 7592.08 | AT126: Buyer 124
A127: Grade 222 | C127: 7354.9 | E127: 7354.9 | AT127: Buyer 125
A128: Grade 192 | B128: 1867.4 | C128: 5318.8 | E128: 7186.2 | AT128: Buyer 126
A129: Grade 125 | C129: 7050.86 | E129: 7050.86 | AT129: Buyer 127
A130: Grade 147 | C130: 6817.07 | E130: 6817.07 | AT130: Buyer 128
A131: Grade 97 | C131: 6743.14 | E131: 6743.14 | AT131: Buyer 129
A132: Grade 148 | C132: 6654.72 | E132: 6654.72 | AT132: Buyer 130
A133: Grade 108 | C133: 6403.55 | E133: 6403.55 | AT133: Buyer 131
A134: Grade 187 | C134: 6319.52 | E134: 6319.52 | AT134: Buyer 132
A135: Grade 176 | B135: 1569.91 | C135: 3415.88 | D135: 1214.83 | E135: 6200.62 | AT135: Buyer 133
A136: Grade 13 | B136: 4052.3 | C136: 2011.59 | E136: 6063.89 | AT136: Buyer 134
A137: Grade 107 | C137: 6053.32 | E137: 6053.32 | AT137: Buyer 135
A138: Grade 191 | B138: 2891.16 | C138: 2698.92 | E138: 5590.08 | AT138: Buyer 136
A139: Grade 34 | C139: 5404.29 | E139: 5404.29 | AT139: Buyer 137
A140: Grade 240 | C140: 5339.32 | E140: 5339.32 | AT140: Buyer 138
A141: Grade 221 | C141: 5281.78 | E141: 5281.78 | AT141: Buyer 139
A142: Grade 128 | C142: 5117.62 | E142: 5117.62 | AT142: Buyer 140
A143: Grade 130 | B143: 1314.9 | C143: 3663.4 | E143: 4978.3 | AT143: Buyer 141
A144: Grade 112 | C144: 4918.65 | E144: 4918.65 | AT144: Buyer 142
A145: Grade 244 | C145: 4825.47 | E145: 4825.47 | AT145: Buyer 143
A146: Grade 250 | C146: 4756.84 | E146: 4756.84 | AT146: Buyer 144
A147: Grade 126 | C147: 4666.4 | E147: 4666.4 | AT147: Buyer 145
A148: Grade 171 | C148: 4658.84 | E148: 4658.84 | AT148: Buyer 146
A149: Grade 16 | C149: 4598.08 | E149: 4598.08 | AT149: Buyer 147
A150: Grade 252 | C150: 4482.06 | E150: 4482.06 | AT150: Buyer 148
A151: Grade 110 | C151: 4263.57 | E151: 4263.57 | AT151: Buyer 149
A152: Grade 264 | C152: 3971.94 | E152: 3971.94 | AT152: Buyer 150
A153: Grade 63 | C153: 3656.17 | E153: 3656.17 | AT153: Buyer 151
A154: Grade 170 | B154: 1030.34 | C154: 2419.35 | E154: 3449.69 | AT154: Buyer 152
A155: Grade 82 | C155: 3278.42 | E155: 3278.42 | AT155: Buyer 153
A156: Grade 206 | C156: 3151.32 | E156: 3151.32 | AT156: Buyer 154
A157: Grade 197 | C157: 2940.94 | E157: 2940.94 | AT157: Buyer 155
A158: Grade 19 | B158: 1158.54 | C158: 1505.4 | E158: 2663.94 | AT158: Buyer 156
A159: Grade 105 | C159: 2651.92 | E159: 2651.92 | AT159: Buyer 157
A160: Grade 219 | C160: 2602.56 | E160: 2602.56 | AT160: Buyer 158
A161: Grade 106 | C161: 2584.9 | E161: 2584.9 | AT161: Buyer 159
A162: Grade 60 | B162: 2518.22 | E162: 2518.22 | AT162: Buyer 160
A163: Grade 29 | C163: 2471.4 | E163: 2471.4 | AT163: Buyer 161
A164: Grade 66 | C164: 2365.61 | E164: 2365.61 | AT164: Buyer 162
A165: Grade 203 | C165: 2223.64 | E165: 2223.64 | AT165: Buyer 163
A166: Grade 253 | C166: 2154.2 | E166: 2154.2 | AT166: Buyer 164
A167: Grade 104 | B167: 2073.58 | E167: 2073.58 | AT167: Buyer 165
A168: Grade 217 | C168: 1765.99 | E168: 1765.99 | AT168: Buyer 166
A169: Grade 137 | C169: 1759.2 | E169: 1759.2 | AT169: Buyer 167
A170: Grade 74 | C170: 1704.61 | E170: 1704.61 | AT170: Buyer 168
A171: Grade 127 | C171: 1703.76 | E171: 1703.76 | AT171: Buyer 169
A172: Grade 22 | C172: 1695.81 | E172: 1695.81 | AT172: Buyer 170
A173: Grade 20 | C173: 1690.07 | E173: 1690.07 | AT173: Buyer 171
A174: Grade 259 | C174: 1605.03 | E174: 1605.03 | AT174: Buyer 172
A175: Grade 38 | C175: 1572.82 | E175: 1572.82 | AT175: Buyer 173
A176: Grade 262 | C176: 1551.58 | E176: 1551.58 | AT176: Buyer 174
A177: Grade 139 | C177: 1536.7 | E177: 1536.7 | AT177: Buyer 175
A178: Grade 145 | C178: 1498.58 | E178: 1498.58 | AT178: Buyer 176
A179: Grade 237 | C179: 1387.56 | E179: 1387.56 | AT179: Buyer 177
A180: Grade 101 | B180: 1386.8 | E180: 1386.8 | AT180: Buyer 178
A181: Grade 37 | C181: 1358.54 | E181: 1358.54 | AT181: Buyer 179
A182: Grade 150 | C182: 1329.01 | E182: 1329.01 | AT182: Buyer 180
A183: Grade 162 | C183: 1320.68 | E183: 1320.68 | AT183: Buyer 181
A184: Grade 168 | B184: 1315.46 | E184: 1315.46 | AT184: Buyer 182
A185: Grade 40 | C185: 1312.38 | E185: 1312.38 | AT185: Buyer 183
A186: Grade 157 | B186: 1270.36 | E186: 1270.36 | AT186: Buyer 184
A187: Grade 218 | C187: 1207.52 | E187: 1207.52 | AT187: Buyer 185
A188: Grade 181 | C188: 1176.1 | E188: 1176.1 | AT188: Buyer 186
A189: Grade 235 | C189: 1172.54 | E189: 1172.54 | AT189: Buyer 187
A190: Grade 73 | C190: 1080.94 | E190: 1080.94 | AT190: Buyer 188
A191: Grade 62 | C191: 1075.88 | E191: 1075.88 | AT191: Buyer 189
A192: Grade 227 | B192: 1066 | E192: 1066 | AT192: Buyer 190
A193: Grade 95 | C193: 1058.25 | E193: 1058.25 | AT193: Buyer 191
A194: Grade 80 | C194: 1049.59 | E194: 1049.59 | AT194: Buyer 192
A195: Grade 138 | C195: 1039.8 | E195: 1039.8 | AT195: Buyer 193
A196: Grand Total | B196: 4124962.57 | C196: 28919387.96 | D196: 3177475.06 | E196: 36221825.59 | AT196: Buyer 194
AT197: Buyer 195
AT198: Buyer 196
AT199: Buyer 197
AT200: Buyer 198
... 925 more rows

Sheet Five (hidden)
J1: 2007 | K1: 2008 | L1: 2009 | M1: 2010 | N1: 2011 | O1: Average | AT1: Commodity | AU1: Selection | AV1: 1 | AY1: Commodity | AZ1: Selection | BA1: 1 | BC1: Total | BD1: =COUNTA(AY2:AY2754)-COUNTBLANK(AY2:AY2754) -> 2753
J2: 07 | K2: 08 | L2: 09 | M2: 10 | N2: 11 | O2: Grand Total | AT2: All | AU2: Selected | AV2: =INDEX(AT2:AT21,AV1) -> All | AY2: All | AZ2: Selected | BA2: =INDEX(AY2:AY22,BA1) -> All
I3: =B5 -> (All) | J3: =GETPIVOTDATA("Bought Tonnes (unshrunk)",$A$7,"Season Year","07") -> 3899306.72 | K3: =GETPIVOTDATA("Bought Tonnes (unshrunk)",$A$7,"Season Year","08") -> 6583479.11 | L3: =GETPIVOTDATA("Bought Tonnes (unshrunk)",$A$7,"Season Year","09") -> 4524543.53 | M3: =GETPIVOTDATA("Bought Tonnes (unshrunk)",$A$7,"Season Year","10") -> 13859918.17 | N3: =GETPIVOTDATA("Bought Tonnes (unshrunk)",$A$7,"Season Year","11") -> 7354578.06 | O3: =GETPIVOTDATA("Bought Tonnes (unshrunk)",$A$7) -> 36221825.59 | AT3: Commodity 1 | AX3: 1 | AY3: =IF(ISERROR(VLOOKUP($AV$2&AX3,Map!$J$1:$M$6170,4,FALSE)),"",VLOOKUP($AV$2&AX3,Map!$J$1:$M$6170,4,FALSE)) -> Category 6
I4: Grand Total | J4: 5849811.6 | K4: 9677872.66 | L4: 7683907.47 | M4: 15277634.07 | N4: 8175708.766 | O4: 46664934.57 | AT4: Commodity 2 | AX4: 2 | AY4: =IF(ISERROR(VLOOKUP($AV$2&AX4,Map!$J$1:$M$6170,4,FALSE)),"",VLOOKUP($AV$2&AX4,Map!$J$1:$M$6170,4,FALSE)) -> Category 2
A5: Commodity | B5: (All) | I5: Market Share | J5: =J3/J4 -> 0.6665696242 | K5: =K3/K4 -> 0.6802609769 | L5: 0.5888336823 | M5: 0.9072031772 | N5: 0.8995645846 | O5: 0.7762107871 | AT5: Commodity 3 | AX5: 3 | AY5: =IF(ISERROR(VLOOKUP($AV$2&AX5,Map!$J$1:$M$6170,4,FALSE)),"",VLOOKUP($AV$2&AX5,Map!$J$1:$M$6170,4,FALSE)) -> Category 65
AT6: Commodity 4 | AX6: 4 | AY6: =IF(ISERROR(VLOOKUP($AV$2&AX6,Map!$J$1:$M$6170,4,FALSE)),"",VLOOKUP($AV$2&AX6,Map!$J$1:$M$6170,4,FALSE)) -> Category 5
A7: Sum of Bought Tonnes (unshrunk) | B7: Column Labels | J7: =MATCH(J8,$B$8:$G$8) -> 1 | K7: =MATCH(K8,$B$8:$G$8) -> 2 | L7: 3 | M7: 4 | N7: 5 | O7: 6 | AT7: Commodity 5 | AX7: 5 | AY7: =IF(ISERROR(VLOOKUP($AV$2&AX7,Map!$J$1:$M$6170,4,FALSE)),"",VLOOKUP($AV$2&AX7,Map!$J$1:$M$6170,4,FALSE)) -> Category 23
A8: Row Labels | B8: 07 | C8: 08 | D8: 09 | E8: 10 | F8: 11 | G8: Grand Total | I8: Row Labels | J8: 07 | K8: 08 | L8: 09 | M8: 10 | N8: 11 | O8: Grand Total | P8: 2007 | Q8: 2008 | R8: 2009 | S8: 2010 | T8: 2011 | U8: Average | AT8: Commodity 6 | AX8: 6 | AY8: =IF(ISERROR(VLOOKUP($AV$2&AX8,Map!$J$1:$M$6170,4,FALSE)),"",VLOOKUP($AV$2&AX8,Map!$J$1:$M$6170,4,FALSE)) -> Category 4
A9: Region 1 | B9: 218414 | C9: 1256012.42 | D9: 756761.18 | E9: 2622292.518 | F9: 1240069.28 | G9: 6093549.398 | I9: Region 1 | J9: =IF(ISERROR(VLOOKUP($I9,$A$8:$G$16,J$7+1,FALSE)),"",IF(VLOOKUP($I9,$A$8:$G$16,J$7+1,FALSE)="","",VLOOKUP($I9,$A$8:$G$16,J$7+1,FALSE))) -> 218414 | K9: =IF(ISERROR(VLOOKUP($I9,$A$8:$G$16,K$7+1,FALSE)),"",IF(VLOOKUP($I9,$A$8:$G$16,K$7+1,FALSE)="","",VLOOKUP($I9,$A$8:$G$16,K$7+1,FALSE))) -> 1256012.42 | L9: 756761.18 | M9: 2622292.518 | N9: 1240069.28 | O9: 6093549.398 | P9: =IF(ISERROR(J9/J$16),0,J9/J$16) -> 0.05601354694 | Q9: =IF(ISERROR(K9/K$16),0,K9/K$16) -> 0.1907824722 | R9: =IF(ISERROR(L9/L$16),0,L9/L$16) -> 0.1672569122 | S9: =IF(ISERROR(M9/M$16),0,M9/M$16) -> 0.1891997114 | T9: =IF(ISERROR(N9/N$16),0,N9/N$16) -> 0.1686118863 | U9: =IF(ISERROR(O9/O$16),0,O9/O$16) -> 0.168228666 | AT9: Commodity 7 | AX9: 7 | AY9: =IF(ISERROR(VLOOKUP($AV$2&AX9,Map!$J$1:$M$6170,4,FALSE)),"",VLOOKUP($AV$2&AX9,Map!$J$1:$M$6170,4,FALSE)) -> Category 1
A10: Region 2 | B10: 1681928.56 | C10: 2061600.83 | D10: 681323.99 | E10: 1963003.3 | F10: 1153750.29 | G10: 7541606.97 | I10: Region 2 | J10: =IF(ISERROR(VLOOKUP($I10,$A$8:$G$16,J$7+1,FALSE)),"",IF(VLOOKUP($I10,$A$8:$G$16,J$7+1,FALSE)="","",VLOOKUP($I10,$A$8:$G$16,J$7+1,FALSE))) -> 1681928.56 | K10: 2061600.83 | L10: 681323.99 | M10: 1963003.3 | N10: 1153750.29 | O10: 7541606.97 | P10: =IF(ISERROR(J10/J$16),0,J10/J$16) -> 0.4313404102 | Q10: 0.3131476223 | R10: 0.1505840281 | S10: 0.1416316659 | T10: 0.1568751165 | U10: 0.2082061533 | AT10: Commodity 8 | AX10: 8 | AY10: =IF(ISERROR(VLOOKUP($AV$2&AX10,Map!$J$1:$M$6170,4,FALSE)),"",VLOOKUP($AV$2&AX10,Map!$J$1:$M$6170,4,FALSE)) -> Category 31
A11: Region 3 | B11: 979113.47 | C11: 2315974.98 | D11: 1499665.24 | E11: 2066577.27 | F11: 1179598.02 | G11: 8040928.98 | I11: Region 3 | J11: 979113.47 | K11: 2315974.98 | L11: 1499665.24 | M11: 2066577.27 | N11: 1179598.02 | O11: 8040928.98 | P11: 0.2510993724 | Q11: 0.3517858782 | R11: 0.3314511685 | S11: 0.1491045795 | T11: 0.1603896254 | U11: 0.2219912677 | AT11: Commodity 9 | AX11: 9 | AY11: =IF(ISERROR(VLOOKUP($AV$2&AX11,Map!$J$1:$M$6170,4,FALSE)),"",VLOOKUP($AV$2&AX11,Map!$J$1:$M$6170,4,FALSE)) -> Category 1799
A12: Region 4 | B12: 627922.69 | C12: 294449.65 | D12: 793471.34 | E12: 2648656.92 | F12: 1325460.17 | G12: 5689960.77 | I12: Region 4 | J12: 627922.69 | K12: 294449.65 | L12: 793471.34 | M12: 2648656.92 | N12: 1325460.17 | O12: 5689960.77 | P12: 0.1610344441 | Q12: 0.04472553874 | R12: 0.1753704732 | S12: 0.1911019162 | T12: 0.1802224627 | U12: 0.1570865266 | AT12: Commodity 10 | AX12: 10 | AY12: =IF(ISERROR(VLOOKUP($AV$2&AX12,Map!$J$1:$M$6170,4,FALSE)),"",VLOOKUP($AV$2&AX12,Map!$J$1:$M$6170,4,FALSE)) -> Category 736
A13: Region 5 | B13: 203054.2 | C13: 187143.54 | D13: 363589.8 | E13: 1396716.49 | F13: 849256.38 | G13: 2999760.41 | I13: Region 5 | J13: 203054.2 | K13: 187143.54 | L13: 363589.8 | M13: 1396716.49 | N13: 849256.38 | O13: 2999760.41 | P13: 0.05207443645 | Q13: 0.02842623738 | R13: 0.08035944346 | S13: 0.1007737905 | T13: 0.1154731615 | U13: 0.08281637828 | AT13: Commodity 11 | AX13: 11 | AY13: =IF(ISERROR(VLOOKUP($AV$2&AX13,Map!$J$1:$M$6170,4,FALSE)),"",VLOOKUP($AV$2&AX13,Map!$J$1:$M$6170,4,FALSE)) -> Category 737
A14: Region 6 | B14: 130436.51 | C14: 135694.43 | D14: 173264.64 | E14: 513602.62 | F14: 210832.43 | G14: 1163830.63 | I14: Region 6 | J14: 130436.51 | K14: 135694.43 | L14: 173264.64 | M14: 513602.62 | N14: 210832.43 | O14: 1163830.63 | P14: 0.0334512054 | Q14: 0.02061135575 | R14: 0.03829439121 | S14: 0.03705668488 | T14: 0.02866682878 | U14: 0.0321306453 | AT14: Commodity 12 | AX14: 12 | AY14: =IF(ISERROR(VLOOKUP($AV$2&AX14,Map!$J$1:$M$6170,4,FALSE)),"",VLOOKUP($AV$2&AX14,Map!$J$1:$M$6170,4,FALSE)) -> Category 723
A15: Region 7 | B15: 58437.29 | C15: 332603.26 | D15: 256467.34 | E15: 2649069.05 | F15: 1395611.49 | G15: 4692188.43 | I15: Region 7 | J15: 58437.29 | K15: 332603.26 | L15: 256467.34 | M15: 2649069.05 | N15: 1395611.49 | O15: 4692188.43 | P15: 0.01498658459 | Q15: 0.05052089548 | R15: 0.05668358328 | S15: 0.1911316516 | T15: 0.1897609188 | U15: 0.1295403629 | AT15: Commodity 13 | AX15: 13 | AY15: =IF(ISERROR(VLOOKUP($AV$2&AX15,Map!$J$1:$M$6170,4,FALSE)),"",VLOOKUP($AV$2&AX15,Map!$J$1:$M$6170,4,FALSE)) -> Category 1158
A16: Grand Total | B16: 3899306.72 | C16: 6583479.11 | D16: 4524543.53 | E16: 13859918.17 | F16: 7354578.06 | G16: 36221825.59 | I16: Grand Total | J16: =SUM(J9:J15) -> 3899306.72 | K16: =SUM(K9:K15) -> 6583479.11 | L16: 4524543.53 | M16: 13859918.17 | N16: 7354578.06 | O16: 36221825.59 | P16: =J16 -> 3899306.72 | Q16: =K16 -> 6583479.11 | R16: 4524543.53 | S16: 13859918.17 | T16: 7354578.06 | U16: 36221825.59 | AT16: Commodity 14 | AX16: 14 | AY16: =IF(ISERROR(VLOOKUP($AV$2&AX16,Map!$J$1:$M$6170,4,FALSE)),"",VLOOKUP($AV$2&AX16,Map!$J$1:$M$6170,4,FALSE)) -> Category 1798
AT17: Commodity 15 | AX17: 15 | AY17: =IF(ISERROR(VLOOKUP($AV$2&AX17,Map!$J$1:$M$6170,4,FALSE)),"",VLOOKUP($AV$2&AX17,Map!$J$1:$M$6170,4,FALSE)) -> Category 1905
AT18: Commodity 16 | AX18: 16 | AY18: =IF(ISERROR(VLOOKUP($AV$2&AX18,Map!$J$1:$M$6170,4,FALSE)),"",VLOOKUP($AV$2&AX18,Map!$J$1:$M$6170,4,FALSE)) -> Category 198
A19: Commodity | B19: (All) | AT19: Commodity 17 | AX19: 17 | AY19: =IF(ISERROR(VLOOKUP($AV$2&AX19,Map!$J$1:$M$6170,4,FALSE)),"",VLOOKUP($AV$2&AX19,Map!$J$1:$M$6170,4,FALSE)) -> Category 1829
AT20: Commodity 18 | AX20: 18 | AY20: =IF(ISERROR(VLOOKUP($AV$2&AX20,Map!$J$1:$M$6170,4,FALSE)),"",VLOOKUP($AV$2&AX20,Map!$J$1:$M$6170,4,FALSE)) -> Category 137
A21: Sum of Bought Tonnes (unshrunk) | B21: Column Labels | J21: =MATCH(J22,$B$22:$G$22) -> 1 | K21: =MATCH(K22,$B$22:$G$22) -> 2 | L21: 3 | M21: 4 | N21: 5 | O21: 6 | AT21: Commodity 19 | AX21: 19 | AY21: =IF(ISERROR(VLOOKUP($AV$2&AX21,Map!$J$1:$M$6170,4,FALSE)),"",VLOOKUP($AV$2&AX21,Map!$J$1:$M$6170,4,FALSE)) -> Category 64
A22: Row Labels | B22: 07 | C22: 08 | D22: 09 | E22: 10 | F22: 11 | G22: Grand Total | I22: Row Labels | J22: 07 | K22: 08 | L22: 09 | M22: 10 | N22: 11 | O22: Grand Total | P22: 2007 | Q22: 2008 | R22: 2009 | S22: 2010 | T22: 2011 | U22: Average | W22: Row Labels | AX22: 20 | AY22: =IF(ISERROR(VLOOKUP($AV$2&AX22,Map!$J$1:$M$6170,4,FALSE)),"",VLOOKUP($AV$2&AX22,Map!$J$1:$M$6170,4,FALSE)) -> Category 176
A23: Buyer 3 | B23: 906657.55 | C23: 1363194.85 | D23: 1413724.33 | E23: 3589707.49 | F23: 2079068.65 | G23: 9352352.87 | I23: =A23 -> Buyer 3 | J23: =IF(ISERROR(VLOOKUP($I23,$A$22:$G$34,J$21+1,FALSE)),0,IF(VLOOKUP($I23,$A$22:$G$34,J$21+1,FALSE)="","",VLOOKUP($I23,$A$22:$G$34,J$21+1,FALSE))) -> 906657.55 | K23: =IF(ISERROR(VLOOKUP($I23,$A$22:$G$34,K$21+1,FALSE)),0,IF(VLOOKUP($I23,$A$22:$G$34,K$21+1,FALSE)="","",VLOOKUP($I23,$A$22:$G$34,K$21+1,FALSE))) -> 1363194.85 | L23: 1413724.33 | M23: 3589707.49 | N23: 2079068.65 | O23: 9352352.87 | P23: =IF(ISERROR(J23/J$34),0,J23/J$34) -> 0.2325176282 | Q23: =IF(ISERROR(K23/K$34),0,K23/K$34) -> 0.2070629871 | R23: =IF(ISERROR(L23/L$34),0,L23/L$34) -> 0.3124567861 | S23: =IF(ISERROR(M23/M$34),0,M23/M$34) -> 0.2589991836 | T23: =IF(ISERROR(N23/N$34),0,N23/N$34) -> 0.2826904049 | U23: =IF(ISERROR(O23/O$34),0,O23/O$34) -> 0.2581966181 | W23: =I23 -> Buyer 3 | X23: =U23 -> 0.2581966181 | AX23: 21 | AY23: =IF(ISERROR(VLOOKUP($AV$2&AX23,Map!$J$1:$M$6170,4,FALSE)),"",VLOOKUP($AV$2&AX23,Map!$J$1:$M$6170,4,FALSE)) -> Category 22
A24: Buyer 6 | B24: 850740.86 | C24: 1548318.35 | D24: 901324.2 | E24: 3282986.41 | F24: 1354531.6 | G24: 7937901.42 | I24: =A24 -> Buyer 6 | J24: =IF(ISERROR(VLOOKUP($I24,$A$22:$G$34,J$21+1,FALSE)),0,IF(VLOOKUP($I24,$A$22:$G$34,J$21+1,FALSE)="","",VLOOKUP($I24,$A$22:$G$34,J$21+1,FALSE))) -> 850740.86 | K24: 1548318.35 | L24: 901324.2 | M24: 3282986.41 | N24: 1354531.6 | O24: 7937901.42 | P24: =IF(ISERROR(J24/J$34),0,J24/J$34) -> 0.2181774662 | Q24: 0.2351823898 | R24: 0.1992077641 | S24: 0.2368691049 | T24: 0.1841752972 | U24: 0.2191469174 | W24: =I24 -> Buyer 6 | X24: =U24 -> 0.2191469174 | AX24: 22 | AY24: =IF(ISERROR(VLOOKUP($AV$2&AX24,Map!$J$1:$M$6170,4,FALSE)),"",VLOOKUP($AV$2&AX24,Map!$J$1:$M$6170,4,FALSE)) -> Category 1822
A25: Buyer 2 | B25: 637117.69 | C25: 1108280.49 | D25: 753633.51 | E25: 2752820.56 | F25: 1537730.99 | G25: 6789583.24 | I25: Buyer 2 | J25: 637117.69 | K25: 1108280.49 | L25: 753633.51 | M25: 2752820.56 | N25: 1537730.99 | O25: 6789583.24 | P25: 0.1633925556 | Q25: 0.1683426759 | R25: 0.1665656447 | S25: 0.1986173747 | T25: 0.209084869 | U25: 0.1874445346 | W25: Buyer 2 | X25: =U25 -> 0.1874445346 | AX25: 23 | AY25: =IF(ISERROR(VLOOKUP($AV$2&AX25,Map!$J$1:$M$6170,4,FALSE)),"",VLOOKUP($AV$2&AX25,Map!$J$1:$M$6170,4,FALSE)) -> Category 424
A26: Buyer 9 | B26: 58527.68 | C26: 393716.66 | D26: 400047.69 | E26: 1212346.568 | F26: 564345.82 | G26: 2628984.418 | I26: Buyer 9 | J26: 58527.68 | K26: 393716.66 | L26: 400047.69 | M26: 1212346.568 | N26: 564345.82 | O26: 2628984.418 | P26: 0.01500976563 | Q26: 0.05980373803 | R26: 0.08841724858 | S26: 0.0874714088 | T26: 0.0767339493 | U26: 0.07258011918 | W26: Buyer 9 | X26: =U26 -> 0.07258011918 | AX26: 24 | AY26: =IF(ISERROR(VLOOKUP($AV$2&AX26,Map!$J$1:$M$6170,4,FALSE)),"",VLOOKUP($AV$2&AX26,Map!$J$1:$M$6170,4,FALSE)) -> Category 32
A27: Buyer 5 | B27: 145961 | C27: 224879.4 | D27: 125736.33 | E27: 1196578.215 | F27: 652595.13 | G27: 2345750.075 | I27: Buyer 5 | J27: 145961 | K27: 224879.4 | L27: 125736.33 | M27: 1196578.215 | N27: 652595.13 | O27: 2345750.075 | P27: 0.0374325516 | Q27: 0.03415813983 | R27: 0.02778983762 | S27: 0.08633371428 | T27: 0.08873318424 | U27: 0.06476068053 | W27: Buyer 5 | X27: =100%-SUM(X23:X26) -> 0.2626318107 | AX27: 25 | AY27: =IF(ISERROR(VLOOKUP($AV$2&AX27,Map!$J$1:$M$6170,4,FALSE)),"",VLOOKUP($AV$2&AX27,Map!$J$1:$M$6170,4,FALSE)) -> Category 119
A28: Buyer 7 | B28: 204692.27 | C28: 583060.26 | D28: 172325.08 | E28: 553029.68 | F28: 146423.97 | G28: 1659531.26 | I28: Buyer 7 | J28: 204692.27 | K28: 583060.26 | L28: 172325.08 | M28: 553029.68 | N28: 146423.97 | O28: 1659531.26 | P28: 0.05249452908 | Q28: 0.08856415434 | R28: 0.0380867327 | S28: 0.0399013669 | T28: 0.0199092278 | U28: 0.04581578187 | AX28: 26 | AY28: =IF(ISERROR(VLOOKUP($AV$2&AX28,Map!$J$1:$M$6170,4,FALSE)),"",VLOOKUP($AV$2&AX28,Map!$J$1:$M$6170,4,FALSE)) -> Category 742
A29: Buyer 8 | B29: 334611.18 | C29: 326927.12 | D29: 163290.07 | E29: 355090.49 | F29: 142952.74 | G29: 1322871.6 | I29: Buyer 8 | J29: 334611.18 | K29: 326927.12 | L29: 163290.07 | M29: 355090.49 | N29: 142952.74 | O29: 1322871.6 | P29: 0.08581299293 | Q29: 0.04965871609 | R29: 0.03608984396 | S29: 0.02561995574 | T29: 0.0194372456 | U29: 0.036521395 | AX29: 27 | AY29: =IF(ISERROR(VLOOKUP($AV$2&AX29,Map!$J$1:$M$6170,4,FALSE)),"",VLOOKUP($AV$2&AX29,Map!$J$1:$M$6170,4,FALSE)) -> Category 73
A30: Buyer 4 | B30: 243519.47 | C30: 696263.72 | D30: 381090.91 | G30: 1320874.1 | I30: Buyer 4 | J30: 243519.47 | K30: 696263.72 | L30: 381090.91 | O30: 1320874.1 | P30: 0.06245199147 | Q30: 0.1057592359 | R30: 0.08422748228 | S30: 0 | T30: 0 | U30: 0.03646624869 | AX30: 28 | AY30: =IF(ISERROR(VLOOKUP($AV$2&AX30,Map!$J$1:$M$6170,4,FALSE)),"",VLOOKUP($AV$2&AX30,Map!$J$1:$M$6170,4,FALSE)) -> Category 401
A31: Buyer 11 | D31: 21603.25 | E31: 591954.865 | F31: 443221.03 | G31: 1056779.145 | I31: Buyer 11 | L31: 21603.25 | M31: 591954.865 | N31: 443221.03 | O31: 1056779.145 | P31: 0 | Q31: 0 | R31: 0.004774680552 | S31: 0.04270983839 | T31: 0.0602646442 | U31: 0.02917520384 | AX31: 29 | AY31: =IF(ISERROR(VLOOKUP($AV$2&AX31,Map!$J$1:$M$6170,4,FALSE)),"",VLOOKUP($AV$2&AX31,Map!$J$1:$M$6170,4,FALSE)) -> Category 740
A32: Buyer 1 | B32: 517479.02 | C32: 337087.6 | D32: 162618.14 | G32: 1017184.76 | I32: Buyer 1 | J32: 517479.02 | K32: 337087.6 | L32: 162618.14 | O32: 1017184.76 | P32: 0.1327105194 | Q32: 0.05120204597 | R32: 0.03594133616 | S32: 0 | T32: 0 | U32: 0.02808209535 | AX32: 30 | AY32: =IF(ISERROR(VLOOKUP($AV$2&AX32,Map!$J$1:$M$6170,4,FALSE)),"",VLOOKUP($AV$2&AX32,Map!$J$1:$M$6170,4,FALSE)) -> Category 722
A33: Buyer 10 | C33: 1750.66 | D33: 29150.02 | E33: 325403.89 | F33: 433708.13 | G33: 790012.7 | I33: Buyer 10 | K33: 1750.66 | L33: 29150.02 | M33: 325403.89 | N33: 433708.13 | O33: 790012.7 | P33: 0 | Q33: 0.0002659171497 | R33: 0.006442643287 | S33: 0.02347805276 | T33: 0.05897117774 | U33: 0.02181040539 | AX33: 31 | AY33: =IF(ISERROR(VLOOKUP($AV$2&AX33,Map!$J$1:$M$6170,4,FALSE)),"",VLOOKUP($AV$2&AX33,Map!$J$1:$M$6170,4,FALSE)) -> Category 25
A34: Grand Total | B34: 3899306.72 | C34: 6583479.11 | D34: 4524543.53 | E34: 13859918.17 | F34: 7354578.06 | G34: 36221825.59 | I34: Grand Total | J34: 3899306.72 | K34: 6583479.11 | L34: 4524543.53 | M34: 13859918.17 | N34: 7354578.06 | O34: 36221825.59 | P34: =J34 -> 3899306.72 | Q34: =K34 -> 6583479.11 | R34: 4524543.53 | S34: 13859918.17 | T34: 7354578.06 | U34: 36221825.59 | AX34: 32 | AY34: =IF(ISERROR(VLOOKUP($AV$2&AX34,Map!$J$1:$M$6170,4,FALSE)),"",VLOOKUP($AV$2&AX34,Map!$J$1:$M$6170,4,FALSE)) -> Category 114
AX35: 33 | AY35: =IF(ISERROR(VLOOKUP($AV$2&AX35,Map!$J$1:$M$6170,4,FALSE)),"",VLOOKUP($AV$2&AX35,Map!$J$1:$M$6170,4,FALSE)) -> Category 45
AX36: 34 | AY36: =IF(ISERROR(VLOOKUP($AV$2&AX36,Map!$J$1:$M$6170,4,FALSE)),"",VLOOKUP($AV$2&AX36,Map!$J$1:$M$6170,4,FALSE)) -> Category 1831
AX37: 35 | AY37: =IF(ISERROR(VLOOKUP($AV$2&AX37,Map!$J$1:$M$6170,4,FALSE)),"",VLOOKUP($AV$2&AX37,Map!$J$1:$M$6170,4,FALSE)) -> Category 1115
A38: Commodity | B38: (All) | AX38: 36 | AY38: =IF(ISERROR(VLOOKUP($AV$2&AX38,Map!$J$1:$M$6170,4,FALSE)),"",VLOOKUP($AV$2&AX38,Map!$J$1:$M$6170,4,FALSE)) -> Category 1802
AX39: 37 | AY39: =IF(ISERROR(VLOOKUP($AV$2&AX39,Map!$J$1:$M$6170,4,FALSE)),"",VLOOKUP($AV$2&AX39,Map!$J$1:$M$6170,4,FALSE)) -> Category 1825
A40: Sum of Bought Tonnes (unshrunk) | B40: Column Labels | J40: =MATCH(J41,$B$41:$G$41) -> 1 | K40: =MATCH(K41,$B$41:$G$41) -> 2 | L40: 3 | M40: 4 | N40: 5 | O40: 6 | AX40: 38 | AY40: =IF(ISERROR(VLOOKUP($AV$2&AX40,Map!$J$1:$M$6170,4,FALSE)),"",VLOOKUP($AV$2&AX40,Map!$J$1:$M$6170,4,FALSE)) -> Category 196
A41: Row Labels | B41: 07 | C41: 08 | D41: 09 | E41: 10 | F41: 11 | G41: Grand Total | I41: Row Labels | J41: 07 | K41: 08 | L41: 09 | M41: 10 | N41: 11 | O41: Grand Total | P41: 2007 | Q41: 2008 | R41: 2009 | S41: 2010 | T41: 2011 | U41: Average | AX41: 39 | AY41: =IF(ISERROR(VLOOKUP($AV$2&AX41,Map!$J$1:$M$6170,4,FALSE)),"",VLOOKUP($AV$2&AX41,Map!$J$1:$M$6170,4,FALSE)) -> Category 360
A42: Option 1 | B42: 1028567.39 | C42: 819335.19 | D42: 901796.02 | E42: 2260082.17 | F42: 1066245.73 | G42: 6076026.5 | I42: Option 1 | J42: =IF(ISERROR(VLOOKUP($I42,$A$41:$G$45,J$40+1,FALSE)),"",IF(VLOOKUP($I42,$A$41:$G$45,J$40+1,FALSE)="","",VLOOKUP($I42,$A$41:$G$45,J$40+1,FALSE))) -> 1028567.39 | K42: =IF(ISERROR(VLOOKUP($I42,$A$41:$G$45,K$40+1,FALSE)),"",IF(VLOOKUP($I42,$A$41:$G$45,K$40+1,FALSE)="","",VLOOKUP($I42,$A$41:$G$45,K$40+1,FALSE))) -> 819335.19 | L42: 901796.02 | M42: 2260082.17 | N42: 1066245.73 | O42: 6076026.5 | P42: =IF(ISERROR(J42/J$45),0,J42/J$45) -> 0.1758291481 | Q42: =IF(ISERROR(K42/K$45),0,K42/K$45) -> 0.08467827817 | R42: =IF(ISERROR(L42/L$45),0,L42/L$45) -> 0.1173641297 | S42: =IF(ISERROR(M42/M$45),0,M42/M$45) -> 0.1479490358 | T42: =IF(ISERROR(N42/N$45),0,N42/N$45) -> 0.130418207 | U42: =IF(ISERROR(O42/O$45),0,O42/O$45) -> 0.1302161229 | AX42: 40 | AY42: =IF(ISERROR(VLOOKUP($AV$2&AX42,Map!$J$1:$M$6170,4,FALSE)),"",VLOOKUP($AV$2&AX42,Map!$J$1:$M$6170,4,FALSE)) -> Category 113
A43: Option 2 | B43: 4694458.67 | C43: 8097103.29 | D43: 6093733.93 | E43: 11625525.33 | F43: 5858930.316 | G43: 36369751.54 | I43: Option 2 | J43: =IF(ISERROR(VLOOKUP($I43,$A$41:$G$45,J$40+1,FALSE)),"",IF(VLOOKUP($I43,$A$41:$G$45,J$40+1,FALSE)="","",VLOOKUP($I43,$A$41:$G$45,J$40+1,FALSE))) -> 4694458.67 | K43: 8097103.29 | L43: 6093733.93 | M43: 11625525.33 | N43: 5858930.316 | O43: 36369751.54 | P43: =IF(ISERROR(J43/J$45),0,J43/J$45) -> 0.8024974121 | Q43: 0.8368354894 | R43: 0.7930682365 | S43: 0.7610277567 | T43: 0.7166370429 | U43: 0.7794449278 | AX43: 41 | AY43: =IF(ISERROR(VLOOKUP($AV$2&AX43,Map!$J$1:$M$6170,4,FALSE)),"",VLOOKUP($AV$2&AX43,Map!$J$1:$M$6170,4,FALSE)) -> Category 233
A44: Option 3 | B44: 126785.54 | C44: 759421.82 | D44: 688214.84 | E44: 1390478.33 | F44: 1250413.5 | G44: 4215314.03 | I44: Option 3 | J44: 126785.54 | K44: 759421.82 | L44: 688214.84 | M44: 1390478.33 | N44: 1250413.5 | O44: 4215314.03 | P44: 0.02167343988 | Q44: 0.07848623238 | R44: 0.08956763386 | S44: 0.09102320748 | T44: 0.1529447501 | U44: 0.09033894929 | AX44: 42 | AY44: =IF(ISERROR(VLOOKUP($AV$2&AX44,Map!$J$1:$M$6170,4,FALSE)),"",VLOOKUP($AV$2&AX44,Map!$J$1:$M$6170,4,FALSE)) -> Category 174
A45: Grand Total | B45: 5849811.6 | C45: 9675860.3 | D45: 7683744.79 | E45: 15276085.83 | F45: 8175589.546 | G45: 46661092.07 | I45: Grand Total | J45: =SUM(J42:J44) -> 5849811.6 | K45: =SUM(K42:K44) -> 9675860.3 | L45: 7683744.79 | M45: 15276085.83 | N45: 8175589.546 | O45: 46661092.07 | P45: =J45 -> 5849811.6 | Q45: =K45 -> 9675860.3 | R45: =L45 -> 7683744.79 | S45: =M45 -> 15276085.83 | T45: =N45 -> 8175589.546 | U45: =O45 -> 46661092.07 | AX45: 43 | AY45: =IF(ISERROR(VLOOKUP($AV$2&AX45,Map!$J$1:$M$6170,4,FALSE)),"",VLOOKUP($AV$2&AX45,Map!$J$1:$M$6170,4,FALSE)) -> Category 465
AX46: 44 | AY46: =IF(ISERROR(VLOOKUP($AV$2&AX46,Map!$J$1:$M$6170,4,FALSE)),"",VLOOKUP($AV$2&AX46,Map!$J$1:$M$6170,4,FALSE)) -> Category 183
W47: Commodity | X47: (All) | AX47: 45 | AY47: =IF(ISERROR(VLOOKUP($AV$2&AX47,Map!$J$1:$M$6170,4,FALSE)),"",VLOOKUP($AV$2&AX47,Map!$J$1:$M$6170,4,FALSE)) -> Category 1832
A48: Commodity | B48: (All) | W48: Buyer1 | X48: (All) | AX48: 46 | AY48: =IF(ISERROR(VLOOKUP($AV$2&AX48,Map!$J$1:$M$6170,4,FALSE)),"",VLOOKUP($AV$2&AX48,Map!$J$1:$M$6170,4,FALSE)) -> Category 690
AX49: 47 | AY49: =IF(ISERROR(VLOOKUP($AV$2&AX49,Map!$J$1:$M$6170,4,FALSE)),"",VLOOKUP($AV$2&AX49,Map!$J$1:$M$6170,4,FALSE)) -> Category 1805
A50: Sum of Bought Tonnes (unshrunk) | B50: Column Labels | J50: =MATCH(J51,$A$51:$E$51,0) -> 2 | K50: =MATCH(K51,$A$51:$E$51,0) -> 3 | L50: 4 | M50: 5 | W50: Sum of Bought Tonnes (unshrunk) | X50: Column Labels | AF50: =MATCH(AF51,$W$51:$AA$51,0) -> 2 | AG50: =MATCH(AG51,$W$51:$AA$51,0) -> 3 | AH50: 4 | AI50: 5 | AX50: 48 | AY50: =IF(ISERROR(VLOOKUP($AV$2&AX50,Map!$J$1:$M$6170,4,FALSE)),"",VLOOKUP($AV$2&AX50,Map!$J$1:$M$6170,4,FALSE)) -> Category 75
A51: Row Labels | B51: Option 1 | C51: Option 2 | D51: Option 3 | E51: Grand Total | I51: Row Labels | J51: Option 1 | K51: Option 2 | L51: Option 3 | M51: Grand Total | N51: Option 1 | O51: Option 2 | P51: Option 3 | Q51: Grand Total | R51: % | W51: Row Labels | X51: Option 1 | Y51: Option 2 | Z51: Option 3 | AA51: Grand Total | AE51: Row Labels | AF51: Option 1 | AG51: Option 2 | AH51: Option 3 | AI51: Grand Total | AJ51: Option 1 | AK51: Option 2 | AL51: Option 3 | AM51: Grand Total | AN51: % | AX51: 49 | AY51: =IF(ISERROR(VLOOKUP($AV$2&AX51,Map!$J$1:$M$6170,4,FALSE)),"",VLOOKUP($AV$2&AX51,Map!$J$1:$M$6170,4,FALSE)) -> Category 89
A52: Category 6 | B52: 1356802.72 | C52: 5371630.35 | D52: 1209468.35 | E52: 7937901.42 | I52: =IF(A52="Grand Total","",IF(A52="","",A52)) -> Category 6 | J52: =IFERROR(VLOOKUP($I52,$A$52:$E$72,J$50,FALSE),0) -> 1356802.72 | K52: =IFERROR(VLOOKUP($I52,$A$52:$E$72,K$50,FALSE),0) -> 5371630.35 | L52: 1209468.35 | M52: 7937901.42 | N52: =IF(ISERROR(J52/$M52),0,J52/$M52) -> 0.1709271315 | O52: =IF(ISERROR(K52/$M52),0,K52/$M52) -> 0.6767066087 | P52: 0.1523662598 | Q52: 1 | R52: =M52/GETPIVOTDATA("Bought Tonnes (unshrunk)",$A$50) -> 0.2191469174 | W52: Grade 27 | X52: 14783.87 | Y52: 3012487.51 | Z52: 78823.04 | AA52: 3106094.42 | AE52: =IF(W52="Grand Total","",IF(W52="","",W52)) -> Grade 27 | AF52: =IFERROR(VLOOKUP($AE52,$W$51:$AA$71,AF$50,FALSE),0) -> 14783.87 | AG52: =IFERROR(VLOOKUP($AE52,$W$51:$AA$71,AG$50,FALSE),0) -> 3012487.51 | AH52: 78823.04 | AI52: 3106094.42 | AJ52: =IF(ISERROR(AF52/$AI52),0,AF52/$AI52) -> 0.00475963316 | AK52: =IF(ISERROR(AG52/$AI52),0,AG52/$AI52) -> 0.9698634693 | AL52: =IF(ISERROR(AH52/$AI52),0,AH52/$AI52) -> 0.02537689759 | AM52: =IF(ISERROR(AI52/$AI52),0,AI52/$AI52) -> 1 | AN52: =AI52/GETPIVOTDATA("Bought Tonnes (unshrunk)",$W$50) -> 0.08575201193 | AX52: 50 | AY52: =IF(ISERROR(VLOOKUP($AV$2&AX52,Map!$J$1:$M$6170,4,FALSE)),"",VLOOKUP($AV$2&AX52,Map!$J$1:$M$6170,4,FALSE)) -> Category 1838
A53: Category 2 | B53: 576873.13 | C53: 5766509.55 | D53: 446200.56 | E53: 6789583.24 | I53: =IF(A53="Grand Total","",IF(A53="","",A53)) -> Category 2 | J53: =IFERROR(VLOOKUP($I53,$A$52:$E$72,J$50,FALSE),0) -> 576873.13 | K53: 5766509.55 | L53: 446200.56 | M53: 6789583.24 | N53: =IF(ISERROR(J53/$M53),0,J53/$M53) -> 0.08496443885 | O53: 0.8493171593 | P53: 0.06571840189 | Q53: 1 | R53: =M53/GETPIVOTDATA("Bought Tonnes (unshrunk)",$A$50) -> 0.1874445346 | W53: Grade 6 | X53: 333697.39 | Y53: 1860051.12 | Z53: 442453.07 | AA53: 2636201.58 | AE53: =IF(W53="Grand Total","",IF(W53="","",W53)) -> Grade 6 | AF53: =IFERROR(VLOOKUP($AE53,$W$51:$AA$71,AF$50,FALSE),0) -> 333697.39 | AG53: 1860051.12 | AH53: 442453.07 | AI53: 2636201.58 | AJ53: =IF(ISERROR(AF53/$AI53),0,AF53/$AI53) -> 0.1265826531 | AK53: 0.7055800035 | AL53: 0.1678373435 | AM53: 1 | AN53: =AI53/GETPIVOTDATA("Bought Tonnes (unshrunk)",$W$50) -> 0.07277936816 | AX53: 51 | AY53: =IF(ISERROR(VLOOKUP($AV$2&AX53,Map!$J$1:$M$6170,4,FALSE)),"",VLOOKUP($AV$2&AX53,Map!$J$1:$M$6170,4,FALSE)) -> Category 91
A54: Category 65 | B54: 186092.54 | C54: 2442891.878 | E54: 2628984.418 | I54: Category 65 | J54: 186092.54 | K54: 2442891.878 | L54: 0 | M54: 2628984.418 | N54: 0.07078495358 | O54: 0.9292150464 | P54: 0 | Q54: 1 | R54: 0.07258011918 | W54: Grade 173 | X54: 433513.94 | Y54: 1670765.49 | Z54: 526691.77 | AA54: 2630971.2 | AE54: Grade 173 | AF54: 433513.94 | AG54: 1670765.49 | AH54: 526691.77 | AI54: 2630971.2 | AJ54: 0.1647733506 | AK54: 0.6350375443 | AL54: 0.2001891051 | AM54: 1 | AN54: 0.07263496959 | AX54: 52 | AY54: =IF(ISERROR(VLOOKUP($AV$2&AX54,Map!$J$1:$M$6170,4,FALSE)),"",VLOOKUP($AV$2&AX54,Map!$J$1:$M$6170,4,FALSE)) -> Category 1800
A55: Category 5 | B55: 517802.28 | C55: 1827947.795 | E55: 2345750.075 | I55: Category 5 | J55: 517802.28 | K55: 1827947.795 | L55: 0 | M55: 2345750.075 | N55: 0.2207406004 | O55: 0.7792593996 | P55: 0 | Q55: 1 | R55: 0.06476068053 | W55: Grade 5 | X55: 301137.99 | Y55: 1953328.028 | Z55: 332935.28 | AA55: 2587401.298 | AE55: Grade 5 | AF55: 301137.99 | AG55: 1953328.028 | AH55: 332935.28 | AI55: 2587401.298 | AJ55: 0.1163862715 | AK55: 0.7549381804 | AL55: 0.128675548 | AM55: 1 | AN55: 0.07143210636 | AX55: 53 | AY55: =IF(ISERROR(VLOOKUP($AV$2&AX55,Map!$J$1:$M$6170,4,FALSE)),"",VLOOKUP($AV$2&AX55,Map!$J$1:$M$6170,4,FALSE)) -> Category 138
A56: Category 23 | B56: 452591.69 | C56: 1206939.57 | E56: 1659531.26 | I56: Category 23 | J56: 452591.69 | K56: 1206939.57 | L56: 0 | M56: 1659531.26 | N56: 0.272722606 | O56: 0.727277394 | P56: 0 | Q56: 1 | R56: 0.04581578187 | W56: Grade 178 | X56: 158411.04 | Y56: 1875796.58 | Z56: 274120.7 | AA56: 2308328.32 | AE56: Grade 178 | AF56: 158411.04 | AG56: 1875796.58 | AH56: 274120.7 | AI56: 2308328.32 | AJ56: 0.06862587034 | AK56: 0.8126212219 | AL56: 0.1187529077 | AM56: 1 | AN56: 0.06372755328 | AX56: 54 | AY56: =IF(ISERROR(VLOOKUP($AV$2&AX56,Map!$J$1:$M$6170,4,FALSE)),"",VLOOKUP($AV$2&AX56,Map!$J$1:$M$6170,4,FALSE)) -> Category 26
A57: Category 31 | C57: 1322871.6 | E57: 1322871.6 | I57: Category 31 | J57: 0 | K57: 1322871.6 | L57: 0 | M57: 1322871.6 | N57: 0 | O57: 1 | P57: 0 | Q57: 1 | R57: 0.036521395 | W57: Grade 4 | X57: 157107.21 | Y57: 1980364.04 | Z57: 162115.5 | AA57: 2299586.75 | AE57: Grade 4 | AF57: 157107.21 | AG57: 1980364.04 | AH57: 162115.5 | AI57: 2299586.75 | AJ57: 0.06831975789 | AK57: 0.8611825755 | AL57: 0.07049766659 | AM57: 1 | AN57: 0.06348621895 | AX57: 55 | AY57: =IF(ISERROR(VLOOKUP($AV$2&AX57,Map!$J$1:$M$6170,4,FALSE)),"",VLOOKUP($AV$2&AX57,Map!$J$1:$M$6170,4,FALSE)) -> Category 2056
A58: Category 4 | B58: 174553.33 | C58: 1146320.77 | E58: 1320874.1 | I58: Category 4 | J58: 174553.33 | K58: 1146320.77 | L58: 0 | M58: 1320874.1 | N58: 0.132149862 | O58: 0.867850138 | P58: 0 | Q58: 1 | R58: 0.03646624869 | W58: Grade 10 | X58: 318456.77 | Y58: 1756595.15 | Z58: 189498.96 | AA58: 2264550.88 | AE58: Grade 10 | AF58: 318456.77 | AG58: 1756595.15 | AH58: 189498.96 | AI58: 2264550.88 | AJ58: 0.1406268999 | AK58: 0.7756925073 | AL58: 0.08368059277 | AM58: 1 | AN58: 0.06251896041 | AX58: 56 | AY58: =IF(ISERROR(VLOOKUP($AV$2&AX58,Map!$J$1:$M$6170,4,FALSE)),"",VLOOKUP($AV$2&AX58,Map!$J$1:$M$6170,4,FALSE)) -> Category 1823
A59: Category 1799 | B59: 244142.29 | C59: 803591.405 | D59: 9045.45 | E59: 1056779.145 | I59: Category 1799 | J59: 244142.29 | K59: 803591.405 | L59: 9045.45 | M59: 1056779.145 | N59: 0.231024894 | O59: 0.7604156543 | P59: 0.008559451653 | Q59: 1 | R59: 0.02917520384 | W59: Grade 9 | X59: 180763.02 | Y59: 1757192.49 | Z59: 150511.89 | AA59: 2088467.4 | AE59: Grade 9 | AF59: 180763.02 | AG59: 1757192.49 | AH59: 150511.89 | AI59: 2088467.4 | AJ59: 0.08655295266 | AK59: 0.8413789413 | AL59: 0.07206810602 | AM59: 1 | AN59: 0.05765770681 | AX59: 57 | AY59: =IF(ISERROR(VLOOKUP($AV$2&AX59,Map!$J$1:$M$6170,4,FALSE)),"",VLOOKUP($AV$2&AX59,Map!$J$1:$M$6170,4,FALSE)) -> Category 2012
A60: Category 1 | B60: 125672.19 | C60: 891512.57 | E60: 1017184.76 | I60: Category 1 | J60: 125672.19 | K60: 891512.57 | L60: 0 | M60: 1017184.76 | N60: 0.1235490296 | O60: 0.8764509704 | P60: 0 | Q60: 1 | R60: 0.02808209535 | W60: Grade 7 | X60: 139460.2 | Y60: 1527313.42 | Z60: 109681.27 | AA60: 1776454.89 | AE60: Grade 7 | AF60: 139460.2 | AG60: 1527313.42 | AH60: 109681.27 | AI60: 1776454.89 | AJ60: 0.07850477982 | AK60: 0.8597535623 | AL60: 0.06174165785 | AM60: 1 | AN60: 0.04904377019 | AX60: 58 | AY60: =IF(ISERROR(VLOOKUP($AV$2&AX60,Map!$J$1:$M$6170,4,FALSE)),"",VLOOKUP($AV$2&AX60,Map!$J$1:$M$6170,4,FALSE)) -> Category 372
A61: Category 737 | C61: 819655.76 | E61: 819655.76 | I61: Category 737 | J61: 0 | K61: 819655.76 | L61: 0 | M61: 819655.76 | N61: 0 | O61: 1 | P61: 0 | Q61: 1 | R61: 0.02262878104 | W61: Grade 160 | X61: 415700.87 | Y61: 1195804.17 | Z61: 140928.3 | AA61: 1752433.34 | AE61: Grade 160 | AF61: 415700.87 | AG61: 1195804.17 | AH61: 140928.3 | AI61: 1752433.34 | AJ61: 0.2372135136 | AK61: 0.6823678497 | AL61: 0.08041863664 | AM61: 1 | AN61: 0.0483805913 | AX61: 59 | AY61: =IF(ISERROR(VLOOKUP($AV$2&AX61,Map!$J$1:$M$6170,4,FALSE)),"",VLOOKUP($AV$2&AX61,Map!$J$1:$M$6170,4,FALSE)) -> Category 56
A62: Category 736 | C62: 68613.52 | D62: 721399.18 | E62: 790012.7 | I62: Category 736 | J62: 0 | K62: 68613.52 | L62: 721399.18 | M62: 790012.7 | N62: 0 | O62: 0.08685116075 | P62: 0.9131488393 | Q62: 1 | R62: 0.02181040539 | W62: Grade 3 | X62: 338216.79 | Y62: 1158865.75 | Z62: 231174.96 | AA62: 1728257.5 | AE62: Grade 3 | AF62: 338216.79 | AG62: 1158865.75 | AH62: 231174.96 | AI62: 1728257.5 | AJ62: 0.1956981468 | AK62: 0.6705399803 | AL62: 0.1337618729 | AM62: 1 | AN62: 0.04771315283 | AX62: 60 | AY62: =IF(ISERROR(VLOOKUP($AV$2&AX62,Map!$J$1:$M$6170,4,FALSE)),"",VLOOKUP($AV$2&AX62,Map!$J$1:$M$6170,4,FALSE)) -> Category 38
A63: Category 723 | C63: 9887.06 | D63: 676080.7 | E63: 685967.76 | I63: Category 723 | J63: 0 | K63: 9887.06 | L63: 676080.7 | M63: 685967.76 | N63: 0 | O63: 0.01441330129 | P63: 0.9855866987 | Q63: 1 | R63: 0.01893796762 | W63: Grade 166 | X63: 265488.01 | Y63: 1174165.18 | Z63: 29440.71 | AA63: 1469093.9 | AE63: Grade 166 | AF63: 265488.01 | AG63: 1174165.18 | AH63: 29440.71 | AI63: 1469093.9 | AJ63: 0.1807154805 | AK63: 0.7992444731 | AL63: 0.02004004645 | AM63: 1 | AN63: 0.04055825117 | AX63: 61 | AY63: =IF(ISERROR(VLOOKUP($AV$2&AX63,Map!$J$1:$M$6170,4,FALSE)),"",VLOOKUP($AV$2&AX63,Map!$J$1:$M$6170,4,FALSE)) -> Category 84
A64: Category 1158 | C64: 475313.94 | D64: 37347.78 | E64: 512661.72 | I64: Category 1158 | J64: 0 | K64: 475313.94 | L64: 37347.78 | M64: 512661.72 | N64: 0 | O64: 0.9271492711 | P64: 0.07285072894 | Q64: 1 | R64: 0.01415339265 | W64: Grade 179 | X64: 225400.67 | Y64: 893869.47 | Z64: 144910.88 | AA64: 1264181.02 | AE64: Grade 179 | AF64: 225400.67 | AG64: 893869.47 | AH64: 144910.88 | AI64: 1264181.02 | AJ64: 0.1782977805 | AK64: 0.7070739521 | AL64: 0.1146282674 | AM64: 1 | AN64: 0.03490108517 | AX64: 62 | AY64: =IF(ISERROR(VLOOKUP($AV$2&AX64,Map!$J$1:$M$6170,4,FALSE)),"",VLOOKUP($AV$2&AX64,Map!$J$1:$M$6170,4,FALSE)) -> Category 90
A65: Category 1798 | B65: 24449.86 | C65: 461637.47 | E65: 486087.33 | I65: Category 1798 | J65: 24449.86 | K65: 461637.47 | L65: 0 | M65: 486087.33 | N65: 0.05029931556 | O65: 0.9497006844 | P65: 0 | Q65: 1 | R65: 0.01341973581 | W65: Grade 172 | X65: 3072.47 | Y65: 1231479.19 | Z65: 16040.83 | AA65: 1250592.49 | AE65: Grade 172 | AF65: 3072.47 | AG65: 1231479.19 | AH65: 16040.83 | AI65: 1250592.49 | AJ65: 0.002456811491 | AK65: 0.9847166042 | AL65: 0.0128265843 | AM65: 1 | AN65: 0.0345259376 | AX65: 63 | AY65: =IF(ISERROR(VLOOKUP($AV$2&AX65,Map!$J$1:$M$6170,4,FALSE)),"",VLOOKUP($AV$2&AX65,Map!$J$1:$M$6170,4,FALSE)) -> Category 1959
A66: Category 1905 | B66: 3514.86 | C66: 450793.29 | D66: 2139.76 | E66: 456447.91 | I66: Category 1905 | J66: 3514.86 | K66: 450793.29 | L66: 2139.76 | M66: 456447.91 | N66: 0.007700462469 | O66: 0.9876116861 | P66: 0.004687851457 | Q66: 1 | R66: 0.01260146066 | W66: Grade 1 | X66: 161322.33 | Y66: 518258.77 | Z66: 26034.06 | AA66: 705615.16 | AE66: Grade 1 | AF66: 161322.33 | AG66: 518258.77 | AH66: 26034.06 | AI66: 705615.16 | AJ66: 0.228626508 | AK66: 0.7344779412 | AL66: 0.03689555083 | AM66: 1 | AN66: 0.01948038644 | AX66: 64 | AY66: =IF(ISERROR(VLOOKUP($AV$2&AX66,Map!$J$1:$M$6170,4,FALSE)),"",VLOOKUP($AV$2&AX66,Map!$J$1:$M$6170,4,FALSE)) -> Category 1848
A67: Category 137 | C67: 300351.3 | E67: 300351.3 | W67: Grade 93 | X67: 54063.02 | Y67: 511887.73 | Z67: 117888.92 | AA67: 683839.67 | AX67: 65 | AY67: =IF(ISERROR(VLOOKUP($AV$2&AX67,Map!$J$1:$M$6170,4,FALSE)),"",VLOOKUP($AV$2&AX67,Map!$J$1:$M$6170,4,FALSE)) -> Category 377
A68: Category 1829 | B68: 75581.02 | C68: 221445.48 | E68: 297026.5 | W68: Grade 24 | X68: 56747.74 | Y68: 528697.7 | AA68: 585445.44 | AX68: 66 | AY68: =IF(ISERROR(VLOOKUP($AV$2&AX68,Map!$J$1:$M$6170,4,FALSE)),"",VLOOKUP($AV$2&AX68,Map!$J$1:$M$6170,4,FALSE)) -> Category 2067
A69: Category 198 | C69: 269286.47 | E69: 269286.47 | W69: Grade 8 | X69: 77674.4 | Y69: 307922.15 | Z69: 22381.6 | AA69: 407978.15 | AX69: 67 | AY69: =IF(ISERROR(VLOOKUP($AV$2&AX69,Map!$J$1:$M$6170,4,FALSE)),"",VLOOKUP($AV$2&AX69,Map!$J$1:$M$6170,4,FALSE)) -> Category 48
A70: Category 176 | C70: 238252.27 | E70: 238252.27 | W70: Grade 113 | X70: 9449.27 | Y70: 305105.98 | Z70: 47903.17 | AA70: 362458.42 | AX70: 68 | AY70: =IF(ISERROR(VLOOKUP($AV$2&AX70,Map!$J$1:$M$6170,4,FALSE)),"",VLOOKUP($AV$2&AX70,Map!$J$1:$M$6170,4,FALSE)) -> Category 1935
A71: Category 424 | C71: 200302.79 | E71: 200302.79 | W71: Grade 163 | X71: 106381.03 | Y71: 237215.58 | Z71: 14874.86 | AA71: 358471.47 | AX71: 69 | AY71: =IF(ISERROR(VLOOKUP($AV$2&AX71,Map!$J$1:$M$6170,4,FALSE)),"",VLOOKUP($AV$2&AX71,Map!$J$1:$M$6170,4,FALSE)) -> Category 15
A72: Category 1822 | C72: 194660.39 | E72: 194660.39 | W72: Grade 33 | Y72: 339473.08 | Z72: 1506.65 | AA72: 340979.73 | AX72: 70 | AY72: =IF(ISERROR(VLOOKUP($AV$2&AX72,Map!$J$1:$M$6170,4,FALSE)),"",VLOOKUP($AV$2&AX72,Map!$J$1:$M$6170,4,FALSE)) -> Category 51
A73: Category 742 | B73: 36981.71 | C73: 139538.69 | E73: 176520.4 | W73: Grade 129 | X73: 82588.88 | Y73: 223752.74 | Z73: 23451.84 | AA73: 329793.46 | AX73: 71 | AY73: =IF(ISERROR(VLOOKUP($AV$2&AX73,Map!$J$1:$M$6170,4,FALSE)),"",VLOOKUP($AV$2&AX73,Map!$J$1:$M$6170,4,FALSE)) -> Category 1888
A74: Category 64 | B74: 3047.38 | C74: 165828.86 | E74: 168876.24 | W74: Grade 15 | X74: 26740.03 | Y74: 281745.16 | Z74: 7837.65 | AA74: 316322.84 | AX74: 72 | AY74: =IF(ISERROR(VLOOKUP($AV$2&AX74,Map!$J$1:$M$6170,4,FALSE)),"",VLOOKUP($AV$2&AX74,Map!$J$1:$M$6170,4,FALSE)) -> Category 29
A75: Category 1115 | C75: 167240.5 | E75: 167240.5 | W75: Grade 41 | X75: 3155.08 | Y75: 272782.63 | Z75: 24038.93 | AA75: 299976.64 | AX75: 73 | AY75: =IF(ISERROR(VLOOKUP($AV$2&AX75,Map!$J$1:$M$6170,4,FALSE)),"",VLOOKUP($AV$2&AX75,Map!$J$1:$M$6170,4,FALSE)) -> Category 74
A76: Category 740 | C76: 158382.97 | E76: 158382.97 | W76: Grade 18 | X76: 67132.46 | Y76: 173065.55 | Z76: 1077.48 | AA76: 241275.49 | AX76: 74 | AY76: =IF(ISERROR(VLOOKUP($AV$2&AX76,Map!$J$1:$M$6170,4,FALSE)),"",VLOOKUP($AV$2&AX76,Map!$J$1:$M$6170,4,FALSE)) -> Category 1972
A77: Category 114 | B77: 12262.86 | C77: 144528.4 | E77: 156791.26 | W77: Grade 42 | X77: 5342.51 | Y77: 158143.39 | Z77: 10886.15 | AA77: 174372.05 | AX77: 75 | AY77: =IF(ISERROR(VLOOKUP($AV$2&AX77,Map!$J$1:$M$6170,4,FALSE)),"",VLOOKUP($AV$2&AX77,Map!$J$1:$M$6170,4,FALSE)) -> Category 688
A78: Category 1831 | B78: 2309 | C78: 149765.37 | E78: 152074.37 | W78: Grade 174 | Y78: 142990.99 | AA78: 142990.99 | AX78: 76 | AY78: =IF(ISERROR(VLOOKUP($AV$2&AX78,Map!$J$1:$M$6170,4,FALSE)),"",VLOOKUP($AV$2&AX78,Map!$J$1:$M$6170,4,FALSE)) -> Category 9
A79: Category 119 | C79: 142850.74 | E79: 142850.74 | W79: Grade 103 | X79: 5414.21 | Y79: 114642.7 | AA79: 120056.91 | AX79: 77 | AY79: =IF(ISERROR(VLOOKUP($AV$2&AX79,Map!$J$1:$M$6170,4,FALSE)),"",VLOOKUP($AV$2&AX79,Map!$J$1:$M$6170,4,FALSE)) -> Category 586
A80: Category 1825 | C80: 132865.75 | E80: 132865.75 | W80: Grade 212 | Y80: 114440.37 | Z80: 1705.55 | AA80: 116145.92 | AX80: 78 | AY80: =IF(ISERROR(VLOOKUP($AV$2&AX80,Map!$J$1:$M$6170,4,FALSE)),"",VLOOKUP($AV$2&AX80,Map!$J$1:$M$6170,4,FALSE)) -> Category 2057
A81: Category 1802 | B81: 23549.6 | C81: 107851.21 | E81: 131400.81 | W81: Grade 164 | X81: 42305.9 | Y81: 52955.99 | Z81: 11016.42 | AA81: 106278.31 | AX81: 79 | AY81: =IF(ISERROR(VLOOKUP($AV$2&AX81,Map!$J$1:$M$6170,4,FALSE)),"",VLOOKUP($AV$2&AX81,Map!$J$1:$M$6170,4,FALSE)) -> Category 1821
A82: Category 401 | C82: 129859.12 | E82: 129859.12 | W82: Grade 161 | X82: 7594.2 | Y82: 67465.57 | Z82: 4831.65 | AA82: 79891.42 | AX82: 80 | AY82: =IF(ISERROR(VLOOKUP($AV$2&AX82,Map!$J$1:$M$6170,4,FALSE)),"",VLOOKUP($AV$2&AX82,Map!$J$1:$M$6170,4,FALSE)) -> Category 1856
A83: Category 73 | C83: 127448.84 | E83: 127448.84 | W83: Grade 159 | X83: 4348.13 | Y83: 69053.8 | Z83: 1071.76 | AA83: 74473.69 | AX83: 81 | AY83: =IF(ISERROR(VLOOKUP($AV$2&AX83,Map!$J$1:$M$6170,4,FALSE)),"",VLOOKUP($AV$2&AX83,Map!$J$1:$M$6170,4,FALSE)) -> Category 1852
A84: Category 22 | C84: 126858.61 | E84: 126858.61 | W84: Grade 175 | X84: 1125.2 | Y84: 56382.02 | Z84: 11588.54 | AA84: 69095.76 | AX84: 82 | AY84: =IF(ISERROR(VLOOKUP($AV$2&AX84,Map!$J$1:$M$6170,4,FALSE)),"",VLOOKUP($AV$2&AX84,Map!$J$1:$M$6170,4,FALSE)) -> Category 180
A85: Category 25 | B85: 5811.6 | C85: 112904.86 | E85: 118716.46 | W85: Grade 216 | X85: 2093.85 | Y85: 66551.34 | AA85: 68645.19 | AX85: 83 | AY85: =IF(ISERROR(VLOOKUP($AV$2&AX85,Map!$J$1:$M$6170,4,FALSE)),"",VLOOKUP($AV$2&AX85,Map!$J$1:$M$6170,4,FALSE)) -> Category 2666
A86: Category 45 | C86: 111763.12 | E86: 111763.12 | W86: Grade 213 | Y86: 63678.16 | AA86: 63678.16 | AX86: 84 | AY86: =IF(ISERROR(VLOOKUP($AV$2&AX86,Map!$J$1:$M$6170,4,FALSE)),"",VLOOKUP($AV$2&AX86,Map!$J$1:$M$6170,4,FALSE)) -> Category 47
A87: Category 722 | B87: 1503 | C87: 109179.67 | E87: 110682.67 | W87: Grade 158 | X87: 15818.62 | Y87: 43985.7 | Z87: 2758.16 | AA87: 62562.48 | AX87: 85 | AY87: =IF(ISERROR(VLOOKUP($AV$2&AX87,Map!$J$1:$M$6170,4,FALSE)),"",VLOOKUP($AV$2&AX87,Map!$J$1:$M$6170,4,FALSE)) -> Category 1857
A88: Category 32 | B88: 14527.78 | C88: 95897.93 | E88: 110425.71 | W88: Grade 28 | Y88: 57580.3 | Z88: 1294.69 | AA88: 58874.99 | AX88: 86 | AY88: =IF(ISERROR(VLOOKUP($AV$2&AX88,Map!$J$1:$M$6170,4,FALSE)),"",VLOOKUP($AV$2&AX88,Map!$J$1:$M$6170,4,FALSE)) -> Category 738
A89: Category 233 | B89: 6225.14 | C89: 101353.38 | E89: 107578.52 | W89: Grade 177 | X89: 2157.78 | Y89: 53035.1 | Z89: 3214.22 | AA89: 58407.1 | AX89: 87 | AY89: =IF(ISERROR(VLOOKUP($AV$2&AX89,Map!$J$1:$M$6170,4,FALSE)),"",VLOOKUP($AV$2&AX89,Map!$J$1:$M$6170,4,FALSE)) -> Category 2402
A90: Category 113 | C90: 102445.09 | E90: 102445.09 | W90: Grade 214 | Y90: 57978.8 | AA90: 57978.8 | AX90: 88 | AY90: =IF(ISERROR(VLOOKUP($AV$2&AX90,Map!$J$1:$M$6170,4,FALSE)),"",VLOOKUP($AV$2&AX90,Map!$J$1:$M$6170,4,FALSE)) -> Category 1908
A91: Category 360 | C91: 92350.54 | E91: 92350.54 | W91: Grade 54 | X91: 3224.86 | Y91: 50660.28 | AA91: 53885.14 | AX91: 89 | AY91: =IF(ISERROR(VLOOKUP($AV$2&AX91,Map!$J$1:$M$6170,4,FALSE)),"",VLOOKUP($AV$2&AX91,Map!$J$1:$M$6170,4,FALSE)) -> Category 915
A92: Category 91 | C92: 81665.25 | E92: 81665.25 | W92: Grade 229 | X92: 10702.07 | Y92: 33538.08 | Z92: 1205.21 | AA92: 45445.36 | AX92: 90 | AY92: =IF(ISERROR(VLOOKUP($AV$2&AX92,Map!$J$1:$M$6170,4,FALSE)),"",VLOOKUP($AV$2&AX92,Map!$J$1:$M$6170,4,FALSE)) -> Category 2674
A93: Category 174 | C93: 76696.49 | E93: 76696.49 | W93: Grade 156 | Y93: 43635.96 | AA93: 43635.96 | AX93: 91 | AY93: =IF(ISERROR(VLOOKUP($AV$2&AX93,Map!$J$1:$M$6170,4,FALSE)),"",VLOOKUP($AV$2&AX93,Map!$J$1:$M$6170,4,FALSE)) -> Category 7
A94: Category 465 | C94: 75571.04 | E94: 75571.04 | W94: Grade 48 | X94: 16615.37 | Y94: 25750.67 | AA94: 42366.04 | AX94: 92 | AY94: =IF(ISERROR(VLOOKUP($AV$2&AX94,Map!$J$1:$M$6170,4,FALSE)),"",VLOOKUP($AV$2&AX94,Map!$J$1:$M$6170,4,FALSE)) -> Category 33
A95: Category 1832 | C95: 71698.6 | E95: 71698.6 | W95: Grade 43 | X95: 1057.34 | Y95: 40501.45 | AA95: 41558.79 | AX95: 93 | AY95: =IF(ISERROR(VLOOKUP($AV$2&AX95,Map!$J$1:$M$6170,4,FALSE)),"",VLOOKUP($AV$2&AX95,Map!$J$1:$M$6170,4,FALSE)) -> Category 2058
A96: Category 1823 | B96: 32237.88 | C96: 36245.75 | E96: 68483.63 | W96: Grade 94 | Y96: 40246.42 | AA96: 40246.42 | AX96: 94 | AY96: =IF(ISERROR(VLOOKUP($AV$2&AX96,Map!$J$1:$M$6170,4,FALSE)),"",VLOOKUP($AV$2&AX96,Map!$J$1:$M$6170,4,FALSE)) -> Category 213
A97: Category 1838 | C97: 2620.35 | D97: 63889.13 | E97: 66509.48 | W97: Grade 86 | Y97: 40006.23 | AA97: 40006.23 | AX97: 95 | AY97: =IF(ISERROR(VLOOKUP($AV$2&AX97,Map!$J$1:$M$6170,4,FALSE)),"",VLOOKUP($AV$2&AX97,Map!$J$1:$M$6170,4,FALSE)) -> Category 1913
A98: Category 1805 | B98: 25129.42 | C98: 38470.01 | E98: 63599.43 | W98: Grade 167 | X98: 7754.47 | Y98: 28732.01 | AA98: 36486.48 | AX98: 96 | AY98: =IF(ISERROR(VLOOKUP($AV$2&AX98,Map!$J$1:$M$6170,4,FALSE)),"",VLOOKUP($AV$2&AX98,Map!$J$1:$M$6170,4,FALSE)) -> Category 54
A99: Category 26 | B99: 4499.79 | C99: 54524.63 | E99: 59024.42 | W99: Grade 251 | Y99: 32651.05 | Z99: 1899.88 | AA99: 34550.93 | AX99: 97 | AY99: =IF(ISERROR(VLOOKUP($AV$2&AX99,Map!$J$1:$M$6170,4,FALSE)),"",VLOOKUP($AV$2&AX99,Map!$J$1:$M$6170,4,FALSE)) -> Category 189
A100: Category 1800 | B100: 10506.85 | C100: 47683.3 | E100: 58190.15 | W100: Grade 2 | X100: 7746.16 | Y100: 21779.29 | Z100: 4478.79 | AA100: 34004.24 | AX100: 98 | AY100: =IF(ISERROR(VLOOKUP($AV$2&AX100,Map!$J$1:$M$6170,4,FALSE)),"",VLOOKUP($AV$2&AX100,Map!$J$1:$M$6170,4,FALSE)) -> Category 1851
A101: Category 690 | B101: 3054.5 | C101: 50796.02 | E101: 53850.52 | W101: Grade 96 | Y101: 31875.77 | AA101: 31875.77 | AX101: 99 | AY101: =IF(ISERROR(VLOOKUP($AV$2&AX101,Map!$J$1:$M$6170,4,FALSE)),"",VLOOKUP($AV$2&AX101,Map!$J$1:$M$6170,4,FALSE)) -> Category 677
A102: Category 2056 | B102: 34323.66 | C102: 17192.76 | E102: 51516.42 | W102: Grade 57 | Y102: 29044.18 | AA102: 29044.18 | AX102: 100 | AY102: =IF(ISERROR(VLOOKUP($AV$2&AX102,Map!$J$1:$M$6170,4,FALSE)),"",VLOOKUP($AV$2&AX102,Map!$J$1:$M$6170,4,FALSE)) -> Category 729
A103: Category 372 | C103: 49818.81 | E103: 49818.81 | W103: Grade 202 | Y103: 28632.06 | AA103: 28632.06 | AX103: 101 | AY103: =IF(ISERROR(VLOOKUP($AV$2&AX103,Map!$J$1:$M$6170,4,FALSE)),"",VLOOKUP($AV$2&AX103,Map!$J$1:$M$6170,4,FALSE)) -> Category 2059
A104: Category 90 | C104: 48032.49 | E104: 48032.49 | W104: Grade 55 | Y104: 28030.22 | AA104: 28030.22 | AX104: 102 | AY104: =IF(ISERROR(VLOOKUP($AV$2&AX104,Map!$J$1:$M$6170,4,FALSE)),"",VLOOKUP($AV$2&AX104,Map!$J$1:$M$6170,4,FALSE)) -> Category 2291
A105: Category 38 | C105: 47770 | E105: 47770 | W105: Grade 76 | Y105: 27739.96 | AA105: 27739.96 | AX105: 103 | AY105: =IF(ISERROR(VLOOKUP($AV$2&AX105,Map!$J$1:$M$6170,4,FALSE)),"",VLOOKUP($AV$2&AX105,Map!$J$1:$M$6170,4,FALSE)) -> Category 205
A106: Category 1959 | C106: 47749.01 | E106: 47749.01 | W106: Grade 14 | X106: 6296.31 | Y106: 19390.83 | AA106: 25687.14 | AX106: 104 | AY106: =IF(ISERROR(VLOOKUP($AV$2&AX106,Map!$J$1:$M$6170,4,FALSE)),"",VLOOKUP($AV$2&AX106,Map!$J$1:$M$6170,4,FALSE)) -> Category 1118
A107: Category 89 | C107: 47452.81 | E107: 47452.81 | W107: Grade 11 | X107: 3038.68 | Y107: 20780.28 | Z107: 1215.26 | AA107: 25034.22 | AX107: 105 | AY107: =IF(ISERROR(VLOOKUP($AV$2&AX107,Map!$J$1:$M$6170,4,FALSE)),"",VLOOKUP($AV$2&AX107,Map!$J$1:$M$6170,4,FALSE)) -> Category 1486
A108: Category 2067 | C108: 46056.37 | E108: 46056.37 | W108: Grade 98 | Y108: 22165.49 | Z108: 1080.59 | AA108: 23246.08 | AX108: 106 | AY108: =IF(ISERROR(VLOOKUP($AV$2&AX108,Map!$J$1:$M$6170,4,FALSE)),"",VLOOKUP($AV$2&AX108,Map!$J$1:$M$6170,4,FALSE)) -> Category 1988
A109: Category 2012 | C109: 45931.52 | E109: 45931.52 | W109: Grade 51 | X109: 7923.13 | Y109: 13602.11 | AA109: 21525.24 | AX109: 107 | AY109: =IF(ISERROR(VLOOKUP($AV$2&AX109,Map!$J$1:$M$6170,4,FALSE)),"",VLOOKUP($AV$2&AX109,Map!$J$1:$M$6170,4,FALSE)) -> Category 2667
A110: Category 183 | C110: 42671.68 | E110: 42671.68 | W110: Grade 46 | X110: 4466.13 | Y110: 13871.95 | AA110: 18338.08 | AX110: 108 | AY110: =IF(ISERROR(VLOOKUP($AV$2&AX110,Map!$J$1:$M$6170,4,FALSE)),"",VLOOKUP($AV$2&AX110,Map!$J$1:$M$6170,4,FALSE)) -> Category 16
A111: Category 1848 | C111: 39995.59 | D111: 1441.56 | E111: 41437.15 | W111: Grade 35 | Y111: 18316.6 | AA111: 18316.6 | AX111: 109 | AY111: =IF(ISERROR(VLOOKUP($AV$2&AX111,Map!$J$1:$M$6170,4,FALSE)),"",VLOOKUP($AV$2&AX111,Map!$J$1:$M$6170,4,FALSE)) -> Category 1492
A112: Category 196 | B112: 17934.89 | C112: 19629.42 | E112: 37564.31 | W112: Grade 52 | X112: 14842.68 | Y112: 3152.56 | AA112: 17995.24 | AX112: 110 | AY112: =IF(ISERROR(VLOOKUP($AV$2&AX112,Map!$J$1:$M$6170,4,FALSE)),"",VLOOKUP($AV$2&AX112,Map!$J$1:$M$6170,4,FALSE)) -> Category 193
A113: Category 1935 | C113: 37120.65 | E113: 37120.65 | W113: Grade 119 | Y113: 17971.52 | AA113: 17971.52 | AX113: 111 | AY113: =IF(ISERROR(VLOOKUP($AV$2&AX113,Map!$J$1:$M$6170,4,FALSE)),"",VLOOKUP($AV$2&AX113,Map!$J$1:$M$6170,4,FALSE)) -> Category 295
A114: Category 1888 | B114: 16046.05 | C114: 19401.53 | E114: 35447.58 | W114: Grade 116 | Y114: 16922.53 | AA114: 16922.53 | AX114: 112 | AY114: =IF(ISERROR(VLOOKUP($AV$2&AX114,Map!$J$1:$M$6170,4,FALSE)),"",VLOOKUP($AV$2&AX114,Map!$J$1:$M$6170,4,FALSE)) -> Category 1828
A115: Category 1972 | C115: 35145.4 | E115: 35145.4 | W115: Grade 183 | Y115: 13919.67 | Z115: 1691.04 | AA115: 15610.71 | AX115: 113 | AY115: =IF(ISERROR(VLOOKUP($AV$2&AX115,Map!$J$1:$M$6170,4,FALSE)),"",VLOOKUP($AV$2&AX115,Map!$J$1:$M$6170,4,FALSE)) -> Category 1854
A116: Category 138 | B116: 31945.04 | C116: 2486.96 | E116: 34432 | W116: Grade 88 | Y116: 15373.97 | AA116: 15373.97 | AX116: 114 | AY116: =IF(ISERROR(VLOOKUP($AV$2&AX116,Map!$J$1:$M$6170,4,FALSE)),"",VLOOKUP($AV$2&AX116,Map!$J$1:$M$6170,4,FALSE)) -> Category 39
A117: Category 586 | C117: 33471.6 | E117: 33471.6 | W117: Grade 249 | Y117: 14118.78 | AA117: 14118.78 | AX117: 115 | AY117: =IF(ISERROR(VLOOKUP($AV$2&AX117,Map!$J$1:$M$6170,4,FALSE)),"",VLOOKUP($AV$2&AX117,Map!$J$1:$M$6170,4,FALSE)) -> Category 300
A118: Category 75 | B118: 13044.13 | C118: 18169.86 | E118: 31213.99 | W118: Grade 53 | Y118: 14101.9 | AA118: 14101.9 | AX118: 116 | AY118: =IF(ISERROR(VLOOKUP($AV$2&AX118,Map!$J$1:$M$6170,4,FALSE)),"",VLOOKUP($AV$2&AX118,Map!$J$1:$M$6170,4,FALSE)) -> Category 88
A119: Category 2666 | B119: 19318.75 | C119: 11882.87 | E119: 31201.62 | W119: Grade 39 | Y119: 13460.87 | AA119: 13460.87 | AX119: 117 | AY119: =IF(ISERROR(VLOOKUP($AV$2&AX119,Map!$J$1:$M$6170,4,FALSE)),"",VLOOKUP($AV$2&AX119,Map!$J$1:$M$6170,4,FALSE)) -> Category 591
A120: Category 2057 | B120: 1215.79 | C120: 29874.18 | E120: 31089.97 | W120: Grade 135 | Y120: 11131.1 | AA120: 11131.1 | AX120: 118 | AY120: =IF(ISERROR(VLOOKUP($AV$2&AX120,Map!$J$1:$M$6170,4,FALSE)),"",VLOOKUP($AV$2&AX120,Map!$J$1:$M$6170,4,FALSE)) -> Category 1117
A121: Category 2402 | C121: 27608.4 | E121: 27608.4 | W121: Grade 56 | Y121: 10767.81 | AA121: 10767.81 | AX121: 119 | AY121: =IF(ISERROR(VLOOKUP($AV$2&AX121,Map!$J$1:$M$6170,4,FALSE)),"",VLOOKUP($AV$2&AX121,Map!$J$1:$M$6170,4,FALSE)) -> Category 598
A122: Category 738 | C122: 26734.91 | E122: 26734.91 | W122: Grade 77 | Y122: 10601.46 | AA122: 10601.46 | AX122: 120 | AY122: =IF(ISERROR(VLOOKUP($AV$2&AX122,Map!$J$1:$M$6170,4,FALSE)),"",VLOOKUP($AV$2&AX122,Map!$J$1:$M$6170,4,FALSE)) -> Category 200
A123: Category 84 | C123: 25344.24 | E123: 25344.24 | W123: Grade 90 | X123: 1115.52 | Y123: 9416.66 | AA123: 10532.18 | AX123: 121 | AY123: =IF(ISERROR(VLOOKUP($AV$2&AX123,Map!$J$1:$M$6170,4,FALSE)),"",VLOOKUP($AV$2&AX123,Map!$J$1:$M$6170,4,FALSE)) -> Category 426
A124: Category 688 | C124: 25227.67 | E124: 25227.67 | W124: Grade 204 | Y124: 10410.78 | AA124: 10410.78 | AX124: 122 | AY124: =IF(ISERROR(VLOOKUP($AV$2&AX124,Map!$J$1:$M$6170,4,FALSE)),"",VLOOKUP($AV$2&AX124,Map!$J$1:$M$6170,4,FALSE)) -> Category 219
A125: Category 2674 | B125: 10684.26 | C125: 13684.83 | E125: 24369.09 | W125: Grade 180 | Y125: 9871.33 | AA125: 9871.33 | AX125: 123 | AY125: =IF(ISERROR(VLOOKUP($AV$2&AX125,Map!$J$1:$M$6170,4,FALSE)),"",VLOOKUP($AV$2&AX125,Map!$J$1:$M$6170,4,FALSE)) -> Category 291
A126: Category 377 | C126: 24190.77 | E126: 24190.77 | W126: Grade 100 | Y126: 9853.89 | AA126: 9853.89 | AX126: 124 | AY126: =IF(ISERROR(VLOOKUP($AV$2&AX126,Map!$J$1:$M$6170,4,FALSE)),"",VLOOKUP($AV$2&AX126,Map!$J$1:$M$6170,4,FALSE)) -> Category 1849
A127: Category 48 | B127: 1431.58 | C127: 22325.39 | E127: 23756.97 | W127: Grade 44 | Y127: 9823.89 | AA127: 9823.89 | AX127: 125 | AY127: =IF(ISERROR(VLOOKUP($AV$2&AX127,Map!$J$1:$M$6170,4,FALSE)),"",VLOOKUP($AV$2&AX127,Map!$J$1:$M$6170,4,FALSE)) -> Category 852
A128: Category 1913 | C128: 23641.41 | E128: 23641.41 | W128: Grade 136 | Y128: 9808.32 | AA128: 9808.32 | AX128: 126 | AY128: =IF(ISERROR(VLOOKUP($AV$2&AX128,Map!$J$1:$M$6170,4,FALSE)),"",VLOOKUP($AV$2&AX128,Map!$J$1:$M$6170,4,FALSE)) -> Category 1520
A129: Category 56 | B129: 4895.31 | C129: 18105.76 | E129: 23001.07 | W129: Grade 184 | Y129: 9666.34 | AA129: 9666.34 | AX129: 127 | AY129: =IF(ISERROR(VLOOKUP($AV$2&AX129,Map!$J$1:$M$6170,4,FALSE)),"",VLOOKUP($AV$2&AX129,Map!$J$1:$M$6170,4,FALSE)) -> Category 245
A130: Category 74 | B130: 4149.49 | C130: 18716.53 | E130: 22866.02 | W130: Grade 78 | Y130: 7802.69 | AA130: 7802.69 | AX130: 128 | AY130: =IF(ISERROR(VLOOKUP($AV$2&AX130,Map!$J$1:$M$6170,4,FALSE)),"",VLOOKUP($AV$2&AX130,Map!$J$1:$M$6170,4,FALSE)) -> Category 739
A131: Category 51 | C131: 22563.56 | E131: 22563.56 | W131: Grade 75 | Y131: 7693.71 | AA131: 7693.71 | AX131: 129 | AY131: =IF(ISERROR(VLOOKUP($AV$2&AX131,Map!$J$1:$M$6170,4,FALSE)),"",VLOOKUP($AV$2&AX131,Map!$J$1:$M$6170,4,FALSE)) -> Category 1899
A132: Category 2058 | C132: 19267.5 | E132: 19267.5 | W132: Grade 25 | Y132: 7657.02 | AA132: 7657.02 | AX132: 130 | AY132: =IF(ISERROR(VLOOKUP($AV$2&AX132,Map!$J$1:$M$6170,4,FALSE)),"",VLOOKUP($AV$2&AX132,Map!$J$1:$M$6170,4,FALSE)) -> Category 486
A133: Category 15 | B133: 1791.82 | C133: 17183.56 | E133: 18975.38 | W133: Grade 194 | Y133: 7592.08 | AA133: 7592.08 | AX133: 131 | AY133: =IF(ISERROR(VLOOKUP($AV$2&AX133,Map!$J$1:$M$6170,4,FALSE)),"",VLOOKUP($AV$2&AX133,Map!$J$1:$M$6170,4,FALSE)) -> Category 2054
A134: Category 29 | C134: 17868.42 | E134: 17868.42 | W134: Grade 222 | Y134: 7354.9 | AA134: 7354.9 | AX134: 132 | AY134: =IF(ISERROR(VLOOKUP($AV$2&AX134,Map!$J$1:$M$6170,4,FALSE)),"",VLOOKUP($AV$2&AX134,Map!$J$1:$M$6170,4,FALSE)) -> Category 1440
A135: Category 1908 | C135: 17837.53 | E135: 17837.53 | W135: Grade 192 | X135: 1867.4 | Y135: 5318.8 | AA135: 7186.2 | AX135: 133 | AY135: =IF(ISERROR(VLOOKUP($AV$2&AX135,Map!$J$1:$M$6170,4,FALSE)),"",VLOOKUP($AV$2&AX135,Map!$J$1:$M$6170,4,FALSE)) -> Category 41
A136: Category 1851 | C136: 17679.37 | E136: 17679.37 | W136: Grade 125 | Y136: 7050.86 | AA136: 7050.86 | AX136: 134 | AY136: =IF(ISERROR(VLOOKUP($AV$2&AX136,Map!$J$1:$M$6170,4,FALSE)),"",VLOOKUP($AV$2&AX136,Map!$J$1:$M$6170,4,FALSE)) -> Category 543
A137: Category 2667 | B137: 1686.88 | C137: 15790.27 | E137: 17477.15 | W137: Grade 147 | Y137: 6817.07 | AA137: 6817.07 | AX137: 135 | AY137: =IF(ISERROR(VLOOKUP($AV$2&AX137,Map!$J$1:$M$6170,4,FALSE)),"",VLOOKUP($AV$2&AX137,Map!$J$1:$M$6170,4,FALSE)) -> Category 871
A138: Category 1857 | C138: 17219.35 | E138: 17219.35 | W138: Grade 97 | Y138: 6743.14 | AA138: 6743.14 | AX138: 136 | AY138: =IF(ISERROR(VLOOKUP($AV$2&AX138,Map!$J$1:$M$6170,4,FALSE)),"",VLOOKUP($AV$2&AX138,Map!$J$1:$M$6170,4,FALSE)) -> Category 766
A139: Category 1988 | C139: 15990.27 | E139: 15990.27 | W139: Grade 148 | Y139: 6654.72 | AA139: 6654.72 | AX139: 137 | AY139: =IF(ISERROR(VLOOKUP($AV$2&AX139,Map!$J$1:$M$6170,4,FALSE)),"",VLOOKUP($AV$2&AX139,Map!$J$1:$M$6170,4,FALSE)) -> Category 2192
A140: Category 1821 | C140: 15975.82 | E140: 15975.82 | W140: Grade 108 | Y140: 6403.55 | AA140: 6403.55 | AX140: 138 | AY140: =IF(ISERROR(VLOOKUP($AV$2&AX140,Map!$J$1:$M$6170,4,FALSE)),"",VLOOKUP($AV$2&AX140,Map!$J$1:$M$6170,4,FALSE)) -> Category 1834
A141: Category 1492 | B141: 7495.6 | C141: 8361.4 | E141: 15857 | W141: Grade 187 | Y141: 6319.52 | AA141: 6319.52 | AX141: 139 | AY141: =IF(ISERROR(VLOOKUP($AV$2&AX141,Map!$J$1:$M$6170,4,FALSE)),"",VLOOKUP($AV$2&AX141,Map!$J$1:$M$6170,4,FALSE)) -> Category 1495
A142: Category 180 | C142: 14900.52 | E142: 14900.52 | W142: Grade 176 | X142: 1569.91 | Y142: 3415.88 | Z142: 1214.83 | AA142: 6200.62 | AX142: 140 | AY142: =IF(ISERROR(VLOOKUP($AV$2&AX142,Map!$J$1:$M$6170,4,FALSE)),"",VLOOKUP($AV$2&AX142,Map!$J$1:$M$6170,4,FALSE)) -> Category 1376
A143: Category 1856 | B143: 3568.38 | C143: 11255.3 | E143: 14823.68 | W143: Grade 13 | X143: 4052.3 | Y143: 2011.59 | AA143: 6063.89 | AX143: 141 | AY143: =IF(ISERROR(VLOOKUP($AV$2&AX143,Map!$J$1:$M$6170,4,FALSE)),"",VLOOKUP($AV$2&AX143,Map!$J$1:$M$6170,4,FALSE)) -> Category 188
A144: Category 1852 | C144: 14318.5 | E144: 14318.5 | W144: Grade 107 | Y144: 6053.32 | AA144: 6053.32 | AX144: 142 | AY144: =IF(ISERROR(VLOOKUP($AV$2&AX144,Map!$J$1:$M$6170,4,FALSE)),"",VLOOKUP($AV$2&AX144,Map!$J$1:$M$6170,4,FALSE)) -> Category 1304
A145: Category 9 | B145: 2149.63 | C145: 11767.21 | E145: 13916.84 | W145: Grade 191 | X145: 2891.16 | Y145: 2698.92 | AA145: 5590.08 | AX145: 143 | AY145: =IF(ISERROR(VLOOKUP($AV$2&AX145,Map!$J$1:$M$6170,4,FALSE)),"",VLOOKUP($AV$2&AX145,Map!$J$1:$M$6170,4,FALSE)) -> Category 2301
A146: Category 1118 | C146: 13495.12 | E146: 13495.12 | W146: Grade 34 | Y146: 5404.29 | AA146: 5404.29 | AX146: 144 | AY146: =IF(ISERROR(VLOOKUP($AV$2&AX146,Map!$J$1:$M$6170,4,FALSE)),"",VLOOKUP($AV$2&AX146,Map!$J$1:$M$6170,4,FALSE)) -> Category 1994
A147: Category 16 | C147: 12552.62 | E147: 12552.62 | W147: Grade 240 | Y147: 5339.32 | AA147: 5339.32 | AX147: 145 | AY147: =IF(ISERROR(VLOOKUP($AV$2&AX147,Map!$J$1:$M$6170,4,FALSE)),"",VLOOKUP($AV$2&AX147,Map!$J$1:$M$6170,4,FALSE)) -> Category 257
A148: Category 2291 | C148: 12394.83 | E148: 12394.83 | W148: Grade 221 | Y148: 5281.78 | AA148: 5281.78 | AX148: 146 | AY148: =IF(ISERROR(VLOOKUP($AV$2&AX148,Map!$J$1:$M$6170,4,FALSE)),"",VLOOKUP($AV$2&AX148,Map!$J$1:$M$6170,4,FALSE)) -> Category 1525
A149: Category 213 | C149: 12354.14 | E149: 12354.14 | W149: Grade 128 | Y149: 5117.62 | AA149: 5117.62 | AX149: 147 | AY149: =IF(ISERROR(VLOOKUP($AV$2&AX149,Map!$J$1:$M$6170,4,FALSE)),"",VLOOKUP($AV$2&AX149,Map!$J$1:$M$6170,4,FALSE)) -> Category 120
A150: Category 426 | C150: 11766.84 | E150: 11766.84 | W150: Grade 130 | X150: 1314.9 | Y150: 3663.4 | AA150: 4978.3 | AX150: 148 | AY150: =IF(ISERROR(VLOOKUP($AV$2&AX150,Map!$J$1:$M$6170,4,FALSE)),"",VLOOKUP($AV$2&AX150,Map!$J$1:$M$6170,4,FALSE)) -> Category 381
A151: Category 2059 | C151: 10962.93 | E151: 10962.93 | W151: Grade 112 | Y151: 4918.65 | AA151: 4918.65 | AX151: 149 | AY151: =IF(ISERROR(VLOOKUP($AV$2&AX151,Map!$J$1:$M$6170,4,FALSE)),"",VLOOKUP($AV$2&AX151,Map!$J$1:$M$6170,4,FALSE)) -> Category 121
A152: Category 7 | B152: 5123.7 | C152: 5631.37 | E152: 10755.07 | W152: Grade 244 | Y152: 4825.47 | AA152: 4825.47 | AX152: 150 | AY152: =IF(ISERROR(VLOOKUP($AV$2&AX152,Map!$J$1:$M$6170,4,FALSE)),"",VLOOKUP($AV$2&AX152,Map!$J$1:$M$6170,4,FALSE)) -> Category 2219
A153: Category 205 | C153: 10402.28 | E153: 10402.28 | W153: Grade 250 | Y153: 4756.84 | AA153: 4756.84 | AX153: 151 | AY153: =IF(ISERROR(VLOOKUP($AV$2&AX153,Map!$J$1:$M$6170,4,FALSE)),"",VLOOKUP($AV$2&AX153,Map!$J$1:$M$6170,4,FALSE)) -> Category 314
A154: Category 1486 | C154: 10241.73 | E154: 10241.73 | W154: Grade 126 | Y154: 4666.4 | AA154: 4666.4 | AX154: 152 | AY154: =IF(ISERROR(VLOOKUP($AV$2&AX154,Map!$J$1:$M$6170,4,FALSE)),"",VLOOKUP($AV$2&AX154,Map!$J$1:$M$6170,4,FALSE)) -> Category 362
A155: Category 39 | C155: 9264.25 | E155: 9264.25 | W155: Grade 171 | Y155: 4658.84 | AA155: 4658.84 | AX155: 153 | AY155: =IF(ISERROR(VLOOKUP($AV$2&AX155,Map!$J$1:$M$6170,4,FALSE)),"",VLOOKUP($AV$2&AX155,Map!$J$1:$M$6170,4,FALSE)) -> Category 599
A156: Category 871 | C156: 8537.83 | E156: 8537.83 | W156: Grade 16 | Y156: 4598.08 | AA156: 4598.08 | AX156: 154 | AY156: =IF(ISERROR(VLOOKUP($AV$2&AX156,Map!$J$1:$M$6170,4,FALSE)),"",VLOOKUP($AV$2&AX156,Map!$J$1:$M$6170,4,FALSE)) -> Category 173
A157: Category 33 | C157: 8344.59 | E157: 8344.59 | W157: Grade 252 | Y157: 4482.06 | AA157: 4482.06 | AX157: 155 | AY157: =IF(ISERROR(VLOOKUP($AV$2&AX157,Map!$J$1:$M$6170,4,FALSE)),"",VLOOKUP($AV$2&AX157,Map!$J$1:$M$6170,4,FALSE)) -> Category 1979
A158: Category 245 | C158: 7671.44 | E158: 7671.44 | W158: Grade 110 | Y158: 4263.57 | AA158: 4263.57 | AX158: 156 | AY158: =IF(ISERROR(VLOOKUP($AV$2&AX158,Map!$J$1:$M$6170,4,FALSE)),"",VLOOKUP($AV$2&AX158,Map!$J$1:$M$6170,4,FALSE)) -> Category 217
A159: Category 598 | C159: 7543.97 | E159: 7543.97 | W159: Grade 264 | Y159: 3971.94 | AA159: 3971.94 | AX159: 157 | AY159: =IF(ISERROR(VLOOKUP($AV$2&AX159,Map!$J$1:$M$6170,4,FALSE)),"",VLOOKUP($AV$2&AX159,Map!$J$1:$M$6170,4,FALSE)) -> Category 2290
A160: Category 188 | C160: 7386.82 | E160: 7386.82 | W160: Grade 63 | Y160: 3656.17 | AA160: 3656.17 | AX160: 158 | AY160: =IF(ISERROR(VLOOKUP($AV$2&AX160,Map!$J$1:$M$6170,4,FALSE)),"",VLOOKUP($AV$2&AX160,Map!$J$1:$M$6170,4,FALSE)) -> Category 1870
A161: Category 193 | C161: 7237.19 | E161: 7237.19 | W161: Grade 170 | X161: 1030.34 | Y161: 2419.35 | AA161: 3449.69 | AX161: 159 | AY161: =IF(ISERROR(VLOOKUP($AV$2&AX161,Map!$J$1:$M$6170,4,FALSE)),"",VLOOKUP($AV$2&AX161,Map!$J$1:$M$6170,4,FALSE)) -> Category 1970
A162: Category 1440 | C162: 7107.27 | E162: 7107.27 | W162: Grade 82 | Y162: 3278.42 | AA162: 3278.42 | AX162: 160 | AY162: =IF(ISERROR(VLOOKUP($AV$2&AX162,Map!$J$1:$M$6170,4,FALSE)),"",VLOOKUP($AV$2&AX162,Map!$J$1:$M$6170,4,FALSE)) -> Category 368
A163: Category 41 | C163: 7095.48 | E163: 7095.48 | W163: Grade 206 | Y163: 3151.32 | AA163: 3151.32 | AX163: 161 | AY163: =IF(ISERROR(VLOOKUP($AV$2&AX163,Map!$J$1:$M$6170,4,FALSE)),"",VLOOKUP($AV$2&AX163,Map!$J$1:$M$6170,4,FALSE)) -> Category 567
A164: Category 300 | B164: 6882.29 | E164: 6882.29 | W164: Grade 197 | Y164: 2940.94 | AA164: 2940.94 | AX164: 162 | AY164: =IF(ISERROR(VLOOKUP($AV$2&AX164,Map!$J$1:$M$6170,4,FALSE)),"",VLOOKUP($AV$2&AX164,Map!$J$1:$M$6170,4,FALSE)) -> Category 2702
A165: Category 677 | C165: 6571.46 | E165: 6571.46 | W165: Grade 19 | X165: 1158.54 | Y165: 1505.4 | AA165: 2663.94 | AX165: 163 | AY165: =IF(ISERROR(VLOOKUP($AV$2&AX165,Map!$J$1:$M$6170,4,FALSE)),"",VLOOKUP($AV$2&AX165,Map!$J$1:$M$6170,4,FALSE)) -> Category 1097
A166: Category 1828 | B166: 2318.03 | C166: 4222.77 | E166: 6540.8 | W166: Grade 105 | Y166: 2651.92 | AA166: 2651.92 | AX166: 164 | AY166: =IF(ISERROR(VLOOKUP($AV$2&AX166,Map!$J$1:$M$6170,4,FALSE)),"",VLOOKUP($AV$2&AX166,Map!$J$1:$M$6170,4,FALSE)) -> Category 68
A167: Category 295 | C167: 6449.32 | E167: 6449.32 | W167: Grade 219 | Y167: 2602.56 | AA167: 2602.56 | AX167: 165 | AY167: =IF(ISERROR(VLOOKUP($AV$2&AX167,Map!$J$1:$M$6170,4,FALSE)),"",VLOOKUP($AV$2&AX167,Map!$J$1:$M$6170,4,FALSE)) -> Category 1835
A168: Category 47 | C168: 2125.1 | D168: 4309.82 | E168: 6434.92 | W168: Grade 106 | Y168: 2584.9 | AA168: 2584.9 | AX168: 166 | AY168: =IF(ISERROR(VLOOKUP($AV$2&AX168,Map!$J$1:$M$6170,4,FALSE)),"",VLOOKUP($AV$2&AX168,Map!$J$1:$M$6170,4,FALSE)) -> Category 1534
A169: Category 1849 | C169: 6056.72 | E169: 6056.72 | W169: Grade 60 | X169: 2518.22 | AA169: 2518.22 | AX169: 167 | AY169: =IF(ISERROR(VLOOKUP($AV$2&AX169,Map!$J$1:$M$6170,4,FALSE)),"",VLOOKUP($AV$2&AX169,Map!$J$1:$M$6170,4,FALSE)) -> Category 218
A170: Category 1994 | C170: 5617.86 | E170: 5617.86 | W170: Grade 29 | Y170: 2471.4 | AA170: 2471.4 | AX170: 168 | AY170: =IF(ISERROR(VLOOKUP($AV$2&AX170,Map!$J$1:$M$6170,4,FALSE)),"",VLOOKUP($AV$2&AX170,Map!$J$1:$M$6170,4,FALSE)) -> Category 1311
A171: Category 291 | B171: 2611.66 | C171: 2997.31 | E171: 5608.97 | W171: Grade 66 | Y171: 2365.61 | AA171: 2365.61 | AX171: 169 | AY171: =IF(ISERROR(VLOOKUP($AV$2&AX171,Map!$J$1:$M$6170,4,FALSE)),"",VLOOKUP($AV$2&AX171,Map!$J$1:$M$6170,4,FALSE)) -> Category 2375
A172: Category 1854 | C172: 5470.85 | E172: 5470.85 | W172: Grade 203 | Y172: 2223.64 | AA172: 2223.64 | AX172: 170 | AY172: =IF(ISERROR(VLOOKUP($AV$2&AX172,Map!$J$1:$M$6170,4,FALSE)),"",VLOOKUP($AV$2&AX172,Map!$J$1:$M$6170,4,FALSE)) -> Category 99
A173: Category 54 | B173: 5402.94 | E173: 5402.94 | W173: Grade 253 | Y173: 2154.2 | AA173: 2154.2 | AX173: 171 | AY173: =IF(ISERROR(VLOOKUP($AV$2&AX173,Map!$J$1:$M$6170,4,FALSE)),"",VLOOKUP($AV$2&AX173,Map!$J$1:$M$6170,4,FALSE)) -> Category 2101
A174: Category 591 | C174: 4953.6 | E174: 4953.6 | W174: Grade 104 | X174: 2073.58 | AA174: 2073.58 | AX174: 172 | AY174: =IF(ISERROR(VLOOKUP($AV$2&AX174,Map!$J$1:$M$6170,4,FALSE)),"",VLOOKUP($AV$2&AX174,Map!$J$1:$M$6170,4,FALSE)) -> Category 1092
A175: Category 1899 | C175: 4953.59 | E175: 4953.59 | W175: Grade 217 | Y175: 1765.99 | AA175: 1765.99 | AX175: 173 | AY175: =IF(ISERROR(VLOOKUP($AV$2&AX175,Map!$J$1:$M$6170,4,FALSE)),"",VLOOKUP($AV$2&AX175,Map!$J$1:$M$6170,4,FALSE)) -> Category 1477
A176: Category 739 | D176: 4889.69 | E176: 4889.69 | W176: Grade 137 | Y176: 1759.2 | AA176: 1759.2 | AX176: 174 | AY176: =IF(ISERROR(VLOOKUP($AV$2&AX176,Map!$J$1:$M$6170,4,FALSE)),"",VLOOKUP($AV$2&AX176,Map!$J$1:$M$6170,4,FALSE)) -> Category 379
A177: Category 852 | C177: 4862.14 | E177: 4862.14 | W177: Grade 74 | Y177: 1704.61 | AA177: 1704.61 | AX177: 175 | AY177: =IF(ISERROR(VLOOKUP($AV$2&AX177,Map!$J$1:$M$6170,4,FALSE)),"",VLOOKUP($AV$2&AX177,Map!$J$1:$M$6170,4,FALSE)) -> Category 294
A178: Category 1970 | C178: 4582.41 | E178: 4582.41 | W178: Grade 127 | Y178: 1703.76 | AA178: 1703.76 | AX178: 176 | AY178: =IF(ISERROR(VLOOKUP($AV$2&AX178,Map!$J$1:$M$6170,4,FALSE)),"",VLOOKUP($AV$2&AX178,Map!$J$1:$M$6170,4,FALSE)) -> Category 1040
A179: Category 2219 | C179: 4570.82 | E179: 4570.82 | W179: Grade 22 | Y179: 1695.81 | AA179: 1695.81 | AX179: 177 | AY179: =IF(ISERROR(VLOOKUP($AV$2&AX179,Map!$J$1:$M$6170,4,FALSE)),"",VLOOKUP($AV$2&AX179,Map!$J$1:$M$6170,4,FALSE)) -> Category 2205
A180: Category 1376 | C180: 4514.3 | E180: 4514.3 | W180: Grade 20 | Y180: 1690.07 | AA180: 1690.07 | AX180: 178 | AY180: =IF(ISERROR(VLOOKUP($AV$2&AX180,Map!$J$1:$M$6170,4,FALSE)),"",VLOOKUP($AV$2&AX180,Map!$J$1:$M$6170,4,FALSE)) -> Category 1924
A181: Category 120 | C181: 4475.29 | E181: 4475.29 | W181: Grade 259 | Y181: 1605.03 | AA181: 1605.03 | AX181: 179 | AY181: =IF(ISERROR(VLOOKUP($AV$2&AX181,Map!$J$1:$M$6170,4,FALSE)),"",VLOOKUP($AV$2&AX181,Map!$J$1:$M$6170,4,FALSE)) -> Category 30
A182: Category 381 | C182: 4312.63 | E182: 4312.63 | W182: Grade 38 | Y182: 1572.82 | AA182: 1572.82 | AX182: 180 | AY182: =IF(ISERROR(VLOOKUP($AV$2&AX182,Map!$J$1:$M$6170,4,FALSE)),"",VLOOKUP($AV$2&AX182,Map!$J$1:$M$6170,4,FALSE)) -> Category 675
A183: Category 1311 | C183: 4074.32 | E183: 4074.32 | W183: Grade 262 | Y183: 1551.58 | AA183: 1551.58 | AX183: 181 | AY183: =IF(ISERROR(VLOOKUP($AV$2&AX183,Map!$J$1:$M$6170,4,FALSE)),"",VLOOKUP($AV$2&AX183,Map!$J$1:$M$6170,4,FALSE)) -> Category 643
A184: Category 1520 | C184: 4065.9 | E184: 4065.9 | W184: Grade 139 | Y184: 1536.7 | AA184: 1536.7 | AX184: 182 | AY184: =IF(ISERROR(VLOOKUP($AV$2&AX184,Map!$J$1:$M$6170,4,FALSE)),"",VLOOKUP($AV$2&AX184,Map!$J$1:$M$6170,4,FALSE)) -> Category 1910
A185: Category 1117 | C185: 3916.55 | E185: 3916.55 | W185: Grade 145 | Y185: 1498.58 | AA185: 1498.58 | AX185: 183 | AY185: =IF(ISERROR(VLOOKUP($AV$2&AX185,Map!$J$1:$M$6170,4,FALSE)),"",VLOOKUP($AV$2&AX185,Map!$J$1:$M$6170,4,FALSE)) -> Category 249
A186: Category 599 | C186: 3849.95 | E186: 3849.95 | W186: Grade 237 | Y186: 1387.56 | AA186: 1387.56 | AX186: 184 | AY186: =IF(ISERROR(VLOOKUP($AV$2&AX186,Map!$J$1:$M$6170,4,FALSE)),"",VLOOKUP($AV$2&AX186,Map!$J$1:$M$6170,4,FALSE)) -> Category 2129
A187: Category 2192 | B187: 2098.44 | C187: 1494.58 | E187: 3593.02 | W187: Grade 101 | X187: 1386.8 | AA187: 1386.8 | AX187: 185 | AY187: =IF(ISERROR(VLOOKUP($AV$2&AX187,Map!$J$1:$M$6170,4,FALSE)),"",VLOOKUP($AV$2&AX187,Map!$J$1:$M$6170,4,FALSE)) -> Category 2077
A188: Category 567 | C188: 3547.06 | E188: 3547.06 | W188: Grade 37 | Y188: 1358.54 | AA188: 1358.54 | AX188: 186 | AY188: =IF(ISERROR(VLOOKUP($AV$2&AX188,Map!$J$1:$M$6170,4,FALSE)),"",VLOOKUP($AV$2&AX188,Map!$J$1:$M$6170,4,FALSE)) -> Category 220
A189: Category 257 | C189: 3521.09 | E189: 3521.09 | W189: Grade 150 | Y189: 1329.01 | AA189: 1329.01 | AX189: 187 | AY189: =IF(ISERROR(VLOOKUP($AV$2&AX189,Map!$J$1:$M$6170,4,FALSE)),"",VLOOKUP($AV$2&AX189,Map!$J$1:$M$6170,4,FALSE)) -> Category 2476
A190: Category 1834 | C190: 3518.4 | E190: 3518.4 | W190: Grade 162 | Y190: 1320.68 | AA190: 1320.68 | AX190: 188 | AY190: =IF(ISERROR(VLOOKUP($AV$2&AX190,Map!$J$1:$M$6170,4,FALSE)),"",VLOOKUP($AV$2&AX190,Map!$J$1:$M$6170,4,FALSE)) -> Category 1778
A191: Category 1870 | C191: 3468.2 | E191: 3468.2 | W191: Grade 168 | X191: 1315.46 | AA191: 1315.46 | AX191: 189 | AY191: =IF(ISERROR(VLOOKUP($AV$2&AX191,Map!$J$1:$M$6170,4,FALSE)),"",VLOOKUP($AV$2&AX191,Map!$J$1:$M$6170,4,FALSE)) -> Category 1830
A192: Category 2301 | C192: 3319.46 | E192: 3319.46 | W192: Grade 40 | Y192: 1312.38 | AA192: 1312.38 | AX192: 190 | AY192: =IF(ISERROR(VLOOKUP($AV$2&AX192,Map!$J$1:$M$6170,4,FALSE)),"",VLOOKUP($AV$2&AX192,Map!$J$1:$M$6170,4,FALSE)) -> Category 504
A193: Category 1835 | C193: 3094.81 | E193: 3094.81 | W193: Grade 157 | X193: 1270.36 | AA193: 1270.36 | AX193: 191 | AY193: =IF(ISERROR(VLOOKUP($AV$2&AX193,Map!$J$1:$M$6170,4,FALSE)),"",VLOOKUP($AV$2&AX193,Map!$J$1:$M$6170,4,FALSE)) -> Category 2408
A194: Category 643 | C194: 2942.32 | E194: 2942.32 | W194: Grade 218 | Y194: 1207.52 | AA194: 1207.52 | AX194: 192 | AY194: =IF(ISERROR(VLOOKUP($AV$2&AX194,Map!$J$1:$M$6170,4,FALSE)),"",VLOOKUP($AV$2&AX194,Map!$J$1:$M$6170,4,FALSE)) -> Category 1289
A195: Category 2375 | C195: 2782.28 | E195: 2782.28 | W195: Grade 181 | Y195: 1176.1 | AA195: 1176.1 | AX195: 193 | AY195: =IF(ISERROR(VLOOKUP($AV$2&AX195,Map!$J$1:$M$6170,4,FALSE)),"",VLOOKUP($AV$2&AX195,Map!$J$1:$M$6170,4,FALSE)) -> Category 104
A196: Category 217 | C196: 2760.7 | E196: 2760.7 | W196: Grade 235 | Y196: 1172.54 | AA196: 1172.54 | AX196: 194 | AY196: =IF(ISERROR(VLOOKUP($AV$2&AX196,Map!$J$1:$M$6170,4,FALSE)),"",VLOOKUP($AV$2&AX196,Map!$J$1:$M$6170,4,FALSE)) -> Category 2248
A197: Category 200 | C197: 2745.48 | E197: 2745.48 | W197: Grade 73 | Y197: 1080.94 | AA197: 1080.94 | AX197: 195 | AY197: =IF(ISERROR(VLOOKUP($AV$2&AX197,Map!$J$1:$M$6170,4,FALSE)),"",VLOOKUP($AV$2&AX197,Map!$J$1:$M$6170,4,FALSE)) -> Category 2741
A198: Category 1778 | C198: 2722.59 | E198: 2722.59 | W198: Grade 62 | Y198: 1075.88 | AA198: 1075.88 | AX198: 196 | AY198: =IF(ISERROR(VLOOKUP($AV$2&AX198,Map!$J$1:$M$6170,4,FALSE)),"",VLOOKUP($AV$2&AX198,Map!$J$1:$M$6170,4,FALSE)) -> Category 1640
A199: Category 30 | C199: 2707.46 | E199: 2707.46 | W199: Grade 227 | X199: 1066 | AA199: 1066 | AX199: 197 | AY199: =IF(ISERROR(VLOOKUP($AV$2&AX199,Map!$J$1:$M$6170,4,FALSE)),"",VLOOKUP($AV$2&AX199,Map!$J$1:$M$6170,4,FALSE)) -> Category 2515
A200: Category 1092 | C200: 2665.26 | E200: 2665.26 | W200: Grade 95 | Y200: 1058.25 | AA200: 1058.25 | AX200: 198 | AY200: =IF(ISERROR(VLOOKUP($AV$2&AX200,Map!$J$1:$M$6170,4,FALSE)),"",VLOOKUP($AV$2&AX200,Map!$J$1:$M$6170,4,FALSE)) -> Category 782
... 925 more rows

Sheet Season 07 to 10 data (hidden)
A1: Region | B1: Operational Area | C1: Commodity | D1: Commodity_1 | E1: Grade | F1: Season Year | G1: Sell Options | H1: Buyer Name | I1: Bought Tonnes (unshrunk) | J1: system extracted from | K1: Buyer Name_1 | L1: Buyer1 | M1: Buyer2
A2: Region 6 | B2: Area 12 | C2: Commodity 1 | D2: Commodity 1 | E2: Grade 160 | F2: 10 | G2: Option 2 | H2: Buyer 1818 | I2: 138510.3 | J2: GT | K2: Category 1 | L2: Buyer 5 | M2: Buyer 5
A3: Region 1 | B3: Area 10 | C3: Commodity 2 | D3: Commodity 2 | E3: Grade 173 | F3: 10 | G3: Option 2 | H3: Buyer 1808 | I3: 101375.77 | J3: GT | K3: Category 1 | L3: Buyer 65 | M3: Buyer 9
A4: Region 6 | B4: Area 12 | C4: Commodity 1 | D4: Commodity 1 | E4: Grade 160 | F4: 11 | G4: Option 2 | H4: Buyer 1818 | I4: 97917.43 | J4: GT | K4: Category 1 | L4: Buyer 5 | M4: Buyer 5
A5: Region 2 | B5: Area 2 | C5: Commodity 5 | D5: Commodity 5 | E5: Grade 172 | F5: 10 | G5: Option 2 | H5: Buyer 1819 | I5: 87729.09 | J5: GT | K5: Category 1 | L5: Buyer 31 | M5: Buyer 8
A6: Region 1 | B6: Area 1 | C6: Commodity 2 | D6: Commodity 2 | E6: Grade 173 | F6: 11 | G6: Option 2 | H6: Buyer 1808 | I6: 80026.11 | J6: GT | K6: Category 1 | L6: Buyer 65 | M6: Buyer 9
A7: Region 1 | B7: Area 10 | C7: Commodity 2 | D7: Commodity 2 | E7: Grade 173 | F7: 10 | G7: Option 3 | H7: Buyer 1809 | I7: 78507.7 | J7: GT | K7: Category 2 | L7: Buyer 6 | M7: Buyer 6
A8: Region 1 | B8: Area 10 | C8: Commodity 2 | D8: Commodity 2 | E8: Grade 173 | F8: 10 | G8: Option 2 | H8: Buyer 1841 | I8: 71197.17 | J8: GT | K8: Category 1 | L8: Buyer 23 | M8: Buyer 7
A9: Region 4 | B9: Area 5 | C9: Commodity 2 | D9: Commodity 2 | E9: Grade 179 | F9: 10 | G9: Option 2 | H9: Buyer 1813 | I9: 70277.86 | J9: GT | K9: Category 1 | L9: Buyer 2 | M9: Buyer 2
A10: Region 2 | B10: Area 14 | C10: Commodity 5 | D10: Commodity 5 | E10: Grade 172 | F10: 10 | G10: Option 2 | H10: Buyer 1805 | I10: 65546.56 | J10: GT | K10: Category 2 | L10: Buyer 6 | M10: Buyer 6
A11: Region 7 | B11: Area 20 | C11: Commodity 2 | D11: Commodity 2 | E11: Grade 173 | F11: 10 | G11: Option 2 | H11: Buyer 1808 | I11: 60588.53 | J11: GT | K11: Category 1 | L11: Buyer 65 | M11: Buyer 9
A12: Region 1 | B12: Area 10 | C12: Commodity 2 | D12: Commodity 2 | E12: Grade 173 | F12: 11 | G12: Option 2 | H12: Buyer 1808 | I12: 58867.92 | J12: GT | K12: Category 1 | L12: Buyer 65 | M12: Buyer 9
A13: Region 1 | B13: Area 1 | C13: Commodity 2 | D13: Commodity 2 | E13: Grade 10 | F13: 10 | G13: Option 2 | H13: Buyer 1805 | I13: 55632.41 | J13: GT | K13: Category 2 | L13: Buyer 6 | M13: Buyer 6
A14: Region 2 | B14: Area 2 | C14: Commodity 5 | D14: Commodity 5 | E14: Grade 172 | F14: 09 | G14: Option 2 | H14: Buyer 1818 | I14: 53296.73 | J14: GT | K14: Category 1 | L14: Buyer 5 | M14: Buyer 5
A15: Region 1 | B15: Area 1 | C15: Commodity 2 | D15: Commodity 2 | E15: Grade 173 | F15: 10 | G15: Option 2 | H15: Buyer 1841 | I15: 52485.11 | J15: GT | K15: Category 1 | L15: Buyer 23 | M15: Buyer 7
A16: Region 4 | B16: Area 5 | C16: Commodity 2 | D16: Commodity 2 | E16: Grade 6 | F16: 11 | G16: Option 2 | H16: Buyer 1816 | I16: 51327.4 | J16: GT | K16: Category 1 | L16: Buyer 2 | M16: Buyer 2
A17: Region 2 | B17: Area 2 | C17: Commodity 5 | D17: Commodity 5 | E17: Grade 27 | F17: 07 | G17: Option 2 | H17: Buyer 34 | I17: 50912.01 | J17: Legacy | K17: Category 1 | L17: Buyer 31 | M17: Buyer 8
A18: Region 3 | B18: Area 8 | C18: Commodity 5 | D18: Commodity 5 | E18: Grade 27 | F18: 07 | G18: Option 2 | H18: Buyer 7 | I18: 50412.53 | J18: Legacy | K18: Category 2 | L18: Buyer 6 | M18: Buyer 6
A19: Region 5 | B19: Area 6 | C19: Commodity 2 | D19: Commodity 2 | E19: Grade 10 | F19: 10 | G19: Option 1 | H19: Buyer 1805 | I19: 49320.99 | J19: GT | K19: Category 2 | L19: Buyer 6 | M19: Buyer 6
A20: Region 7 | B20: Area 15 | C20: Commodity 2 | D20: Commodity 2 | E20: Grade 173 | F20: 10 | G20: Option 2 | H20: Buyer 1163 | I20: 49190.13 | J20: GT | K20: Category 1 | L20: Buyer 1158 | M20: Buyer 3
A21: Region 4 | B21: Area 13 | C21: Commodity 2 | D21: Commodity 2 | E21: Grade 179 | F21: 10 | G21: Option 2 | H21: Buyer 1805 | I21: 48911.255 | J21: GT | K21: Category 2 | L21: Buyer 6 | M21: Buyer 6
A22: Region 3 | B22: Area 8 | C22: Commodity 2 | D22: Commodity 2 | E22: Grade 178 | F22: 11 | G22: Option 2 | H22: Buyer 1816 | I22: 48197.5 | J22: GT | K22: Category 1 | L22: Buyer 2 | M22: Buyer 2
A23: Region 3 | B23: Area 9 | C23: Commodity 2 | D23: Commodity 2 | E23: Grade 93 | F23: 08 | G23: Option 3 | H23: Buyer 728 | I23: 47340.29 | J23: Legacy | K23: Category 1 | L23: Buyer 723 | M23: Buyer 3
A24: Region 7 | B24: Area 20 | C24: Commodity 2 | D24: Commodity 2 | E24: Grade 173 | F24: 10 | G24: Option 3 | H24: Buyer 1809 | I24: 46836.98 | J24: GT | K24: Category 2 | L24: Buyer 6 | M24: Buyer 6
A25: Region 1 | B25: Area 10 | C25: Commodity 2 | D25: Commodity 2 | E25: Grade 173 | F25: 11 | G25: Option 1 | H25: Buyer 1808 | I25: 45270.44 | J25: GT | K25: Category 1 | L25: Buyer 65 | M25: Buyer 9
A26: Region 1 | B26: Area 1 | C26: Commodity 2 | D26: Commodity 2 | E26: Grade 173 | F26: 10 | G26: Option 2 | H26: Buyer 1808 | I26: 44832.86 | J26: GT | K26: Category 1 | L26: Buyer 65 | M26: Buyer 9
A27: Region 2 | B27: Area 2 | C27: Commodity 5 | D27: Commodity 5 | E27: Grade 172 | F27: 09 | G27: Option 2 | H27: Buyer 1819 | I27: 44766.71 | J27: GT | K27: Category 1 | L27: Buyer 31 | M27: Buyer 8
A28: Region 2 | B28: Area 2 | C28: Commodity 5 | D28: Commodity 5 | E28: Grade 172 | F28: 10 | G28: Option 2 | H28: Buyer 1813 | I28: 44573.28 | J28: GT | K28: Category 1 | L28: Buyer 2 | M28: Buyer 2
A29: Region 5 | B29: Area 6 | C29: Commodity 2 | D29: Commodity 2 | E29: Grade 3 | F29: 10 | G29: Option 1 | H29: Buyer 1818 | I29: 44008.85 | J29: GT | K29: Category 1 | L29: Buyer 5 | M29: Buyer 5
A30: Region 3 | B30: Area 8 | C30: Commodity 16 | D30: Commodity 5 | E30: Grade 156 | F30: 10 | G30: Option 2 | H30: Buyer 1816 | I30: 43635.96 | J30: GT | K30: Category 1 | L30: Buyer 2 | M30: Buyer 2
A31: Region 2 | B31: Area 14 | C31: Commodity 5 | D31: Commodity 5 | E31: Grade 172 | F31: 10 | G31: Option 2 | H31: Buyer 1813 | I31: 42967.76 | J31: GT | K31: Category 1 | L31: Buyer 2 | M31: Buyer 2
A32: Region 3 | B32: Area 8 | C32: Commodity 2 | D32: Commodity 2 | E32: Grade 4 | F32: 11 | G32: Option 2 | H32: Buyer 1816 | I32: 42111.51 | J32: GT | K32: Category 1 | L32: Buyer 2 | M32: Buyer 2
A33: Region 7 | B33: Area 15 | C33: Commodity 2 | D33: Commodity 2 | E33: Grade 3 | F33: 10 | G33: Option 2 | H33: Buyer 1805 | I33: 42111.26 | J33: GT | K33: Category 2 | L33: Buyer 6 | M33: Buyer 6
A34: Region 7 | B34: Area 20 | C34: Commodity 2 | D34: Commodity 2 | E34: Grade 173 | F34: 10 | G34: Option 1 | H34: Buyer 1805 | I34: 42011.27 | J34: GT | K34: Category 2 | L34: Buyer 6 | M34: Buyer 6
A35: Region 7 | B35: Area 15 | C35: Commodity 4 | D35: Commodity 4 | E35: Grade 166 | F35: 11 | G35: Option 2 | H35: Buyer 1816 | I35: 41800.36 | J35: GT | K35: Category 1 | L35: Buyer 2 | M35: Buyer 2
A36: Region 7 | B36: Area 20 | C36: Commodity 2 | D36: Commodity 2 | E36: Grade 173 | F36: 10 | G36: Option 2 | H36: Buyer 1805 | I36: 41300.77 | J36: GT | K36: Category 2 | L36: Buyer 6 | M36: Buyer 6
A37: Region 4 | B37: Area 5 | C37: Commodity 2 | D37: Commodity 2 | E37: Grade 179 | F37: 10 | G37: Option 2 | H37: Buyer 1805 | I37: 40969.29 | J37: GT | K37: Category 2 | L37: Buyer 6 | M37: Buyer 6
A38: Region 1 | B38: Area 10 | C38: Commodity 2 | D38: Commodity 2 | E38: Grade 173 | F38: 10 | G38: Option 1 | H38: Buyer 1808 | I38: 40669.93 | J38: GT | K38: Category 1 | L38: Buyer 65 | M38: Buyer 9
A39: Region 3 | B39: Area 9 | C39: Commodity 2 | D39: Commodity 2 | E39: Grade 178 | F39: 11 | G39: Option 2 | H39: Buyer 1816 | I39: 40458.79 | J39: GT | K39: Category 1 | L39: Buyer 2 | M39: Buyer 2
A40: Region 2 | B40: Area 14 | C40: Commodity 2 | D40: Commodity 2 | E40: Grade 178 | F40: 11 | G40: Option 2 | H40: Buyer 1805 | I40: 40334.51 | J40: GT | K40: Category 2 | L40: Buyer 6 | M40: Buyer 6
A41: Region 1 | B41: Area 1 | C41: Commodity 2 | D41: Commodity 2 | E41: Grade 178 | F41: 10 | G41: Option 2 | H41: Buyer 1841 | I41: 39869.7 | J41: GT | K41: Category 1 | L41: Buyer 23 | M41: Buyer 7
A42: Region 7 | B42: Area 16 | C42: Commodity 2 | D42: Commodity 2 | E42: Grade 173 | F42: 10 | G42: Option 2 | H42: Buyer 1808 | I42: 39478.57 | J42: GT | K42: Category 1 | L42: Buyer 65 | M42: Buyer 9
A43: Region 1 | B43: Area 1 | C43: Commodity 4 | D43: Commodity 4 | E43: Grade 166 | F43: 10 | G43: Option 2 | H43: Buyer 1816 | I43: 39263.24 | J43: GT | K43: Category 1 | L43: Buyer 2 | M43: Buyer 2
A44: Region 3 | B44: Area 8 | C44: Commodity 5 | D44: Commodity 5 | E44: Grade 27 | F44: 07 | G44: Option 2 | H44: Buyer 2 | I44: 39049.28 | J44: Legacy | K44: Category 1 | L44: Buyer 2 | M44: Buyer 2
A45: Region 2 | B45: Area 2 | C45: Commodity 5 | D45: Commodity 5 | E45: Grade 27 | F45: 08 | G45: Option 2 | H45: Buyer 2 | I45: 38973.65 | J45: Legacy | K45: Category 1 | L45: Buyer 2 | M45: Buyer 2
A46: Region 1 | B46: Area 10 | C46: Commodity 2 | D46: Commodity 2 | E46: Grade 173 | F46: 10 | G46: Option 1 | H46: Buyer 1841 | I46: 38564.96 | J46: GT | K46: Category 1 | L46: Buyer 23 | M46: Buyer 7
A47: Region 2 | B47: Area 2 | C47: Commodity 2 | D47: Commodity 2 | E47: Grade 6 | F47: 11 | G47: Option 2 | H47: Buyer 1807 | I47: 38423.36 | J47: GT | K47: Category 1 | L47: Buyer 1799 | M47: Buyer 11
A48: Region 1 | B48: Area 1 | C48: Commodity 2 | D48: Commodity 2 | E48: Grade 93 | F48: 08 | G48: Option 2 | H48: Buyer 25 | I48: 38068.81 | J48: Legacy | K48: Category 1 | L48: Buyer 23 | M48: Buyer 7
A49: Region 1 | B49: Area 1 | C49: Commodity 2 | D49: Commodity 2 | E49: Grade 178 | F49: 11 | G49: Option 2 | H49: Buyer 1841 | I49: 37825.2 | J49: GT | K49: Category 1 | L49: Buyer 23 | M49: Buyer 7
A50: Region 2 | B50: Area 2 | C50: Commodity 5 | D50: Commodity 5 | E50: Grade 27 | F50: 07 | G50: Option 2 | H50: Buyer 1 | I50: 37350.22 | J50: Legacy | K50: Category 1 | L50: Buyer 1 | M50: Buyer 1
A51: Region 3 | B51: Area 9 | C51: Commodity 2 | D51: Commodity 2 | E51: Grade 4 | F51: 08 | G51: Option 3 | H51: Buyer 728 | I51: 37197.99 | J51: Legacy | K51: Category 1 | L51: Buyer 723 | M51: Buyer 3
A52: Region 5 | B52: Area 6 | C52: Commodity 4 | D52: Commodity 4 | E52: Grade 166 | F52: 11 | G52: Option 2 | H52: Buyer 1816 | I52: 37103.49 | J52: GT | K52: Category 1 | L52: Buyer 2 | M52: Buyer 2
A53: Region 2 | B53: Area 14 | C53: Commodity 5 | D53: Commodity 5 | E53: Grade 27 | F53: 07 | G53: Option 2 | H53: Buyer 7 | I53: 36331.23 | J53: Legacy | K53: Category 2 | L53: Buyer 6 | M53: Buyer 6
A54: Region 4 | B54: Area 5 | C54: Commodity 2 | D54: Commodity 2 | E54: Grade 179 | F54: 10 | G54: Option 2 | H54: Buyer 1808 | I54: 36048.16 | J54: GT | K54: Category 1 | L54: Buyer 65 | M54: Buyer 9
A55: Region 5 | B55: Area 7 | C55: Commodity 1 | D55: Commodity 1 | E55: Grade 160 | F55: 10 | G55: Option 1 | H55: Buyer 1818 | I55: 36046.18 | J55: GT | K55: Category 1 | L55: Buyer 5 | M55: Buyer 5
A56: Region 4 | B56: Area 13 | C56: Commodity 2 | D56: Commodity 2 | E56: Grade 179 | F56: 10 | G56: Option 2 | H56: Buyer 1816 | I56: 35495 | J56: GT | K56: Category 1 | L56: Buyer 2 | M56: Buyer 2
A57: Region 3 | B57: Area 8 | C57: Commodity 2 | D57: Commodity 2 | E57: Grade 5 | F57: 11 | G57: Option 2 | H57: Buyer 1816 | I57: 35334.66 | J57: GT | K57: Category 1 | L57: Buyer 2 | M57: Buyer 2
A58: Region 2 | B58: Area 2 | C58: Commodity 5 | D58: Commodity 5 | E58: Grade 27 | F58: 08 | G58: Option 2 | H58: Buyer 34 | I58: 34762.33 | J58: Legacy | K58: Category 1 | L58: Buyer 31 | M58: Buyer 8
A59: Region 2 | B59: Area 14 | C59: Commodity 2 | D59: Commodity 2 | E59: Grade 178 | F59: 11 | G59: Option 2 | H59: Buyer 1816 | I59: 34647.52 | J59: GT | K59: Category 1 | L59: Buyer 2 | M59: Buyer 2
A60: Region 4 | B60: Area 5 | C60: Commodity 2 | D60: Commodity 2 | E60: Grade 179 | F60: 10 | G60: Option 2 | H60: Buyer 1818 | I60: 34456.66 | J60: GT | K60: Category 1 | L60: Buyer 5 | M60: Buyer 5
A61: Region 2 | B61: Area 2 | C61: Commodity 2 | D61: Commodity 2 | E61: Grade 10 | F61: 10 | G61: Option 2 | H61: Buyer 1818 | I61: 33959.68 | J61: GT | K61: Category 1 | L61: Buyer 5 | M61: Buyer 5
A62: Region 1 | B62: Area 10 | C62: Commodity 2 | D62: Commodity 2 | E62: Grade 178 | F62: 10 | G62: Option 2 | H62: Buyer 1841 | I62: 33581.74 | J62: GT | K62: Category 1 | L62: Buyer 23 | M62: Buyer 7
A63: Region 2 | B63: Area 2 | C63: Commodity 5 | D63: Commodity 5 | E63: Grade 27 | F63: 08 | G63: Option 2 | H63: Buyer 7 | I63: 33517.25 | J63: Legacy | K63: Category 2 | L63: Buyer 6 | M63: Buyer 6
A64: Region 4 | B64: Area 5 | C64: Commodity 2 | D64: Commodity 2 | E64: Grade 6 | F64: 10 | G64: Option 2 | H64: Buyer 1805 | I64: 33168.57 | J64: GT | K64: Category 2 | L64: Buyer 6 | M64: Buyer 6
A65: Region 2 | B65: Area 2 | C65: Commodity 5 | D65: Commodity 5 | E65: Grade 27 | F65: 07 | G65: Option 2 | H65: Buyer 2 | I65: 32993.72 | J65: Legacy | K65: Category 1 | L65: Buyer 2 | M65: Buyer 2
A66: Region 4 | B66: Area 13 | C66: Commodity 2 | D66: Commodity 2 | E66: Grade 179 | F66: 10 | G66: Option 1 | H66: Buyer 1818 | I66: 32861.71 | J66: GT | K66: Category 1 | L66: Buyer 5 | M66: Buyer 5
A67: Region 2 | B67: Area 14 | C67: Commodity 5 | D67: Commodity 5 | E67: Grade 27 | F67: 07 | G67: Option 2 | H67: Buyer 7 | I67: 31852.56 | J67: Legacy | K67: Category 2 | L67: Buyer 6 | M67: Buyer 6
A68: Region 4 | B68: Area 4 | C68: Commodity 2 | D68: Commodity 2 | E68: Grade 6 | F68: 10 | G68: Option 1 | H68: Buyer 1805 | I68: 31276.74 | J68: GT | K68: Category 2 | L68: Buyer 6 | M68: Buyer 6
A69: Region 7 | B69: Area 15 | C69: Commodity 4 | D69: Commodity 4 | E69: Grade 166 | F69: 11 | G69: Option 2 | H69: Buyer 1818 | I69: 30989.38 | J69: GT | K69: Category 1 | L69: Buyer 5 | M69: Buyer 5
A70: Region 3 | B70: Area 8 | C70: Commodity 2 | D70: Commodity 2 | E70: Grade 178 | F70: 10 | G70: Option 2 | H70: Buyer 1805 | I70: 30783.96 | J70: GT | K70: Category 2 | L70: Buyer 6 | M70: Buyer 6
A71: Region 1 | B71: Area 10 | C71: Commodity 2 | D71: Commodity 2 | E71: Grade 173 | F71: 10 | G71: Option 2 | H71: Buyer 1163 | I71: 30679.83 | J71: GT | K71: Category 1 | L71: Buyer 1158 | M71: Buyer 3
A72: Region 5 | B72: Area 6 | C72: Commodity 2 | D72: Commodity 2 | E72: Grade 3 | F72: 10 | G72: Option 2 | H72: Buyer 1805 | I72: 30516.56 | J72: GT | K72: Category 2 | L72: Buyer 6 | M72: Buyer 6
A73: Region 7 | B73: Area 15 | C73: Commodity 2 | D73: Commodity 2 | E73: Grade 10 | F73: 10 | G73: Option 2 | H73: Buyer 1163 | I73: 30488.8 | J73: GT | K73: Category 1 | L73: Buyer 1158 | M73: Buyer 3
A74: Region 2 | B74: Area 2 | C74: Commodity 5 | D74: Commodity 5 | E74: Grade 172 | F74: 10 | G74: Option 2 | H74: Buyer 1816 | I74: 30458.5 | J74: GT | K74: Category 1 | L74: Buyer 2 | M74: Buyer 2
A75: Region 2 | B75: Area 2 | C75: Commodity 5 | D75: Commodity 5 | E75: Grade 27 | F75: 07 | G75: Option 2 | H75: Buyer 34 | I75: 30446.43 | J75: Legacy | K75: Category 1 | L75: Buyer 31 | M75: Buyer 8
A76: Region 3 | B76: Area 8 | C76: Commodity 5 | D76: Commodity 5 | E76: Grade 172 | F76: 10 | G76: Option 2 | H76: Buyer 1805 | I76: 30338.45 | J76: GT | K76: Category 2 | L76: Buyer 6 | M76: Buyer 6
A77: Region 2 | B77: Area 14 | C77: Commodity 2 | D77: Commodity 2 | E77: Grade 5 | F77: 11 | G77: Option 2 | H77: Buyer 1816 | I77: 30129.77 | J77: GT | K77: Category 1 | L77: Buyer 2 | M77: Buyer 2
A78: Region 2 | B78: Area 14 | C78: Commodity 5 | D78: Commodity 5 | E78: Grade 27 | F78: 07 | G78: Option 2 | H78: Buyer 1 | I78: 30104.2 | J78: Legacy | K78: Category 1 | L78: Buyer 1 | M78: Buyer 1
A79: Region 2 | B79: Area 2 | C79: Commodity 5 | D79: Commodity 5 | E79: Grade 27 | F79: 07 | G79: Option 2 | H79: Buyer 7 | I79: 29981.88 | J79: Legacy | K79: Category 2 | L79: Buyer 6 | M79: Buyer 6
A80: Region 2 | B80: Area 2 | C80: Commodity 5 | D80: Commodity 5 | E80: Grade 172 | F80: 09 | G80: Option 2 | H80: Buyer 1808 | I80: 29771.8 | J80: GT | K80: Category 1 | L80: Buyer 65 | M80: Buyer 9
A81: Region 2 | B81: Area 14 | C81: Commodity 5 | D81: Commodity 5 | E81: Grade 172 | F81: 10 | G81: Option 2 | H81: Buyer 1816 | I81: 29629.78 | J81: GT | K81: Category 1 | L81: Buyer 2 | M81: Buyer 2
A82: Region 3 | B82: Area 8 | C82: Commodity 5 | D82: Commodity 5 | E82: Grade 27 | F82: 08 | G82: Option 2 | H82: Buyer 68 | I82: 29571.31 | J82: Legacy | K82: Category 1 | L82: Buyer 65 | M82: Buyer 9
A83: Region 1 | B83: Area 10 | C83: Commodity 2 | D83: Commodity 2 | E83: Grade 179 | F83: 11 | G83: Option 2 | H83: Buyer 1818 | I83: 29383.31 | J83: GT | K83: Category 1 | L83: Buyer 5 | M83: Buyer 5
A84: Region 1 | B84: Area 10 | C84: Commodity 2 | D84: Commodity 2 | E84: Grade 179 | F84: 11 | G84: Option 1 | H84: Buyer 1805 | I84: 29158.38 | J84: GT | K84: Category 2 | L84: Buyer 6 | M84: Buyer 6
A85: Region 7 | B85: Area 15 | C85: Commodity 2 | D85: Commodity 2 | E85: Grade 173 | F85: 10 | G85: Option 2 | H85: Buyer 1805 | I85: 28894.53 | J85: GT | K85: Category 2 | L85: Buyer 6 | M85: Buyer 6
A86: Region 5 | B86: Area 7 | C86: Commodity 2 | D86: Commodity 2 | E86: Grade 3 | F86: 10 | G86: Option 1 | H86: Buyer 1818 | I86: 28650.36 | J86: GT | K86: Category 1 | L86: Buyer 5 | M86: Buyer 5
A87: Region 7 | B87: Area 16 | C87: Commodity 2 | D87: Commodity 2 | E87: Grade 173 | F87: 10 | G87: Option 3 | H87: Buyer 1809 | I87: 28462.69 | J87: GT | K87: Category 2 | L87: Buyer 6 | M87: Buyer 6
A88: Region 7 | B88: Area 16 | C88: Commodity 2 | D88: Commodity 2 | E88: Grade 173 | F88: 10 | G88: Option 1 | H88: Buyer 1805 | I88: 28457.77 | J88: GT | K88: Category 2 | L88: Buyer 6 | M88: Buyer 6
A89: Region 2 | B89: Area 3 | C89: Commodity 2 | D89: Commodity 2 | E89: Grade 178 | F89: 10 | G89: Option 2 | H89: Buyer 1805 | I89: 28336.81 | J89: GT | K89: Category 2 | L89: Buyer 6 | M89: Buyer 6
A90: Region 2 | B90: Area 2 | C90: Commodity 2 | D90: Commodity 2 | E90: Grade 10 | F90: 10 | G90: Option 2 | H90: Buyer 1819 | I90: 28275.01 | J90: GT | K90: Category 1 | L90: Buyer 31 | M90: Buyer 8
A91: Region 1 | B91: Area 10 | C91: Commodity 2 | D91: Commodity 2 | E91: Grade 173 | F91: 10 | G91: Option 3 | H91: Buyer 1828 | I91: 28199.25 | J91: GT | K91: Category 3 | L91: Buyer 736 | M91: Buyer 10
A92: Region 4 | B92: Area 4 | C92: Commodity 1 | D92: Commodity 1 | E92: Grade 163 | F92: 10 | G92: Option 1 | H92: Buyer 1807 | I92: 28137.81 | J92: GT | K92: Category 1 | L92: Buyer 1799 | M92: Buyer 11
A93: Region 5 | B93: Area 6 | C93: Commodity 2 | D93: Commodity 2 | E93: Grade 179 | F93: 10 | G93: Option 2 | H93: Buyer 1805 | I93: 28097.03 | J93: GT | K93: Category 2 | L93: Buyer 6 | M93: Buyer 6
A94: Region 2 | B94: Area 2 | C94: Commodity 2 | D94: Commodity 2 | E94: Grade 10 | F94: 10 | G94: Option 2 | H94: Buyer 1807 | I94: 27977.4 | J94: GT | K94: Category 1 | L94: Buyer 1799 | M94: Buyer 11
A95: Region 1 | B95: Area 1 | C95: Commodity 2 | D95: Commodity 2 | E95: Grade 5 | F95: 10 | G95: Option 2 | H95: Buyer 1841 | I95: 27886.23 | J95: GT | K95: Category 1 | L95: Buyer 23 | M95: Buyer 7
A96: Region 3 | B96: Area 8 | C96: Commodity 2 | D96: Commodity 2 | E96: Grade 178 | F96: 10 | G96: Option 2 | H96: Buyer 1849 | I96: 27684.57 | J96: GT | K96: Category 1 | L96: Buyer 1831 | M96: Buyer 3
A97: Region 1 | B97: Area 10 | C97: Commodity 2 | D97: Commodity 2 | E97: Grade 173 | F97: 10 | G97: Option 2 | H97: Buyer 1805 | I97: 27061.23 | J97: GT | K97: Category 2 | L97: Buyer 6 | M97: Buyer 6
A98: Region 1 | B98: Area 1 | C98: Commodity 2 | D98: Commodity 2 | E98: Grade 173 | F98: 11 | G98: Option 3 | H98: Buyer 1828 | I98: 26954.6 | J98: GT | K98: Category 3 | L98: Buyer 736 | M98: Buyer 10
A99: Region 3 | B99: Area 8 | C99: Commodity 2 | D99: Commodity 2 | E99: Grade 178 | F99: 10 | G99: Option 2 | H99: Buyer 1816 | I99: 26947.65 | J99: GT | K99: Category 1 | L99: Buyer 2 | M99: Buyer 2
A100: Region 7 | B100: Area 15 | C100: Commodity 2 | D100: Commodity 2 | E100: Grade 173 | F100: 10 | G100: Option 1 | H100: Buyer 1805 | I100: 26902.16 | J100: GT | K100: Category 2 | L100: Buyer 6 | M100: Buyer 6
A101: Region 3 | B101: Area 8 | C101: Commodity 2 | D101: Commodity 2 | E101: Grade 4 | F101: 09 | G101: Option 2 | H101: Buyer 2 | I101: 26734.35 | J101: Legacy | K101: Category 1 | L101: Buyer 2 | M101: Buyer 2
A102: Region 1 | B102: Area 1 | C102: Commodity 2 | D102: Commodity 2 | E102: Grade 93 | F102: 08 | G102: Option 3 | H102: Buyer 728 | I102: 26730.62 | J102: Legacy | K102: Category 1 | L102: Buyer 723 | M102: Buyer 3
A103: Region 3 | B103: Area 9 | C103: Commodity 2 | D103: Commodity 2 | E103: Grade 4 | F103: 08 | G103: Option 2 | H103: Buyer 4 | I103: 26604.91 | J103: Legacy | K103: Category 1 | L103: Buyer 4 | M103: Buyer 4
A104: Region 4 | B104: Area 5 | C104: Commodity 2 | D104: Commodity 2 | E104: Grade 3 | F104: 10 | G104: Option 2 | H104: Buyer 1818 | I104: 26207.54 | J104: GT | K104: Category 1 | L104: Buyer 5 | M104: Buyer 5
A105: Region 1 | B105: Area 10 | C105: Commodity 2 | D105: Commodity 2 | E105: Grade 10 | F105: 10 | G105: Option 2 | H105: Buyer 1805 | I105: 26172.85 | J105: GT | K105: Category 2 | L105: Buyer 6 | M105: Buyer 6
A106: Region 7 | B106: Area 15 | C106: Commodity 2 | D106: Commodity 2 | E106: Grade 173 | F106: 10 | G106: Option 2 | H106: Buyer 1808 | I106: 26094.98 | J106: GT | K106: Category 1 | L106: Buyer 65 | M106: Buyer 9
A107: Region 7 | B107: Area 20 | C107: Commodity 2 | D107: Commodity 2 | E107: Grade 3 | F107: 10 | G107: Option 2 | H107: Buyer 1805 | I107: 26064.11 | J107: GT | K107: Category 2 | L107: Buyer 6 | M107: Buyer 6
A108: Region 2 | B108: Area 2 | C108: Commodity 5 | D108: Commodity 5 | E108: Grade 27 | F108: 07 | G108: Option 2 | H108: Buyer 34 | I108: 26040.18 | J108: Legacy | K108: Category 1 | L108: Buyer 31 | M108: Buyer 8
A109: Region 1 | B109: Area 1 | C109: Commodity 2 | D109: Commodity 2 | E109: Grade 178 | F109: 10 | G109: Option 2 | H109: Buyer 1808 | I109: 25819.78 | J109: GT | K109: Category 1 | L109: Buyer 65 | M109: Buyer 9
A110: Region 2 | B110: Area 2 | C110: Commodity 5 | D110: Commodity 5 | E110: Grade 172 | F110: 09 | G110: Option 2 | H110: Buyer 1813 | I110: 25674.38 | J110: GT | K110: Category 1 | L110: Buyer 2 | M110: Buyer 2
A111: Region 3 | B111: Area 9 | C111: Commodity 2 | D111: Commodity 2 | E111: Grade 4 | F111: 11 | G111: Option 2 | H111: Buyer 1816 | I111: 25650.41 | J111: GT | K111: Category 1 | L111: Buyer 2 | M111: Buyer 2
A112: Region 5 | B112: Area 6 | C112: Commodity 4 | D112: Commodity 4 | E112: Grade 166 | F112: 11 | G112: Option 1 | H112: Buyer 1805 | I112: 25578.39 | J112: GT | K112: Category 2 | L112: Buyer 6 | M112: Buyer 6
A113: Region 7 | B113: Area 15 | C113: Commodity 2 | D113: Commodity 2 | E113: Grade 173 | F113: 10 | G113: Option 3 | H113: Buyer 1809 | I113: 25497.21 | J113: GT | K113: Category 2 | L113: Buyer 6 | M113: Buyer 6
A114: Region 2 | B114: Area 14 | C114: Commodity 5 | D114: Commodity 5 | E114: Grade 27 | F114: 07 | G114: Option 2 | H114: Buyer 116 | I114: 25440.22 | J114: Legacy | K114: Category 1 | L114: Buyer 113 | M114: Buyer 3
A115: Region 7 | B115: Area 16 | C115: Commodity 2 | D115: Commodity 2 | E115: Grade 178 | F115: 11 | G115: Option 2 | H115: Buyer 1808 | I115: 25341.93 | J115: GT | K115: Category 1 | L115: Buyer 65 | M115: Buyer 9
A116: Region 2 | B116: Area 2 | C116: Commodity 7 | D116: Commodity 5 | E116: Grade 33 | F116: 08 | G116: Option 2 | H116: Buyer 94 | I116: 25316.3 | J116: Legacy | K116: Category 1 | L116: Buyer 91 | M116: Buyer 3
A117: Region 2 | B117: Area 14 | C117: Commodity 5 | D117: Commodity 5 | E117: Grade 27 | F117: 08 | G117: Option 2 | H117: Buyer 7 | I117: 25241.81 | J117: Legacy | K117: Category 2 | L117: Buyer 6 | M117: Buyer 6
A118: Region 2 | B118: Area 2 | C118: Commodity 5 | D118: Commodity 5 | E118: Grade 172 | F118: 10 | G118: Option 2 | H118: Buyer 1818 | I118: 25237.08 | J118: GT | K118: Category 1 | L118: Buyer 5 | M118: Buyer 5
A119: Region 5 | B119: Area 6 | C119: Commodity 2 | D119: Commodity 2 | E119: Grade 10 | F119: 10 | G119: Option 2 | H119: Buyer 1805 | I119: 25229.05 | J119: GT | K119: Category 2 | L119: Buyer 6 | M119: Buyer 6
A120: Region 1 | B120: Area 1 | C120: Commodity 2 | D120: Commodity 2 | E120: Grade 173 | F120: 11 | G120: Option 1 | H120: Buyer 1808 | I120: 25226.72 | J120: GT | K120: Category 1 | L120: Buyer 65 | M120: Buyer 9
A121: Region 7 | B121: Area 15 | C121: Commodity 2 | D121: Commodity 2 | E121: Grade 10 | F121: 10 | G121: Option 2 | H121: Buyer 1805 | I121: 25078.94 | J121: GT | K121: Category 2 | L121: Buyer 6 | M121: Buyer 6
A122: Region 2 | B122: Area 2 | C122: Commodity 5 | D122: Commodity 5 | E122: Grade 172 | F122: 09 | G122: Option 2 | H122: Buyer 1805 | I122: 25032.48 | J122: GT | K122: Category 2 | L122: Buyer 6 | M122: Buyer 6
A123: Region 2 | B123: Area 2 | C123: Commodity 5 | D123: Commodity 5 | E123: Grade 27 | F123: 07 | G123: Option 2 | H123: Buyer 34 | I123: 24930.92 | J123: Legacy | K123: Category 1 | L123: Buyer 31 | M123: Buyer 8
A124: Region 5 | B124: Area 6 | C124: Commodity 2 | D124: Commodity 2 | E124: Grade 179 | F124: 10 | G124: Option 1 | H124: Buyer 1818 | I124: 24785.43 | J124: GT | K124: Category 1 | L124: Buyer 5 | M124: Buyer 5
A125: Region 3 | B125: Area 9 | C125: Commodity 2 | D125: Commodity 2 | E125: Grade 173 | F125: 11 | G125: Option 2 | H125: Buyer 1808 | I125: 24760.21 | J125: GT | K125: Category 1 | L125: Buyer 65 | M125: Buyer 9
A126: Region 2 | B126: Area 3 | C126: Commodity 2 | D126: Commodity 2 | E126: Grade 178 | F126: 10 | G126: Option 2 | H126: Buyer 1813 | I126: 24285.85 | J126: GT | K126: Category 1 | L126: Buyer 2 | M126: Buyer 2
A127: Region 4 | B127: Area 4 | C127: Commodity 2 | D127: Commodity 2 | E127: Grade 6 | F127: 10 | G127: Option 2 | H127: Buyer 1805 | I127: 24158.67 | J127: GT | K127: Category 2 | L127: Buyer 6 | M127: Buyer 6
A128: Region 2 | B128: Area 2 | C128: Commodity 5 | D128: Commodity 5 | E128: Grade 172 | F128: 10 | G128: Option 2 | H128: Buyer 1807 | I128: 23972.05 | J128: GT | K128: Category 1 | L128: Buyer 1799 | M128: Buyer 11
A129: Region 5 | B129: Area 6 | C129: Commodity 2 | D129: Commodity 2 | E129: Grade 6 | F129: 11 | G129: Option 2 | H129: Buyer 742 | I129: 23611.41 | J129: GT | K129: Category 1 | L129: Buyer 737 | M129: Buyer 3
A130: Region 5 | B130: Area 7 | C130: Commodity 2 | D130: Commodity 2 | E130: Grade 10 | F130: 10 | G130: Option 1 | H130: Buyer 1805 | I130: 23489 | J130: GT | K130: Category 2 | L130: Buyer 6 | M130: Buyer 6
A131: Region 4 | B131: Area 13 | C131: Commodity 2 | D131: Commodity 2 | E131: Grade 179 | F131: 10 | G131: Option 2 | H131: Buyer 1813 | I131: 23376.28 | J131: GT | K131: Category 1 | L131: Buyer 2 | M131: Buyer 2
A132: Region 2 | B132: Area 3 | C132: Commodity 5 | D132: Commodity 5 | E132: Grade 172 | F132: 10 | G132: Option 2 | H132: Buyer 1819 | I132: 23330.12 | J132: GT | K132: Category 1 | L132: Buyer 31 | M132: Buyer 8
A133: Region 3 | B133: Area 8 | C133: Commodity 5 | D133: Commodity 5 | E133: Grade 172 | F133: 10 | G133: Option 2 | H133: Buyer 1813 | I133: 23289.75 | J133: GT | K133: Category 1 | L133: Buyer 2 | M133: Buyer 2
A134: Region 1 | B134: Area 10 | C134: Commodity 2 | D134: Commodity 2 | E134: Grade 173 | F134: 10 | G134: Option 2 | H134: Buyer 1816 | I134: 23241.24 | J134: GT | K134: Category 1 | L134: Buyer 2 | M134: Buyer 2
A135: Region 2 | B135: Area 2 | C135: Commodity 5 | D135: Commodity 5 | E135: Grade 27 | F135: 07 | G135: Option 2 | H135: Buyer 2 | I135: 23156.35 | J135: Legacy | K135: Category 1 | L135: Buyer 2 | M135: Buyer 2
A136: Region 7 | B136: Area 15 | C136: Commodity 2 | D136: Commodity 2 | E136: Grade 3 | F136: 10 | G136: Option 2 | H136: Buyer 1163 | I136: 23128.53 | J136: GT | K136: Category 1 | L136: Buyer 1158 | M136: Buyer 3
A137: Region 2 | B137: Area 14 | C137: Commodity 5 | D137: Commodity 5 | E137: Grade 172 | F137: 10 | G137: Option 2 | H137: Buyer 1808 | I137: 23110.16 | J137: GT | K137: Category 1 | L137: Buyer 65 | M137: Buyer 9
A138: Region 2 | B138: Area 3 | C138: Commodity 7 | D138: Commodity 5 | E138: Grade 33 | F138: 08 | G138: Option 2 | H138: Buyer 180 | I138: 23106.37 | J138: Legacy | K138: Category 1 | L138: Buyer 176 | M138: Buyer 3
A139: Region 2 | B139: Area 2 | C139: Commodity 17 | D139: Commodity 5 | E139: Grade 212 | F139: 10 | G139: Option 2 | H139: Buyer 1977 | I139: 23025.9 | J139: GT | K139: Category 1 | L139: Buyer 1959 | M139: Buyer 3
A140: Region 2 | B140: Area 14 | C140: Commodity 2 | D140: Commodity 2 | E140: Grade 7 | F140: 10 | G140: Option 2 | H140: Buyer 1805 | I140: 22886.14 | J140: GT | K140: Category 2 | L140: Buyer 6 | M140: Buyer 6
A141: Region 6 | B141: Area 19 | C141: Commodity 2 | D141: Commodity 2 | E141: Grade 42 | F141: 08 | G141: Option 2 | H141: Buyer 376 | I141: 22737.78 | J141: Legacy | K141: Category 1 | L141: Buyer 372 | M141: Buyer 3
A142: Region 2 | B142: Area 2 | C142: Commodity 2 | D142: Commodity 2 | E142: Grade 10 | F142: 10 | G142: Option 2 | H142: Buyer 1808 | I142: 22621.47 | J142: GT | K142: Category 1 | L142: Buyer 65 | M142: Buyer 9
A143: Region 3 | B143: Area 9 | C143: Commodity 2 | D143: Commodity 2 | E143: Grade 178 | F143: 11 | G143: Option 2 | H143: Buyer 1805 | I143: 22606.59 | J143: GT | K143: Category 2 | L143: Buyer 6 | M143: Buyer 6
A144: Region 4 | B144: Area 4 | C144: Commodity 2 | D144: Commodity 2 | E144: Grade 10 | F144: 10 | G144: Option 1 | H144: Buyer 1805 | I144: 22404.55 | J144: GT | K144: Category 2 | L144: Buyer 6 | M144: Buyer 6
A145: Region 4 | B145: Area 13 | C145: Commodity 2 | D145: Commodity 2 | E145: Grade 179 | F145: 10 | G145: Option 2 | H145: Buyer 1807 | I145: 22357.945 | J145: GT | K145: Category 1 | L145: Buyer 1799 | M145: Buyer 11
A146: Region 4 | B146: Area 13 | C146: Commodity 2 | D146: Commodity 2 | E146: Grade 10 | F146: 10 | G146: Option 2 | H146: Buyer 1816 | I146: 22283.49 | J146: GT | K146: Category 1 | L146: Buyer 2 | M146: Buyer 2
A147: Region 1 | B147: Area 1 | C147: Commodity 2 | D147: Commodity 2 | E147: Grade 10 | F147: 10 | G147: Option 3 | H147: Buyer 1828 | I147: 22257.72 | J147: GT | K147: Category 3 | L147: Buyer 736 | M147: Buyer 10
A148: Region 1 | B148: Area 1 | C148: Commodity 2 | D148: Commodity 2 | E148: Grade 5 | F148: 11 | G148: Option 2 | H148: Buyer 1841 | I148: 22228.87 | J148: GT | K148: Category 1 | L148: Buyer 23 | M148: Buyer 7
A149: Region 1 | B149: Area 10 | C149: Commodity 1 | D149: Commodity 1 | E149: Grade 160 | F149: 10 | G149: Option 2 | H149: Buyer 1805 | I149: 22098.18 | J149: GT | K149: Category 2 | L149: Buyer 6 | M149: Buyer 6
A150: Region 7 | B150: Area 15 | C150: Commodity 2 | D150: Commodity 2 | E150: Grade 6 | F150: 11 | G150: Option 2 | H150: Buyer 1163 | I150: 22041.5 | J150: GT | K150: Category 1 | L150: Buyer 1158 | M150: Buyer 3
A151: Region 2 | B151: Area 14 | C151: Commodity 5 | D151: Commodity 5 | E151: Grade 27 | F151: 07 | G151: Option 2 | H151: Buyer 7 | I151: 22023.62 | J151: Legacy | K151: Category 2 | L151: Buyer 6 | M151: Buyer 6
A152: Region 1 | B152: Area 1 | C152: Commodity 2 | D152: Commodity 2 | E152: Grade 6 | F152: 10 | G152: Option 2 | H152: Buyer 1805 | I152: 22011.3 | J152: GT | K152: Category 2 | L152: Buyer 6 | M152: Buyer 6
A153: Region 3 | B153: Area 8 | C153: Commodity 2 | D153: Commodity 2 | E153: Grade 178 | F153: 10 | G153: Option 2 | H153: Buyer 1813 | I153: 21949.47 | J153: GT | K153: Category 1 | L153: Buyer 2 | M153: Buyer 2
A154: Region 2 | B154: Area 3 | C154: Commodity 2 | D154: Commodity 2 | E154: Grade 178 | F154: 11 | G154: Option 2 | H154: Buyer 1805 | I154: 21903.86 | J154: GT | K154: Category 2 | L154: Buyer 6 | M154: Buyer 6
A155: Region 1 | B155: Area 1 | C155: Commodity 2 | D155: Commodity 2 | E155: Grade 10 | F155: 10 | G155: Option 2 | H155: Buyer 1816 | I155: 21788.19 | J155: GT | K155: Category 1 | L155: Buyer 2 | M155: Buyer 2
A156: Region 1 | B156: Area 10 | C156: Commodity 2 | D156: Commodity 2 | E156: Grade 178 | F156: 11 | G156: Option 2 | H156: Buyer 1841 | I156: 21736.15 | J156: GT | K156: Category 1 | L156: Buyer 23 | M156: Buyer 7
A157: Region 3 | B157: Area 9 | C157: Commodity 2 | D157: Commodity 2 | E157: Grade 10 | F157: 10 | G157: Option 2 | H157: Buyer 1805 | I157: 21679.21 | J157: GT | K157: Category 2 | L157: Buyer 6 | M157: Buyer 6
A158: Region 3 | B158: Area 17 | C158: Commodity 5 | D158: Commodity 5 | E158: Grade 27 | F158: 07 | G158: Option 2 | H158: Buyer 2 | I158: 21536.91 | J158: Legacy | K158: Category 1 | L158: Buyer 2 | M158: Buyer 2
A159: Region 4 | B159: Area 5 | C159: Commodity 2 | D159: Commodity 2 | E159: Grade 179 | F159: 10 | G159: Option 2 | H159: Buyer 1816 | I159: 21495.05 | J159: GT | K159: Category 1 | L159: Buyer 2 | M159: Buyer 2
A160: Region 1 | B160: Area 1 | C160: Commodity 2 | D160: Commodity 2 | E160: Grade 9 | F160: 09 | G160: Option 2 | H160: Buyer 68 | I160: 21486.23 | J160: Legacy | K160: Category 1 | L160: Buyer 65 | M160: Buyer 9
A161: Region 6 | B161: Area 12 | C161: Commodity 1 | D161: Commodity 1 | E161: Grade 160 | F161: 11 | G161: Option 2 | H161: Buyer 1923 | I161: 21428.61 | J161: GT | K161: Category 1 | L161: Buyer 1905 | M161: Buyer 3
A162: Region 7 | B162: Area 20 | C162: Commodity 1 | D162: Commodity 1 | E162: Grade 160 | F162: 10 | G162: Option 2 | H162: Buyer 1805 | I162: 21248.33 | J162: GT | K162: Category 2 | L162: Buyer 6 | M162: Buyer 6
A163: Region 7 | B163: Area 20 | C163: Commodity 2 | D163: Commodity 2 | E163: Grade 173 | F163: 10 | G163: Option 2 | H163: Buyer 1813 | I163: 21213.64 | J163: GT | K163: Category 1 | L163: Buyer 2 | M163: Buyer 2
A164: Region 7 | B164: Area 20 | C164: Commodity 2 | D164: Commodity 2 | E164: Grade 10 | F164: 10 | G164: Option 2 | H164: Buyer 1813 | I164: 21202.45 | J164: GT | K164: Category 1 | L164: Buyer 2 | M164: Buyer 2
A165: Region 1 | B165: Area 10 | C165: Commodity 4 | D165: Commodity 4 | E165: Grade 166 | F165: 11 | G165: Option 2 | H165: Buyer 1818 | I165: 21177.69 | J165: GT | K165: Category 1 | L165: Buyer 5 | M165: Buyer 5
A166: Region 4 | B166: Area 5 | C166: Commodity 2 | D166: Commodity 2 | E166: Grade 3 | F166: 10 | G166: Option 2 | H166: Buyer 1808 | I166: 21091.03 | J166: GT | K166: Category 1 | L166: Buyer 65 | M166: Buyer 9
A167: Region 1 | B167: Area 1 | C167: Commodity 2 | D167: Commodity 2 | E167: Grade 173 | F167: 10 | G167: Option 1 | H167: Buyer 1841 | I167: 20962.6 | J167: GT | K167: Category 1 | L167: Buyer 23 | M167: Buyer 7
A168: Region 7 | B168: Area 15 | C168: Commodity 2 | D168: Commodity 2 | E168: Grade 3 | F168: 10 | G168: Option 2 | H168: Buyer 1816 | I168: 20936.83 | J168: GT | K168: Category 1 | L168: Buyer 2 | M168: Buyer 2
A169: Region 2 | B169: Area 3 | C169: Commodity 2 | D169: Commodity 2 | E169: Grade 5 | F169: 11 | G169: Option 2 | H169: Buyer 1838 | I169: 20763.54 | J169: GT | K169: Category 1 | L169: Buyer 1822 | M169: Buyer 3
A170: Region 1 | B170: Area 1 | C170: Commodity 2 | D170: Commodity 2 | E170: Grade 3 | F170: 10 | G170: Option 2 | H170: Buyer 1841 | I170: 20708.37 | J170: GT | K170: Category 1 | L170: Buyer 23 | M170: Buyer 7
A171: Region 1 | B171: Area 10 | C171: Commodity 4 | D171: Commodity 4 | E171: Grade 166 | F171: 10 | G171: Option 2 | H171: Buyer 1816 | I171: 20680.72 | J171: GT | K171: Category 1 | L171: Buyer 2 | M171: Buyer 2
A172: Region 3 | B172: Area 9 | C172: Commodity 2 | D172: Commodity 2 | E172: Grade 173 | F172: 10 | G172: Option 3 | H172: Buyer 728 | I172: 20652.63 | J172: GT | K172: Category 1 | L172: Buyer 723 | M172: Buyer 3
A173: Region 1 | B173: Area 10 | C173: Commodity 2 | D173: Commodity 2 | E173: Grade 10 | F173: 10 | G173: Option 2 | H173: Buyer 1816 | I173: 20510.59 | J173: GT | K173: Category 1 | L173: Buyer 2 | M173: Buyer 2
A174: Region 4 | B174: Area 4 | C174: Commodity 2 | D174: Commodity 2 | E174: Grade 10 | F174: 10 | G174: Option 2 | H174: Buyer 1805 | I174: 20479.93 | J174: GT | K174: Category 2 | L174: Buyer 6 | M174: Buyer 6
A175: Region 1 | B175: Area 10 | C175: Commodity 2 | D175: Commodity 2 | E175: Grade 10 | F175: 10 | G175: Option 1 | H175: Buyer 1805 | I175: 20459.22 | J175: GT | K175: Category 2 | L175: Buyer 6 | M175: Buyer 6
A176: Region 5 | B176: Area 6 | C176: Commodity 2 | D176: Commodity 2 | E176: Grade 3 | F176: 10 | G176: Option 2 | H176: Buyer 1816 | I176: 20449.56 | J176: GT | K176: Category 1 | L176: Buyer 2 | M176: Buyer 2
A177: Region 1 | B177: Area 1 | C177: Commodity 2 | D177: Commodity 2 | E177: Grade 10 | F177: 10 | G177: Option 3 | H177: Buyer 1809 | I177: 20397.93 | J177: GT | K177: Category 2 | L177: Buyer 6 | M177: Buyer 6
A178: Region 1 | B178: Area 1 | C178: Commodity 2 | D178: Commodity 2 | E178: Grade 10 | F178: 10 | G178: Option 1 | H178: Buyer 1805 | I178: 20356.17 | J178: GT | K178: Category 2 | L178: Buyer 6 | M178: Buyer 6
A179: Region 5 | B179: Area 6 | C179: Commodity 2 | D179: Commodity 2 | E179: Grade 3 | F179: 10 | G179: Option 1 | H179: Buyer 1816 | I179: 20353.58 | J179: GT | K179: Category 1 | L179: Buyer 2 | M179: Buyer 2
A180: Region 1 | B180: Area 1 | C180: Commodity 2 | D180: Commodity 2 | E180: Grade 3 | F180: 10 | G180: Option 2 | H180: Buyer 1805 | I180: 20256.72 | J180: GT | K180: Category 2 | L180: Buyer 6 | M180: Buyer 6
A181: Region 2 | B181: Area 3 | C181: Commodity 2 | D181: Commodity 2 | E181: Grade 178 | F181: 10 | G181: Option 2 | H181: Buyer 1847 | I181: 20236 | J181: GT | K181: Category 1 | L181: Buyer 1829 | M181: Buyer 3
A182: Region 3 | B182: Area 8 | C182: Commodity 2 | D182: Commodity 2 | E182: Grade 178 | F182: 11 | G182: Option 2 | H182: Buyer 1805 | I182: 20206.49 | J182: GT | K182: Category 2 | L182: Buyer 6 | M182: Buyer 6
A183: Region 5 | B183: Area 6 | C183: Commodity 2 | D183: Commodity 2 | E183: Grade 3 | F183: 10 | G183: Option 1 | H183: Buyer 1805 | I183: 20203.63 | J183: GT | K183: Category 2 | L183: Buyer 6 | M183: Buyer 6
A184: Region 2 | B184: Area 14 | C184: Commodity 5 | D184: Commodity 5 | E184: Grade 27 | F184: 08 | G184: Option 2 | H184: Buyer 7 | I184: 20198.12 | J184: Legacy | K184: Category 2 | L184: Buyer 6 | M184: Buyer 6
A185: Region 7 | B185: Area 15 | C185: Commodity 4 | D185: Commodity 4 | E185: Grade 166 | F185: 11 | G185: Option 2 | H185: Buyer 1805 | I185: 20170.24 | J185: GT | K185: Category 2 | L185: Buyer 6 | M185: Buyer 6
A186: Region 2 | B186: Area 2 | C186: Commodity 2 | D186: Commodity 2 | E186: Grade 6 | F186: 11 | G186: Option 2 | H186: Buyer 1847 | I186: 20162.67 | J186: GT | K186: Category 1 | L186: Buyer 1829 | M186: Buyer 3
A187: Region 4 | B187: Area 13 | C187: Commodity 2 | D187: Commodity 2 | E187: Grade 179 | F187: 10 | G187: Option 1 | H187: Buyer 1805 | I187: 20145.96 | J187: GT | K187: Category 2 | L187: Buyer 6 | M187: Buyer 6
A188: Region 3 | B188: Area 17 | C188: Commodity 5 | D188: Commodity 5 | E188: Grade 172 | F188: 09 | G188: Option 2 | H188: Buyer 1805 | I188: 20048.02 | J188: GT | K188: Category 2 | L188: Buyer 6 | M188: Buyer 6
A189: Region 1 | B189: Area 10 | C189: Commodity 2 | D189: Commodity 2 | E189: Grade 10 | F189: 10 | G189: Option 2 | H189: Buyer 1808 | I189: 19951.21 | J189: GT | K189: Category 1 | L189: Buyer 65 | M189: Buyer 9
A190: Region 4 | B190: Area 5 | C190: Commodity 2 | D190: Commodity 2 | E190: Grade 9 | F190: 09 | G190: Option 2 | H190: Buyer 2 | I190: 19950.5 | J190: Legacy | K190: Category 1 | L190: Buyer 2 | M190: Buyer 2
A191: Region 1 | B191: Area 1 | C191: Commodity 2 | D191: Commodity 2 | E191: Grade 4 | F191: 08 | G191: Option 2 | H191: Buyer 7 | I191: 19863.39 | J191: Legacy | K191: Category 2 | L191: Buyer 6 | M191: Buyer 6
A192: Region 5 | B192: Area 6 | C192: Commodity 1 | D192: Commodity 1 | E192: Grade 160 | F192: 10 | G192: Option 1 | H192: Buyer 1818 | I192: 19790 | J192: GT | K192: Category 1 | L192: Buyer 5 | M192: Buyer 5
A193: Region 1 | B193: Area 1 | C193: Commodity 2 | D193: Commodity 2 | E193: Grade 6 | F193: 09 | G193: Option 2 | H193: Buyer 68 | I193: 19767.43 | J193: Legacy | K193: Category 1 | L193: Buyer 65 | M193: Buyer 9
A194: Region 2 | B194: Area 3 | C194: Commodity 2 | D194: Commodity 2 | E194: Grade 4 | F194: 08 | G194: Option 2 | H194: Buyer 2 | I194: 19662.48 | J194: Legacy | K194: Category 1 | L194: Buyer 2 | M194: Buyer 2
A195: Region 2 | B195: Area 2 | C195: Commodity 17 | D195: Commodity 5 | E195: Grade 212 | F195: 10 | G195: Option 2 | H195: Buyer 1819 | I195: 19627.98 | J195: GT | K195: Category 1 | L195: Buyer 31 | M195: Buyer 8
A196: Region 2 | B196: Area 3 | C196: Commodity 5 | D196: Commodity 5 | E196: Grade 172 | F196: 10 | G196: Option 2 | H196: Buyer 1805 | I196: 19625.8 | J196: GT | K196: Category 2 | L196: Buyer 6 | M196: Buyer 6
A197: Region 2 | B197: Area 2 | C197: Commodity 5 | D197: Commodity 5 | E197: Grade 27 | F197: 07 | G197: Option 2 | H197: Buyer 1 | I197: 19543.59 | J197: Legacy | K197: Category 1 | L197: Buyer 1 | M197: Buyer 1
A198: Region 1 | B198: Area 1 | C198: Commodity 2 | D198: Commodity 2 | E198: Grade 93 | F198: 08 | G198: Option 2 | H198: Buyer 25 | I198: 19504.1 | J198: Legacy | K198: Category 1 | L198: Buyer 23 | M198: Buyer 7
A199: Region 2 | B199: Area 2 | C199: Commodity 2 | D199: Commodity 2 | E199: Grade 6 | F199: 11 | G199: Option 2 | H199: Buyer 1819 | I199: 19478.01 | J199: GT | K199: Category 1 | L199: Buyer 31 | M199: Buyer 8
A200: Region 3 | B200: Area 9 | C200: Commodity 5 | D200: Commodity 5 | E200: Grade 27 | F200: 07 | G200: Option 2 | H200: Buyer 2 | I200: 19468.37 | J200: Legacy | K200: Category 1 | L200: Buyer 2 | M200: Buyer 2
... 4300 more rows

Sheet Map (hidden)
B1: Region | C1: Op Area | G1: Buyer | H1: Commodity | L1: Commodity | M1: Buyer
A2: All1 | B2: All | C2: All | E2: =G2&F2 -> All1 | F2: =IF(G2=G1,F1+1,1) -> 1 | G2: All | H2: Commodity 2 | J2: =L2&K2 -> All1 | K2: =IF(L2=L1,K1+1,1) -> 1 | L2: All | M2: Category 6
A3: All2 | B3: All | C3: Area 1 | E3: All2 | F3: 2 | G3: All | H3: Commodity 17 | J3: =L3&K3 -> All2 | K3: =IF(L3=L2,K2+1,1) -> 2 | L3: All | M3: Category 2
A4: All3 | B4: All | C4: Area 2 | E4: All3 | F4: 3 | G4: All | H4: Commodity 5 | J4: All3 | K4: 3 | L4: All | M4: Category 65
A5: All4 | B5: All | C5: Area 3 | E5: All4 | F5: 4 | G5: All | H5: Commodity 1 | J5: All4 | K5: 4 | L5: All | M5: Category 5
A6: All5 | B6: All | C6: Area 4 | E6: All5 | F6: 5 | G6: All | H6: Commodity 7 | J6: All5 | K6: 5 | L6: All | M6: Category 23
A7: All6 | B7: All | C7: Area 5 | E7: All6 | F7: 6 | G7: All | H7: Commodity 4 | J7: All6 | K7: 6 | L7: All | M7: Category 4
A8: All7 | B8: All | C8: Area 6 | E8: All7 | F8: 7 | G8: All | H8: Commodity 14 | J8: All7 | K8: 7 | L8: All | M8: Category 1
A9: All8 | B9: All | C9: Area 7 | E9: All8 | F9: 8 | G9: All | H9: Commodity 3 | J9: All8 | K9: 8 | L9: All | M9: Category 31
A10: All9 | B10: All | C10: Area 8 | E10: All9 | F10: 9 | G10: All | H10: Commodity 11 | J10: All9 | K10: 9 | L10: All | M10: Category 1799
A11: All10 | B11: All | C11: Area 9 | E11: All10 | F11: 10 | G11: All | H11: Commodity 9 | J11: All10 | K11: 10 | L11: All | M11: Category 736
A12: All11 | B12: All | C12: Area 10 | E12: All11 | F12: 11 | G12: All | H12: Commodity 12 | J12: All11 | K12: 11 | L12: All | M12: Category 737
A13: All12 | B13: All | C13: Area 11 | E13: All12 | F13: 12 | G13: All | H13: Commodity 15 | J13: All12 | K13: 12 | L13: All | M13: Category 723
A14: All13 | B14: All | C14: Area 12 | E14: All13 | F14: 13 | G14: All | H14: Commodity 16 | J14: All13 | K14: 13 | L14: All | M14: Category 1158
A15: All14 | B15: All | C15: Area 13 | E15: All14 | F15: 14 | G15: All | H15: Commodity 13 | J15: All14 | K15: 14 | L15: All | M15: Category 1798
A16: All15 | B16: All | C16: Area 14 | E16: All15 | F16: 15 | G16: All | H16: Commodity 8 | J16: All15 | K16: 15 | L16: All | M16: Category 1905
A17: All16 | B17: All | C17: Area 15 | E17: All16 | F17: 16 | G17: All | H17: Commodity 10 | J17: All16 | K17: 16 | L17: All | M17: Category 198
A18: All17 | B18: All | C18: Area 16 | E18: All17 | F18: 17 | G18: All | H18: Commodity 19 | J18: All17 | K18: 17 | L18: All | M18: Category 1829
A19: All18 | B19: All | C19: Area 17 | E19: All18 | F19: 18 | G19: All | H19: Commodity 6 | J19: All18 | K19: 18 | L19: All | M19: Category 137
A20: All19 | B20: All | C20: Area 18 | E20: All19 | F20: 19 | G20: All | H20: Commodity 18 | J20: All19 | K20: 19 | L20: All | M20: Category 64
A21: All20 | B21: All | C21: Area 19 | E21: =G21&F21 -> Category 10581 | F21: 1 | G21: Category 1058 | H21: Commodity 2 | J21: All20 | K21: 20 | L21: All | M21: Category 176
A22: All21 | B22: All | C22: Area 20 | E22: =G22&F22 -> Category 13961 | F22: =IF(G22=G21,F21+1,1) -> 1 | G22: Category 1396 | H22: Commodity 2 | J22: All21 | K22: 21 | L22: All | M22: Category 22
A23: All22 | B23: All | C23: Area 21 | E23: Category 21421 | F23: =IF(G23=G22,F22+1,1) -> 1 | G23: Category 2142 | H23: Commodity 2 | J23: All22 | K23: 22 | L23: All | M23: Category 1822
A24: Region 11 | B24: Region 1 | C24: All | E24: Category 26341 | F24: 1 | G24: Category 2634 | H24: Commodity 2 | J24: All23 | K24: 23 | L24: All | M24: Category 424
A25: Region 12 | B25: Region 1 | C25: Area 1 | E25: Category 19611 | F25: 1 | G25: Category 1961 | H25: Commodity 17 | J25: All24 | K25: 24 | L25: All | M25: Category 32
A26: Region 13 | B26: Region 1 | C26: Area 10 | E26: Category 2301 | F26: 1 | G26: Category 230 | H26: Commodity 2 | J26: All25 | K26: 25 | L26: All | M26: Category 119
A27: Region 21 | B27: Region 2 | C27: All | E27: Category 23751 | F27: 1 | G27: Category 2375 | H27: Commodity 5 | J27: All26 | K27: 26 | L27: All | M27: Category 742
A28: Region 22 | B28: Region 2 | C28: Area 2 | E28: Category 23752 | F28: 2 | G28: Category 2375 | H28: Commodity 2 | J28: All27 | K28: 27 | L28: All | M28: Category 73
A29: Region 23 | B29: Region 2 | C29: Area 3 | E29: Category 23753 | F29: 3 | G29: Category 2375 | H29: Commodity 1 | J29: All28 | K29: 28 | L29: All | M29: Category 401
A30: Region 24 | B30: Region 2 | C30: Area 14 | E30: Category 4901 | F30: 1 | G30: Category 490 | H30: Commodity 2 | J30: All29 | K30: 29 | L30: All | M30: Category 740
A31: Region 31 | B31: Region 3 | C31: All | E31: Category 18801 | F31: 1 | G31: Category 1880 | H31: Commodity 1 | J31: All30 | K31: 30 | L31: All | M31: Category 722
A32: Region 32 | B32: Region 3 | C32: Area 3 | E32: Category 1131 | F32: 1 | G32: Category 113 | H32: Commodity 5 | J32: All31 | K32: 31 | L32: All | M32: Category 25
A33: Region 33 | B33: Region 3 | C33: Area 8 | E33: Category 1132 | F33: 2 | G33: Category 113 | H33: Commodity 2 | J33: All32 | K33: 32 | L33: All | M33: Category 114
A34: Region 34 | B34: Region 3 | C34: Area 9 | E34: Category 1133 | F34: 3 | G34: Category 113 | H34: Commodity 1 | J34: All33 | K34: 33 | L34: All | M34: Category 45
A35: Region 35 | B35: Region 3 | C35: Area 17 | E35: Category 1134 | F35: 4 | G35: Category 113 | H35: Commodity 7 | J35: All34 | K35: 34 | L35: All | M35: Category 1831
A36: Region 41 | B36: Region 4 | C36: All | E36: Category 20881 | F36: 1 | G36: Category 2088 | H36: Commodity 4 | J36: All35 | K36: 35 | L36: All | M36: Category 1115
A37: Region 42 | B37: Region 4 | C37: Area 4 | E37: Category 16701 | F37: 1 | G37: Category 1670 | H37: Commodity 2 | J37: All36 | K37: 36 | L37: All | M37: Category 1802
A38: Region 43 | B38: Region 4 | C38: Area 5 | E38: Category 25761 | F38: 1 | G38: Category 2576 | H38: Commodity 2 | J38: All37 | K38: 37 | L38: All | M38: Category 1825
A39: Region 44 | B39: Region 4 | C39: Area 13 | E39: Category 25271 | F39: 1 | G39: Category 2527 | H39: Commodity 2 | J39: All38 | K39: 38 | L39: All | M39: Category 196
A40: Region 51 | B40: Region 5 | C40: All | E40: Category 8691 | F40: 1 | G40: Category 869 | H40: Commodity 1 | J40: All39 | K40: 39 | L40: All | M40: Category 360
A41: Region 52 | B41: Region 5 | C41: Area 6 | E41: Category 8701 | F41: 1 | G41: Category 870 | H41: Commodity 5 | J41: All40 | K41: 40 | L41: All | M41: Category 113
A42: Region 53 | B42: Region 5 | C42: Area 7 | E42: Category 11 | F42: 1 | G42: Category 1 | H42: Commodity 2 | J42: All41 | K42: 41 | L42: All | M42: Category 233
A43: Region 61 | B43: Region 6 | C43: All | E43: Category 12 | F43: 2 | G43: Category 1 | H43: Commodity 1 | J43: All42 | K43: 42 | L43: All | M43: Category 174
A44: Region 62 | B44: Region 6 | C44: Area 11 | E44: Category 13 | F44: 3 | G44: Category 1 | H44: Commodity 5 | J44: All43 | K44: 43 | L44: All | M44: Category 465
A45: Region 63 | B45: Region 6 | C45: Area 12 | E45: Category 14 | F45: 4 | G45: Category 1 | H45: Commodity 4 | J45: All44 | K45: 44 | L45: All | M45: Category 183
A46: Region 64 | B46: Region 6 | C46: Area 19 | E46: Category 15 | F46: 5 | G46: Category 1 | H46: Commodity 7 | J46: All45 | K46: 45 | L46: All | M46: Category 1832
A47: Region 71 | B47: Region 7 | C47: All | E47: Category 16 | F47: 6 | G47: Category 1 | H47: Commodity 14 | J47: All46 | K47: 46 | L47: All | M47: Category 690
A48: Region 72 | B48: Region 7 | C48: Area 15 | E48: Category 1401 | F48: 1 | G48: Category 140 | H48: Commodity 5 | J48: All47 | K48: 47 | L48: All | M48: Category 1805
A49: Region 73 | B49: Region 7 | C49: Area 16 | E49: Category 3161 | F49: 1 | G49: Category 316 | H49: Commodity 1 | J49: All48 | K49: 48 | L49: All | M49: Category 75
A50: Region 74 | B50: Region 7 | C50: Area 18 | E50: Category 3162 | F50: 2 | G50: Category 316 | H50: Commodity 2 | J50: All49 | K50: 49 | L50: All | M50: Category 89
A51: Region 75 | B51: Region 7 | C51: Area 20 | E51: Category 20161 | F51: 1 | G51: Category 2016 | H51: Commodity 4 | J51: All50 | K51: 50 | L51: All | M51: Category 1838
E52: Category 24241 | F52: 1 | G52: Category 2424 | H52: Commodity 5 | J52: All51 | K52: 51 | L52: All | M52: Category 91
E53: Category 12651 | F53: 1 | G53: Category 1265 | H53: Commodity 1 | J53: All52 | K53: 52 | L53: All | M53: Category 1800
E54: Category 24221 | F54: 1 | G54: Category 2422 | H54: Commodity 5 | J54: All53 | K54: 53 | L54: All | M54: Category 138
E55: Category 17881 | F55: 1 | G55: Category 1788 | H55: Commodity 2 | J55: All54 | K55: 54 | L55: All | M55: Category 26
E56: Category 24731 | F56: 1 | G56: Category 2473 | H56: Commodity 2 | J56: All55 | K56: 55 | L56: All | M56: Category 2056
E57: Category 10301 | F57: 1 | G57: Category 1030 | H57: Commodity 2 | J57: All56 | K57: 56 | L57: All | M57: Category 1823
E58: Category 13851 | F58: 1 | G58: Category 1385 | H58: Commodity 2 | J58: All57 | K58: 57 | L58: All | M58: Category 2012
E59: Category 4001 | F59: 1 | G59: Category 400 | H59: Commodity 1 | J59: All58 | K59: 58 | L59: All | M59: Category 372
E60: Category 20281 | F60: 1 | G60: Category 2028 | H60: Commodity 2 | J60: All59 | K60: 59 | L60: All | M60: Category 56
E61: Category 23391 | F61: 1 | G61: Category 2339 | H61: Commodity 2 | J61: All60 | K61: 60 | L61: All | M61: Category 38
E62: Category 11061 | F62: 1 | G62: Category 1106 | H62: Commodity 1 | J62: All61 | K62: 61 | L62: All | M62: Category 84
E63: Category 1801 | F63: 1 | G63: Category 180 | H63: Commodity 2 | J63: All62 | K63: 62 | L63: All | M63: Category 90
E64: Category 1802 | F64: 2 | G64: Category 180 | H64: Commodity 5 | J64: All63 | K64: 63 | L64: All | M64: Category 1959
E65: Category 1803 | F65: 3 | G65: Category 180 | H65: Commodity 1 | J65: All64 | K65: 64 | L65: All | M65: Category 1848
E66: Category 1804 | F66: 4 | G66: Category 180 | H66: Commodity 17 | J66: All65 | K66: 65 | L66: All | M66: Category 377
E67: Category 7361 | F67: 1 | G67: Category 736 | H67: Commodity 2 | J67: =L67&K67 -> All66 | K67: =IF(L67=L66,K66+1,1) -> 66 | L67: All | M67: Category 2067
E68: Category 7362 | F68: 2 | G68: Category 736 | H68: Commodity 1 | J68: All67 | K68: 67 | L68: All | M68: Category 48
E69: Category 7363 | F69: 3 | G69: Category 736 | H69: Commodity 4 | J69: All68 | K69: 68 | L69: All | M69: Category 1935
E70: Category 7364 | F70: 4 | G70: Category 736 | H70: Commodity 5 | J70: All69 | K70: 69 | L70: All | M70: Category 15
E71: Category 8391 | F71: 1 | G71: Category 839 | H71: Commodity 2 | J71: All70 | K71: 70 | L71: All | M71: Category 51
E72: Category 23561 | F72: 1 | G72: Category 2356 | H72: Commodity 2 | J72: All71 | K72: 71 | L72: All | M72: Category 1888
E73: Category 3771 | F73: 1 | G73: Category 377 | H73: Commodity 2 | J73: All72 | K73: 72 | L73: All | M73: Category 29
E74: Category 3772 | F74: 2 | G74: Category 377 | H74: Commodity 5 | J74: All73 | K74: 73 | L74: All | M74: Category 74
E75: Category 3773 | F75: 3 | G75: Category 377 | H75: Commodity 1 | J75: All74 | K75: 74 | L75: All | M75: Category 1972
E76: Category 3774 | F76: 4 | G76: Category 377 | H76: Commodity 4 | J76: All75 | K76: 75 | L76: All | M76: Category 688
E77: Category 3775 | F77: 5 | G77: Category 377 | H77: Commodity 17 | J77: All76 | K77: 76 | L77: All | M77: Category 9
E78: Category 15571 | F78: 1 | G78: Category 1557 | H78: Commodity 2 | J78: All77 | K78: 77 | L78: All | M78: Category 586
E79: Category 3601 | F79: 1 | G79: Category 360 | H79: Commodity 5 | J79: All78 | K79: 78 | L79: All | M79: Category 2057
E80: Category 3602 | F80: 2 | G80: Category 360 | H80: Commodity 2 | J80: All79 | K80: 79 | L80: All | M80: Category 1821
E81: Category 3603 | F81: 3 | G81: Category 360 | H81: Commodity 1 | J81: All80 | K81: 80 | L81: All | M81: Category 1856
E82: Category 3604 | F82: 4 | G82: Category 360 | H82: Commodity 4 | J82: All81 | K82: 81 | L82: All | M82: Category 1852
E83: Category 3605 | F83: 5 | G83: Category 360 | H83: Commodity 17 | J83: All82 | K83: 82 | L83: All | M83: Category 180
E84: Category 151 | F84: 1 | G84: Category 15 | H84: Commodity 1 | J84: All83 | K84: 83 | L84: All | M84: Category 2666
E85: Category 152 | F85: 2 | G85: Category 15 | H85: Commodity 2 | J85: All84 | K85: 84 | L85: All | M85: Category 47
E86: =G86&F86 -> Category 153 | F86: 3 | G86: Category 15 | H86: Commodity 17 | J86: All85 | K86: 85 | L86: All | M86: Category 1857
E87: Category 154 | F87: =IF(G87=G86,F86+1,1) -> 4 | G87: Category 15 | H87: Commodity 4 | J87: All86 | K87: 86 | L87: All | M87: Category 738
E88: Category 6451 | F88: 1 | G88: Category 645 | H88: Commodity 2 | J88: All87 | K88: 87 | L88: All | M88: Category 2402
E89: Category 6452 | F89: 2 | G89: Category 645 | H89: Commodity 5 | J89: All88 | K89: 88 | L89: All | M89: Category 1908
E90: Category 6453 | F90: 3 | G90: Category 645 | H90: Commodity 1 | J90: All89 | K90: 89 | L90: All | M90: Category 915
E91: Category 18481 | F91: 1 | G91: Category 1848 | H91: Commodity 2 | J91: All90 | K91: 90 | L91: All | M91: Category 2674
E92: Category 18482 | F92: 2 | G92: Category 1848 | H92: Commodity 1 | J92: All91 | K92: 91 | L92: All | M92: Category 7
E93: Category 6881 | F93: 1 | G93: Category 688 | H93: Commodity 5 | J93: All92 | K93: 92 | L93: All | M93: Category 33
E94: Category 6882 | F94: 2 | G94: Category 688 | H94: Commodity 2 | J94: All93 | K94: 93 | L94: All | M94: Category 2058
E95: Category 6883 | F95: 3 | G95: Category 688 | H95: Commodity 1 | J95: All94 | K95: 94 | L95: All | M95: Category 213
E96: Category 26331 | F96: 1 | G96: Category 2633 | H96: Commodity 2 | J96: All95 | K96: 95 | L96: All | M96: Category 1913
E97: Category 19231 | F97: 1 | G97: Category 1923 | H97: Commodity 2 | J97: All96 | K97: 96 | L97: All | M97: Category 54
E98: Category 24791 | F98: 1 | G98: Category 2479 | H98: Commodity 1 | J98: All97 | K98: 97 | L98: All | M98: Category 189
E99: Category 11631 | F99: 1 | G99: Category 1163 | H99: Commodity 2 | J99: All98 | K99: 98 | L99: All | M99: Category 1851
E100: Category 11632 | F100: 2 | G100: Category 1163 | H100: Commodity 1 | J100: All99 | K100: 99 | L100: All | M100: Category 677
E101: Category 11071 | F101: 1 | G101: Category 1107 | H101: Commodity 1 | J101: All100 | K101: 100 | L101: All | M101: Category 729
E102: Category 3611 | F102: 1 | G102: Category 361 | H102: Commodity 2 | J102: All101 | K102: 101 | L102: All | M102: Category 2059
E103: Category 2321 | F103: 1 | G103: Category 232 | H103: Commodity 2 | J103: All102 | K103: 102 | L103: All | M103: Category 2291
E104: Category 17391 | F104: 1 | G104: Category 1739 | H104: Commodity 1 | J104: All103 | K104: 103 | L104: All | M104: Category 205
E105: Category 2031 | F105: 1 | G105: Category 203 | H105: Commodity 1 | J105: All104 | K105: 104 | L105: All | M105: Category 1118
E106: Category 8851 | F106: 1 | G106: Category 885 | H106: Commodity 1 | J106: All105 | K106: 105 | L106: All | M106: Category 1486
E107: Category 1291 | F107: 1 | G107: Category 129 | H107: Commodity 2 | J107: All106 | K107: 106 | L107: All | M107: Category 1988
E108: Category 18251 | F108: 1 | G108: Category 1825 | H108: Commodity 2 | J108: All107 | K108: 107 | L108: All | M108: Category 2667
E109: Category 18252 | F109: 2 | G109: Category 1825 | H109: Commodity 3 | J109: All108 | K109: 108 | L109: All | M109: Category 16
E110: Category 18253 | F110: 3 | G110: Category 1825 | H110: Commodity 11 | J110: All109 | K110: 109 | L110: All | M110: Category 1492
E111: Category 18254 | F111: 4 | G111: Category 1825 | H111: Commodity 9 | J111: All110 | K111: 110 | L111: All | M111: Category 193
E112: Category 1141 | F112: 1 | G112: Category 114 | H112: Commodity 2 | J112: All111 | K112: 111 | L112: All | M112: Category 295
E113: Category 1142 | F113: 2 | G113: Category 114 | H113: Commodity 3 | J113: All112 | K113: 112 | L113: All | M113: Category 1828
E114: Category 1143 | F114: 3 | G114: Category 114 | H114: Commodity 11 | J114: All113 | K114: 113 | L114: All | M114: Category 1854
E115: Category 1144 | F115: 4 | G115: Category 114 | H115: Commodity 12 | J115: All114 | K115: 114 | L115: All | M115: Category 39
E116: Category 1145 | F116: 5 | G116: Category 114 | H116: Commodity 9 | J116: All115 | K116: 115 | L116: All | M116: Category 300
E117: Category 9751 | F117: 1 | G117: Category 975 | H117: Commodity 1 | J117: All116 | K117: 116 | L117: All | M117: Category 88
E118: Category 7461 | F118: 1 | G118: Category 746 | H118: Commodity 1 | J118: All117 | K118: 117 | L118: All | M118: Category 591
E119: Category 17841 | F119: 1 | G119: Category 1784 | H119: Commodity 2 | J119: All118 | K119: 118 | L119: All | M119: Category 1117
E120: Category 19091 | F120: 1 | G120: Category 1909 | H120: Commodity 2 | J120: All119 | K120: 119 | L120: All | M120: Category 598
E121: Category 25821 | F121: 1 | G121: Category 2582 | H121: Commodity 2 | J121: All120 | K121: 120 | L121: All | M121: Category 200
E122: Category 19121 | F122: 1 | G122: Category 1912 | H122: Commodity 2 | J122: All121 | K122: 121 | L122: All | M122: Category 426
E123: Category 1411 | F123: 1 | G123: Category 141 | H123: Commodity 2 | J123: All122 | K123: 122 | L123: All | M123: Category 219
E124: Category 16481 | F124: 1 | G124: Category 1648 | H124: Commodity 1 | J124: All123 | K124: 123 | L124: All | M124: Category 291
E125: Category 1611 | F125: 1 | G125: Category 161 | H125: Commodity 5 | J125: All124 | K125: 124 | L125: All | M125: Category 1849
E126: Category 20581 | F126: 1 | G126: Category 2058 | H126: Commodity 2 | J126: All125 | K126: 125 | L126: All | M126: Category 852
E127: Category 20582 | F127: 2 | G127: Category 2058 | H127: Commodity 1 | J127: All126 | K127: 126 | L127: All | M127: Category 1520
E128: Category 4861 | F128: 1 | G128: Category 486 | H128: Commodity 2 | J128: All127 | K128: 127 | L128: All | M128: Category 245
E129: Category 4862 | F129: 2 | G129: Category 486 | H129: Commodity 1 | J129: All128 | K129: 128 | L129: All | M129: Category 739
E130: Category 1421 | F130: 1 | G130: Category 142 | H130: Commodity 5 | J130: All129 | K130: 129 | L130: All | M130: Category 1899
E131: Category 12801 | F131: 1 | G131: Category 1280 | H131: Commodity 1 | J131: =L131&K131 -> All130 | K131: =IF(L131=L130,K130+1,1) -> 130 | L131: All | M131: Category 486
E132: Category 12802 | F132: 2 | G132: Category 1280 | H132: Commodity 2 | J132: All131 | K132: 131 | L132: All | M132: Category 2054
E133: Category 10431 | F133: 1 | G133: Category 1043 | H133: Commodity 2 | J133: All132 | K133: 132 | L133: All | M133: Category 1440
E134: Category 2961 | F134: 1 | G134: Category 296 | H134: Commodity 4 | J134: All133 | K134: 133 | L134: All | M134: Category 41
E135: Category 2962 | F135: 2 | G135: Category 296 | H135: Commodity 2 | J135: All134 | K135: 134 | L135: All | M135: Category 543
E136: Category 15871 | F136: 1 | G136: Category 1587 | H136: Commodity 2 | J136: All135 | K136: 135 | L136: All | M136: Category 871
E137: Category 2971 | F137: 1 | G137: Category 297 | H137: Commodity 9 | J137: All136 | K137: 136 | L137: All | M137: Category 766
E138: Category 2972 | F138: 2 | G138: Category 297 | H138: Commodity 4 | J138: All137 | K138: 137 | L138: All | M138: Category 2192
E139: Category 5221 | F139: 1 | G139: Category 522 | H139: Commodity 2 | J139: All138 | K139: 138 | L139: All | M139: Category 1834
E140: Category 7961 | F140: 1 | G140: Category 796 | H140: Commodity 2 | J140: All139 | K140: 139 | L140: All | M140: Category 1495
E141: Category 24681 | F141: 1 | G141: Category 2468 | H141: Commodity 2 | J141: All140 | K141: 140 | L141: All | M141: Category 1376
E142: Category 13531 | F142: 1 | G142: Category 1353 | H142: Commodity 2 | J142: All141 | K142: 141 | L142: All | M142: Category 188
E143: Category 6311 | F143: 1 | G143: Category 631 | H143: Commodity 1 | J143: All142 | K143: 142 | L143: All | M143: Category 1304
E144: Category 13971 | F144: 1 | G144: Category 1397 | H144: Commodity 2 | J144: All143 | K144: 143 | L144: All | M144: Category 2301
E145: Category 13981 | F145: 1 | G145: Category 1398 | H145: Commodity 2 | J145: All144 | K145: 144 | L145: All | M145: Category 1994
E146: Category 4491 | F146: 1 | G146: Category 449 | H146: Commodity 1 | J146: All145 | K146: 145 | L146: All | M146: Category 257
E147: Category 8251 | F147: 1 | G147: Category 825 | H147: Commodity 2 | J147: All146 | K147: 146 | L147: All | M147: Category 1525
E148: Category 24441 | F148: 1 | G148: Category 2444 | H148: Commodity 2 | J148: All147 | K148: 147 | L148: All | M148: Category 120
E149: Category 6601 | F149: 1 | G149: Category 660 | H149: Commodity 2 | J149: All148 | K149: 148 | L149: All | M149: Category 381
E150: =G150&F150 -> Category 1891 | F150: 1 | G150: Category 189 | H150: Commodity 2 | J150: All149 | K150: 149 | L150: All | M150: Category 121
E151: Category 1892 | F151: =IF(G151=G150,F150+1,1) -> 2 | G151: Category 189 | H151: Commodity 1 | J151: All150 | K151: 150 | L151: All | M151: Category 2219
E152: Category 21301 | F152: 1 | G152: Category 2130 | H152: Commodity 2 | J152: All151 | K152: 151 | L152: All | M152: Category 314
E153: Category 2041 | F153: 1 | G153: Category 204 | H153: Commodity 4 | J153: All152 | K153: 152 | L153: All | M153: Category 362
E154: Category 401 | F154: 1 | G154: Category 40 | H154: Commodity 2 | J154: All153 | K154: 153 | L154: All | M154: Category 599
E155: Category 402 | F155: 2 | G155: Category 40 | H155: Commodity 1 | J155: All154 | K155: 154 | L155: All | M155: Category 173
E156: Category 11931 | F156: 1 | G156: Category 1193 | H156: Commodity 1 | J156: All155 | K156: 155 | L156: All | M156: Category 1979
E157: Category 11932 | F157: 2 | G157: Category 1193 | H157: Commodity 2 | J157: All156 | K157: 156 | L157: All | M157: Category 217
E158: Category 26421 | F158: 1 | G158: Category 2642 | H158: Commodity 2 | J158: All157 | K158: 157 | L158: All | M158: Category 2290
E159: Category 6221 | F159: 1 | G159: Category 622 | H159: Commodity 5 | J159: All158 | K159: 158 | L159: All | M159: Category 1870
E160: Category 13781 | F160: 1 | G160: Category 1378 | H160: Commodity 2 | J160: All159 | K160: 159 | L160: All | M160: Category 1970
E161: Category 6541 | F161: 1 | G161: Category 654 | H161: Commodity 2 | J161: All160 | K161: 160 | L161: All | M161: Category 368
E162: Category 26551 | F162: 1 | G162: Category 2655 | H162: Commodity 2 | J162: All161 | K162: 161 | L162: All | M162: Category 567
E163: Category 4011 | F163: 1 | G163: Category 401 | H163: Commodity 2 | J163: All162 | K163: 162 | L163: All | M163: Category 2702
E164: Category 4012 | F164: 2 | G164: Category 401 | H164: Commodity 5 | J164: All163 | K164: 163 | L164: All | M164: Category 1097
E165: Category 4013 | F165: 3 | G165: Category 401 | H165: Commodity 1 | J165: All164 | K165: 164 | L165: All | M165: Category 68
E166: Category 24151 | F166: 1 | G166: Category 2415 | H166: Commodity 5 | J166: All165 | K166: 165 | L166: All | M166: Category 1835
E167: Category 27111 | F167: 1 | G167: Category 2711 | H167: Commodity 2 | J167: All166 | K167: 166 | L167: All | M167: Category 1534
E168: Category 12401 | F168: 1 | G168: Category 1240 | H168: Commodity 2 | J168: All167 | K168: 167 | L168: All | M168: Category 218
E169: Category 9291 | F169: 1 | G169: Category 929 | H169: Commodity 1 | J169: All168 | K169: 168 | L169: All | M169: Category 1311
E170: Category 6551 | F170: 1 | G170: Category 655 | H170: Commodity 17 | J170: All169 | K170: 169 | L170: All | M170: Category 2375
E171: Category 6552 | F171: 2 | G171: Category 655 | H171: Commodity 2 | J171: All170 | K171: 170 | L171: All | M171: Category 99
E172: Category 22981 | F172: 1 | G172: Category 2298 | H172: Commodity 1 | J172: All171 | K172: 171 | L172: All | M172: Category 2101
E173: Category 22961 | F173: 1 | G173: Category 2296 | H173: Commodity 1 | J173: All172 | K173: 172 | L173: All | M173: Category 1092
E174: Category 3451 | F174: 1 | G174: Category 345 | H174: Commodity 2 | J174: All173 | K174: 173 | L174: All | M174: Category 1477
E175: Category 6611 | F175: 1 | G175: Category 661 | H175: Commodity 5 | J175: All174 | K175: 174 | L175: All | M175: Category 379
E176: Category 11511 | F176: 1 | G176: Category 1151 | H176: Commodity 2 | J176: All175 | K176: 175 | L176: All | M176: Category 294
E177: Category 20681 | F177: 1 | G177: Category 2068 | H177: Commodity 1 | J177: All176 | K177: 176 | L177: All | M177: Category 1040
E178: Category 5601 | F178: 1 | G178: Category 560 | H178: Commodity 2 | J178: All177 | K178: 177 | L178: All | M178: Category 2205
E179: Category 21841 | F179: 1 | G179: Category 2184 | H179: Commodity 2 | J179: All178 | K179: 178 | L179: All | M179: Category 1924
E180: Category 8711 | F180: 1 | G180: Category 871 | H180: Commodity 1 | J180: All179 | K180: 179 | L180: All | M180: Category 30
E181: Category 14401 | F181: 1 | G181: Category 1440 | H181: Commodity 1 | J181: All180 | K181: 180 | L181: All | M181: Category 675
E182: Category 14402 | F182: 2 | G182: Category 1440 | H182: Commodity 2 | J182: All181 | K182: 181 | L182: All | M182: Category 643
E183: Category 27191 | F183: 1 | G183: Category 2719 | H183: Commodity 2 | J183: All182 | K183: 182 | L183: All | M183: Category 1910
E184: Category 17011 | F184: 1 | G184: Category 1701 | H184: Commodity 1 | J184: All183 | K184: 183 | L184: All | M184: Category 249
E185: Category 17012 | F185: 2 | G185: Category 1701 | H185: Commodity 2 | J185: All184 | K185: 184 | L185: All | M185: Category 2129
E186: Category 19081 | F186: 1 | G186: Category 1908 | H186: Commodity 2 | J186: All185 | K186: 185 | L186: All | M186: Category 2077
E187: Category 19082 | F187: 2 | G187: Category 1908 | H187: Commodity 1 | J187: All186 | K187: 186 | L187: All | M187: Category 220
E188: Category 3621 | F188: 1 | G188: Category 362 | H188: Commodity 2 | J188: All187 | K188: 187 | L188: All | M188: Category 2476
E189: Category 3622 | F189: 2 | G189: Category 362 | H189: Commodity 5 | J189: All188 | K189: 188 | L189: All | M189: Category 1778
E190: Category 3623 | F190: 3 | G190: Category 362 | H190: Commodity 15 | J190: All189 | K190: 189 | L190: All | M190: Category 1830
E191: Category 3624 | F191: 4 | G191: Category 362 | H191: Commodity 1 | J191: All190 | K191: 190 | L191: All | M191: Category 504
E192: Category 19571 | F192: 1 | G192: Category 1957 | H192: Commodity 1 | J192: All191 | K192: 191 | L192: All | M192: Category 2408
E193: Category 19572 | F193: 2 | G193: Category 1957 | H193: Commodity 2 | J193: All192 | K193: 192 | L193: All | M193: Category 1289
E194: Category 1431 | F194: 1 | G194: Category 143 | H194: Commodity 5 | J194: All193 | K194: 193 | L194: All | M194: Category 104
E195: Category 24341 | F195: 1 | G195: Category 2434 | H195: Commodity 5 | J195: =L195&K195 -> All194 | K195: =IF(L195=L194,K194+1,1) -> 194 | L195: All | M195: Category 2248
E196: Category 411 | F196: 1 | G196: Category 41 | H196: Commodity 1 | J196: All195 | K196: 195 | L196: All | M196: Category 2741
E197: Category 412 | F197: 2 | G197: Category 41 | H197: Commodity 5 | J197: All196 | K197: 196 | L197: All | M197: Category 1640
E198: Category 413 | F198: 3 | G198: Category 41 | H198: Commodity 2 | J198: All197 | K198: 197 | L198: All | M198: Category 2515
E199: Category 901 | F199: 1 | G199: Category 90 | H199: Commodity 2 | J199: All198 | K199: 198 | L199: All | M199: Category 782
E200: Category 902 | F200: 2 | G200: Category 90 | H200: Commodity 5 | J200: All199 | K200: 199 | L200: All | M200: Category 851
... 5970 more rows
